Ref No,Fund Type,Dept,Cost Centre Description    ,Description    ,Creditor Name    ,GL Code Net Amount,Payment date        
2,Revenue,CAHD,Bed Purchasing - North,Permanent Nursing,.,3294.28, 26-Sep-2017
3,Revenue,CAHD,South Glos Users in South Glos Homes,Permanent Nursing,.,620.2, 26-Sep-2017
4,Revenue,CAHD,Bed Purchasing - North,Permanent Nursing,.,4659.8, 26-Sep-2017
5,Revenue,CAHD,South Glos Users in South Glos Homes,Permanent Nursing,.,620.2, 26-Sep-2017
6,Revenue,CAHD,Bed Purchasing - North,Permanent Nursing,.,520.97, 26-Sep-2017
7,Revenue,CAHD,Bed Purchasing - North,Permanent Nursing,.,11982.34, 26-Sep-2017
8,Revenue,CAHD,Bed Purchasing - South,Permanent Nursing,.,3349.56, 26-Sep-2017
9,Revenue,CAHD,South Glos Users in South Glos Homes,Permanent Nursing,.,620.2, 26-Sep-2017
10,Revenue,CAHD,Bed Purchasing - North,Permanent Nursing,.,3294.28, 26-Sep-2017
11,Revenue,CAHD,South Glos Users in South Glos Homes,Permanent Nursing,.,620.2, 26-Sep-2017
12,Revenue,CAHD,South Glos Users in South Glos Homes,Permanent Nursing,.,620.2, 26-Sep-2017
13,Revenue,CAHD,Bed Purchasing - South,Permanent Nursing,.,3294.28, 26-Sep-2017
14,Revenue,CAHD,South Glos Users in South Glos Homes,Permanent Nursing,.,620.2, 26-Sep-2017
15,Revenue,CAHD,Bed Purchasing - Southmead Hospital,Permanent Nursing,.,4800, 26-Sep-2017
16,Revenue,CAHD,South Glos Users in South Glos Homes,Permanent Nursing,.,620.2, 26-Sep-2017
17,Revenue,CAHD,South Glos Users in South Glos Homes,Permanent Nursing,.,620.2, 26-Sep-2017
18,Revenue,CAHD,Bed Purchasing - North,Permanent Residential,.,4254.6, 26-Sep-2017
19,Revenue,CAHD,South Glos Users in South Glos Homes,Permanent Nursing,.,620.2, 26-Sep-2017
20,Revenue,CAHD,Bed Purchasing - South,Permanent Nursing,.,3621.48, 26-Sep-2017
21,Revenue,CAHD,South Glos Users in South Glos Homes,Permanent Nursing,.,620.2, 26-Sep-2017
22,Revenue,CAHD,Bed Purchasing - North,Permanent Nursing,.,5039.68, 26-Sep-2017
23,Revenue,CAHD,South Glos Users in South Glos Homes,Permanent Nursing,.,620.2, 26-Sep-2017
24,Revenue,CAHD,Bed Purchasing - South,Fees & Charges Income - General,.,1005.1, 26-Sep-2017
25,Revenue,CAHD,Bed Purchasing - Southmead Hospital,Permanent Nursing,.,3824.08, 26-Sep-2017
26,Revenue,CAHD,South Glos Users in South Glos Homes,Permanent Nursing,.,620.2, 26-Sep-2017
27,Revenue,CAHD,South Glos Users in South Glos Homes,Permanent Nursing,.,620.2, 26-Sep-2017
28,Revenue,CAHD,South Glos Users in South Glos Homes,Permanent Nursing,.,620.2, 26-Sep-2017
29,Revenue,CAHD,South Glos Users in South Glos Homes,Permanent Nursing,.,620.2, 26-Sep-2017
30,Revenue,CAHD,South Glos Users in South Glos Homes,Permanent Nursing,.,620.2, 26-Sep-2017
31,Revenue,CAHD,South Glos Users in South Glos Homes,Permanent Nursing,.,620.2, 26-Sep-2017
32,Revenue,CAHD,Bed Purchasing - North,Permanent Nursing,.,4228.56, 26-Sep-2017
33,Revenue,CAHD,South Glos Users in South Glos Homes,Permanent Nursing,.,620.2, 26-Sep-2017
34,Revenue,CAHD,South Glos Users in South Glos Homes,Permanent Nursing,.,620.2, 26-Sep-2017
35,Revenue,CAHD,South Glos Users in South Glos Homes,Permanent Nursing,.,620.2, 26-Sep-2017
36,Revenue,CAHD,South Glos Users in South Glos Homes,Permanent Nursing,.,620.2, 26-Sep-2017
37,Revenue,CAHD,South Glos Users in South Glos Homes,Permanent Nursing,.,620.2, 26-Sep-2017
38,Revenue,CAHD,South Glos Users in South Glos Homes,Permanent Nursing,.,620.2, 26-Sep-2017
39,Revenue,CAHD,South Glos Users in South Glos Homes,Permanent Nursing,.,620.2, 26-Sep-2017
40,Revenue,CAHD,South Glos Users in South Glos Homes,Permanent Nursing,.,620.2, 26-Sep-2017
41,Revenue,CAHD,South Glos Users in South Glos Homes,Permanent Nursing,.,620.2, 26-Sep-2017
42,Revenue,CAHD,South Glos Users in South Glos Homes,Permanent Nursing,.,620.2, 26-Sep-2017
43,Revenue,CAHD,South Glos Users in South Glos Homes,Permanent Nursing,.,620.2, 26-Sep-2017
44,Revenue,CAHD,South Glos Users in South Glos Homes,Permanent Nursing,.,620.2, 26-Sep-2017
45,Revenue,CAHD,South Glos Users in South Glos Homes,Permanent Nursing,.,620.2, 26-Sep-2017
46,Revenue,CAHD,South Glos Users in South Glos Homes,Permanent Nursing,.,620.2, 26-Sep-2017
47,Revenue,CAHD,South Glos Users in South Glos Homes,Permanent Nursing,.,620.2, 26-Sep-2017
48,Revenue,CAHD,South Glos Users in South Glos Homes,Permanent Nursing,.,620.2, 26-Sep-2017
49,Revenue,CAHD,Bed Purchasing - North,Permanent Nursing,.,8658.16, 26-Sep-2017
50,Revenue,CAHD,Bed Purchasing - North,Permanent Nursing,.,8658.16, 26-Sep-2017
51,Revenue,CAHD,Bed Purchasing - North,Permanent Nursing,.,4179.8, 26-Sep-2017
52,Revenue,CAHD,South Glos Users in South Glos Homes,Permanent Nursing,.,620.2, 26-Sep-2017
53,Revenue,CAHD,Bed Purchasing - North,Fees & Charges Income - General,.,1094.81, 26-Sep-2017
54,Revenue,CAHD,South Glos Users in South Glos Homes,Permanent Nursing,.,620.2, 26-Sep-2017
55,Revenue,CAHD,South Glos Users in South Glos Homes,Permanent Nursing,.,620.2, 26-Sep-2017
56,Revenue,CAHD,South Glos Users in South Glos Homes,Permanent Nursing,.,620.2, 26-Sep-2017
57,Revenue,CAHD,South Glos Users in South Glos Homes,Permanent Nursing,.,620.2, 26-Sep-2017
58,Revenue,CAHD,South Glos Users in South Glos Homes,Permanent Nursing,.,620.2, 26-Sep-2017
59,Revenue,CAHD,South Glos Users in South Glos Homes,Permanent Nursing,.,620.2, 26-Sep-2017
60,Revenue,CAHD,South Glos Users in South Glos Homes,Permanent Nursing,.,620.2, 26-Sep-2017
61,Revenue,CAHD,South Glos Users in South Glos Homes,Permanent Nursing,.,620.2, 26-Sep-2017
62,Revenue,CAHD,Bed Purchasing - Southmead Hospital,Permanent Residential,.,4400, 26-Sep-2017
63,Revenue,CAHD,South Glos Users in South Glos Homes,Permanent Nursing,.,620.2, 26-Sep-2017
64,Revenue,CAHD,South Glos Users in South Glos Homes,Permanent Nursing,.,620.2, 26-Sep-2017
65,Revenue,CAHD,Bed Purchasing - North,Permanent Nursing,.,3114.96, 26-Sep-2017
66,Revenue,CAHD,South Glos Users in South Glos Homes,Permanent Nursing,.,620.2, 26-Sep-2017
67,Revenue,CAHD,Bed Purchasing - South,Permanent Nursing,.,3779.8, 26-Sep-2017
68,Revenue,CAHD,South Glos Users in South Glos Homes,Permanent Nursing,.,620.2, 26-Sep-2017
69,Revenue,CAHD,Bed Purchasing - North,Permanent Nursing,.,3294.28, 26-Sep-2017
70,Revenue,CAHD,South Glos Users in South Glos Homes,Permanent Nursing,.,620.2, 26-Sep-2017
71,Revenue,CAHD,South Glos Users in South Glos Homes,Permanent Nursing,.,620.2, 26-Sep-2017
72,Revenue,CAHD,Bed Purchasing - North,Permanent Nursing,.,4400, 26-Sep-2017
73,Revenue,CAHD,South Glos Users in South Glos Homes,Permanent Nursing,.,1240.4, 26-Sep-2017
74,Revenue,CAHD,South Glos Users in South Glos Homes,Permanent Nursing,.,620.2, 26-Sep-2017
75,Revenue,CAHD,South Glos Users in South Glos Homes,Permanent Nursing,.,620.2, 26-Sep-2017
76,Revenue,CAHD,Bed Purchasing - Southmead Hospital,Permanent Nursing,.,3824.08, 26-Sep-2017
77,Revenue,CAHD,South Glos Users in South Glos Homes,Permanent Nursing,.,620.2, 26-Sep-2017
78,Revenue,CAHD,South Glos Users in South Glos Homes,Permanent Nursing,.,620.2, 26-Sep-2017
79,Revenue,CAHD,South Glos Users in South Glos Homes,Permanent Nursing,.,620.2, 26-Sep-2017
80,Revenue,CAHD,South Glos Users in South Glos Homes,Permanent Nursing,.,620.2, 26-Sep-2017
81,Revenue,CAHD,Bed Purchasing - North,Permanent Residential,.,3545.52, 26-Sep-2017
82,Revenue,CAHD,Bed Purchasing - North,Permanent Nursing,.,4000, 26-Sep-2017
83,Revenue,CAHD,Bed Purchasing - North,Permanent Nursing,.,2857.14, 26-Sep-2017
84,Revenue,CAHD,18-25 Year Olds,Permanent Residential,1 St Georges House,12778.2, 26-Sep-2017
85,Revenue,CAHD,18-25 Year Olds,Permanent Residential,1 St Georges House,6389.1, 26-Sep-2017
86,Revenue,CAHD,Supporting People Programme,Grants to Voluntary Bodies,1625 Independent People,14536, 01-Sep-2017
87,Revenue,CAHD,Supporting People Programme,Grants to Voluntary Bodies,1625 Independent People,14536, 29-Sep-2017
88,Revenue,CAHD,Home Care - Elderly - South,Day Care / Social Activities,3 Trees Community Support Ltd,93.4, 01-Sep-2017
89,Revenue,CAHD,Home Care - Elderly - North,Day Care / Social Activities,3 Trees Community Support Ltd,1372.98, 01-Sep-2017
90,Revenue,CAHD,Home Care - Elderly - North,Other Small Contracts,3 Trees Community Support Ltd,709.84, 01-Sep-2017
91,Revenue,CAHD,Home Care - Elderly - North,Supported Living,3 Trees Community Support Ltd,7436.55, 01-Sep-2017
92,Revenue,CAHD,Home Care - Elderly - South,Day Care / Social Activities,3 Trees Community Support Ltd,93.4, 06-Sep-2017
93,Revenue,CAHD,Home Care - Elderly - North,Day Care / Social Activities,3 Trees Community Support Ltd,1368.31, 06-Sep-2017
94,Revenue,CAHD,Home Care - Elderly - North,Other Small Contracts,3 Trees Community Support Ltd,709.84, 06-Sep-2017
95,Revenue,CAHD,Home Care - Elderly - North,Supported Living,3 Trees Community Support Ltd,7409.95, 06-Sep-2017
96,Revenue,CAHD,Home Care - Elderly - South,Day Care / Social Activities,3 Trees Community Support Ltd,93.4, 18-Sep-2017
97,Revenue,CAHD,Home Care - Elderly - North,Day Care / Social Activities,3 Trees Community Support Ltd,1242.22, 18-Sep-2017
98,Revenue,CAHD,Home Care - Elderly - North,Other Small Contracts,3 Trees Community Support Ltd,709.84, 18-Sep-2017
99,Revenue,CAHD,Home Care - Elderly - North,Supported Living,3 Trees Community Support Ltd,7444.5, 18-Sep-2017
100,Revenue,CAHD,Home Care - Elderly - South,Day Care / Social Activities,3 Trees Community Support Ltd,93.4, 20-Sep-2017
101,Revenue,CAHD,Home Care - Elderly - North,Day Care / Social Activities,3 Trees Community Support Ltd,1335.62, 20-Sep-2017
102,Revenue,CAHD,Home Care - Elderly - North,Other Small Contracts,3 Trees Community Support Ltd,765.88, 20-Sep-2017
103,Revenue,CAHD,Home Care - Elderly - North,Supported Living,3 Trees Community Support Ltd,7443.5, 20-Sep-2017
104,Revenue,CAHD,Home Care - Elderly - South,Day Care / Social Activities,3 Trees Community Support Ltd,93.4, 27-Sep-2017
105,Revenue,CAHD,Home Care - Elderly - North,Day Care / Social Activities,3 Trees Community Support Ltd,1372.98, 27-Sep-2017
106,Revenue,CAHD,Home Care - Elderly - North,Other Small Contracts,3 Trees Community Support Ltd,705.17, 27-Sep-2017
107,Revenue,CAHD,Home Care - Elderly - North,Supported Living,3 Trees Community Support Ltd,7440.63, 27-Sep-2017
108,Revenue,CAHD,18-25 Year Olds,Day Care / Social Activities,3 Trees Community Support Ltd,754.5, 07-Sep-2017
109,Revenue,CAHD,Bed Purchasing - North,Permanent Nursing,3Rd Floor  The Aspect,3179.8, 26-Sep-2017
110,Revenue,CAHD,18-25 Year Olds,Permanent Residential,5Th Floor Harlech Court,14619.64, 26-Sep-2017
111,Revenue,CAHD,18-25 Year Olds,Permanent Residential,5Th Floor Harlech Court,14760, 26-Sep-2017
112,Revenue,CAHD,18-25 Year Olds,Permanent Residential,5Th Floor Harlech Court,13130.76, 26-Sep-2017
113,Revenue,CAHD,Bed Purchasing - North,Permanent Residential,5Th Floor Harlech Court,15870.6, 26-Sep-2017
114,Revenue,CAHD,18-25 Year Olds,Permanent Residential,5Th Floor Harlech Court,17460.56, 26-Sep-2017
115,Revenue,CAHD,Bed Purchasing - North,Permanent Residential,5Th Floor Harlech Court,14104.28, 26-Sep-2017
116,Revenue,CAHD,Jointly Funded H&SC Packages,Permanent Residential,5Th Floor Harlech Court,3490.16, 26-Sep-2017
117,Revenue,CAHD,18-25 Year Olds,Permanent Residential,5Th Floor Harlech Court,16704.04, 26-Sep-2017
118,Revenue,CAHD,Bed Purchasing - South,Permanent Residential,5Th Floor Harlech Court,15973, 26-Sep-2017
119,Revenue,CAHD,Bed Purchasing - South,Permanent Residential,5Th Floor Harlech Court,9985.6, 26-Sep-2017
120,Revenue,CAHD,Bed purchasing - S28A Under 65 - South,Permanent Residential,5Th Floor Harlech Court,10450.56, 26-Sep-2017
121,Revenue,CAHD,Bed Purchasing - South,Permanent Residential,5Th Floor Harlech Court,10960.12, 26-Sep-2017
122,Revenue,CAHD,CSC - OT Equipment - Children,Daily Living Equipment,Individual,1281.25, 01-Sep-2017
123,Revenue,CAHD,Bed Purchasing - North,Permanent Nursing,ABI Development Limited,7591.84, 26-Sep-2017
124,Revenue,CAHD,Community Support - South,Preventative Assistance,Accessible Transport 4 U,936, 29-Sep-2017
125,Revenue,CAHD,Community Support - South,Preventative Assistance,Accessible Transport 4 U,624, 29-Sep-2017
126,Revenue,CAHD,Community Support - South,Preventative Assistance,Accessible Transport 4 U,603.25, 29-Sep-2017
127,Revenue,CAHD,Training - Adult Services,Training Expenses,Acorn Health & Safety Limited,465, 11-Sep-2017
128,Revenue,CAHD,Older People's Commissioned Se,Grants to Voluntary Bodies,Action for Blind People,24975, 29-Sep-2017
129,Revenue,CAHD,Home Care - Elderly - South,Supported Living,Action on Hearing Loss,750.4, 05-Sep-2017
130,Revenue,CAHD,CSC - Allowances,Membership Fees,After Adoption,4190, 25-Sep-2017
131,Revenue,CAHD,Mental Health and Emotional Wellbeing,Other Small Contracts,Age UK South Gloucestershire,13725, 29-Sep-2017
132,Revenue,CAHD,Home Care - Elderly - South,Other Small Contracts,Agincare UK Limited,2188.72, 11-Sep-2017
133,Revenue,CAHD,Home Care - Elderly - North,Day Care / Social Activities,Agincare UK Limited,187.48, 11-Sep-2017
134,Revenue,CAHD,Home Care - Elderly - North,Other Small Contracts,Agincare UK Limited,2568.04, 11-Sep-2017
135,Revenue,CAHD,Home care - Elderly MH - South,Other Small Contracts,Agincare UK Limited,65.4, 11-Sep-2017
136,Revenue,CAHD,Home Care - Elderly - South,Other Small Contracts,Agincare UK Limited,2049.2, 18-Sep-2017
137,Revenue,CAHD,Home Care - Elderly - North,Day Care / Social Activities,Agincare UK Limited,191.84, 18-Sep-2017
138,Revenue,CAHD,Home Care - Elderly - North,Other Small Contracts,Agincare UK Limited,2537.52, 18-Sep-2017
139,Revenue,CAHD,Home care - Elderly MH - South,Other Small Contracts,Agincare UK Limited,61.04, 18-Sep-2017
140,Revenue,CAHD,Extra Care Housing,Private & Voluntary Home Care,Agincare UK Limited,20536, 01-Sep-2017
141,Revenue,CAHD,Extra Care Housing,Private & Voluntary Home Care,Agincare UK Limited,20536, 29-Sep-2017
142,Revenue,CAHD,Extra Care Housing,Private & Voluntary Home Care,Agincare UK Limited,10072, 01-Sep-2017
143,Revenue,CAHD,Extra Care Housing,Private & Voluntary Home Care,Agincare UK Limited,10072, 29-Sep-2017
144,Revenue,CAHD,Prison Assessments & Costs,Other Supplies & Services,Agincare UK Limited,11709.76, 18-Sep-2017
145,Revenue,CAHD,Home Care - Elderly - South,Supported Living,Alexandra Homes (Bristol) Limited,861.12, 07-Sep-2017
146,Revenue,CAHD,Home Care - Elderly - South,Supported Living,Alexandra Homes (Bristol) Limited,753.48, 08-Sep-2017
147,Revenue,CAHD,Home Care - Elderly - South,Other Small Contracts,AliMo Care Ltd,1684.48, 07-Sep-2017
148,Revenue,CAHD,Home Care - Elderly - South,Other Small Contracts,AliMo Care Ltd,1599.36, 14-Sep-2017
149,Revenue,CAHD,Home Care - Elderly - South,Other Small Contracts,AliMo Care Ltd,1366.4, 22-Sep-2017
150,Revenue,CAHD,Mental Health and Emotional Wellbeing,Other Small Contracts,Alzheimers Society,11142.75, 29-Sep-2017
151,Revenue,CAHD,Bed Purchasing - South,Permanent Nursing,Ambleside Nusing Home,2126.16, 26-Sep-2017
152,Revenue,CAHD,Bed Purchasing - Southmead Hospital,Permanent Nursing,Amerind Grove Nursing Home,2593.6, 26-Sep-2017
153,Revenue,CAHD,Supporting People Programme,Grants to Voluntary Bodies,Anchor Housing,812.5, 01-Sep-2017
154,Revenue,CAHD,Supporting People Programme,Grants to Voluntary Bodies,Anchor Housing,812.5, 29-Sep-2017
155,Revenue,CAHD,CSC - Section 17 0-25,Preventative Assistance,Angel Care Support Limited,2964, 21-Sep-2017
156,Revenue,CAHD,CSC - Adoption Support Fund,Post Adoption,Individual,515.5, 18-Sep-2017
157,Revenue,CAHD,CSC - Safeguarding Board,Training Expenses,Individual,900, 25-Sep-2017
158,Revenue,CAHD,CSC - Safeguarding Board,Training Expenses,Individual,820, 29-Sep-2017
159,Revenue,CAHD,Schools Specific Grant Income,Other Supplies & Services,Aquaterra Leisure,1058.4, 08-Sep-2017
160,Revenue,CAHD,Bed Purchasing - North,Permanent Residential,Ark Care Homes Ltd,11036.72, 26-Sep-2017
161,Revenue,CAHD,Bed Purchasing - South,Permanent Nursing,Ash Grove House,2836.4, 26-Sep-2017
162,Revenue,CAHD,Jointly Funded H&SC Packages,Permanent Residential,Ash View House,1065.12, 26-Sep-2017
163,Revenue,CAHD,Bed Purchasing - South,Permanent Residential,Ash View House,5195.24, 26-Sep-2017
164,Revenue,CAHD,S117 Placements PCT,Permanent Residential,Ash View House,7241.6, 26-Sep-2017
165,Revenue,CAHD,18-25 Year Olds,Permanent Residential,Ash View House,6803.84, 26-Sep-2017
166,Revenue,CAHD,Section 117 Placements MH Younger,Permanent Residential,Ash View House,4719.08, 26-Sep-2017
167,Revenue,CAHD,Jointly Funded H&SC Packages,Permanent Residential,Ash View House,2022.48, 26-Sep-2017
168,Revenue,CAHD,Bed purchasing - Elderly S117 - South,Permanent Residential,Ash View House,6414.04, 26-Sep-2017
169,Revenue,CAHD,18-25 Year Olds,Permanent Residential,Ash View House,6340, 26-Sep-2017
170,Revenue,CAHD,DAT Treatment,Rent,Ashville Asset Management Limited,2327.96, 29-Sep-2017
171,Revenue,CAHD,DAT Treatment,Rent,Ashville Asset Management Limited,6159, 29-Sep-2017
172,Revenue,CAHD,Bed Purchasing - North,Permanent Residential,Aspects 2 Limited,6930.72, 26-Sep-2017
173,Revenue,CAHD,Supporting People Programme,Grants to Voluntary Bodies,Aspects and Milestones Trust,3298.58, 01-Sep-2017
174,Revenue,CAHD,Supporting People Programme,Grants to Voluntary Bodies,Aspects and Milestones Trust,1653.75, 01-Sep-2017
175,Revenue,CAHD,Supporting People Programme,Grants to Voluntary Bodies,Aspects and Milestones Trust,2014.33, 01-Sep-2017
176,Revenue,CAHD,Supporting People Programme,Grants to Voluntary Bodies,Aspects and Milestones Trust,650, 01-Sep-2017
177,Revenue,CAHD,Supporting People Programme,Grants to Voluntary Bodies,Aspects and Milestones Trust,650, 01-Sep-2017
178,Revenue,CAHD,Supporting People Programme,Grants to Voluntary Bodies,Aspects and Milestones Trust,3298.58, 29-Sep-2017
179,Revenue,CAHD,Supporting People Programme,Grants to Voluntary Bodies,Aspects and Milestones Trust,1653.75, 29-Sep-2017
180,Revenue,CAHD,Supporting People Programme,Grants to Voluntary Bodies,Aspects and Milestones Trust,2014.33, 29-Sep-2017
181,Revenue,CAHD,Supporting People Programme,Grants to Voluntary Bodies,Aspects and Milestones Trust,650, 29-Sep-2017
182,Revenue,CAHD,Supporting People Programme,Grants to Voluntary Bodies,Aspects and Milestones Trust,650, 29-Sep-2017
183,Revenue,CAHD,CSC - Care Leavers Independent Living,Adults - Family Support,Aspirations Support Bristol,507.34, 29-Sep-2017
184,Revenue,CAHD,Shared Lives,Other Supplies & Services,Ategi Limited,52705.75, 29-Sep-2017
185,Revenue,CAHD,18-25 Year Olds,Permanent Residential,Aurora Care & Education,14083.33, 14-Sep-2017
186,Revenue,CAHD,18-25 Year Olds,Permanent Residential,Aurora Care & Education,56333.33, 14-Sep-2017
187,Revenue,CAHD,Independent Special Placements - Pre 16,Other Private Contractors,Aurora Care & Education,25535.67, 15-Sep-2017
188,Revenue,CAHD,18-25 Year Olds,Permanent Residential,Aurora Care & Education,14083.33, 21-Sep-2017
189,Revenue,CAHD,Bed Purchasing - South,Permanent Residential,Autism Specialised Care Homes,6235.88, 26-Sep-2017
190,Revenue,CAHD,Children & Young People�s Health,Other Small Contracts,Avon & Wiltshire Mental Health,5000, 29-Sep-2017
191,Revenue,CAHD,Younger Adult Mental Health,Health Services (Third Party Payments),Avon & Wiltshire Mental Health,1666.67, 29-Sep-2017
192,Revenue,CAHD,Younger Adult Mental Health,Health Services (Third Party Payments),Avon & Wiltshire Mental Health,1666.67, 29-Sep-2017
193,Revenue,CAHD,South Hub Offices,"Holidays, Outings & Visits",Avon Valley Country Park,466.67, 06-Sep-2017
194,Revenue,CAHD,CSC - Vinney Green Secure Unit,Printing & Stationery,Banner UK,918.76, 28-Sep-2017
195,Revenue,CAHD,Tenancy Start Up Scheme,Other Supplies & Services,Barrie & Joanne Cook,1300, 26-Sep-2017
196,Revenue,CAHD,Pensions - Non DSG,Annual Pension,Bath & North East Somerset Council,111811.45, 29-Sep-2017
197,Revenue,CAHD,"Education, Learning and Skills",Premises Hire,Bawa Healthcare & Leisure,212.75, 06-Sep-2017
198,Revenue,CAHD,0-25 Management Team,Premises Hire,Bawa Healthcare & Leisure,212.75, 06-Sep-2017
199,Revenue,CAHD,Early Years Development,Catering,Bawa Healthcare & Leisure,1856.03, 20-Sep-2017
200,Revenue,CAHD,Early Years Development,Premises Hire,Bawa Healthcare & Leisure,675, 20-Sep-2017
201,Revenue,CAHD,Pathway 3 - (Complex Beds),Permanent Nursing,Beaufort Care Ltd,16176.06, 11-Sep-2017
202,Revenue,CAHD,South Glos Users in South Glos Homes,Permanent Nursing,Beaufort Grange Care Home,620.2, 26-Sep-2017
203,Revenue,CAHD,South Glos Users in South Glos Homes,Permanent Nursing,Beaufort Grange Care Home,620.2, 26-Sep-2017
204,Revenue,CAHD,Bed Purchasing - South,Fees & Charges Income - General,Beaufort Grange Care Home,1211.97, 26-Sep-2017
205,Revenue,CAHD,Bed Purchasing - North,Permanent Nursing,Beaufort Grange Care Home,4229.28, 26-Sep-2017
206,Revenue,CAHD,South Glos Users in South Glos Homes,Permanent Nursing,Beaufort Grange Care Home,620.2, 26-Sep-2017
207,Revenue,CAHD,South Glos Users in South Glos Homes,Permanent Nursing,Beaufort Grange Care Home,620.2, 26-Sep-2017
208,Revenue,CAHD,South Glos Users in South Glos Homes,Permanent Nursing,Beaufort Grange Care Home,620.2, 26-Sep-2017
209,Revenue,CAHD,South Glos Users in South Glos Homes,Permanent Nursing,Beaufort Grange Care Home,620.2, 26-Sep-2017
210,Revenue,CAHD,South Glos Users in South Glos Homes,Permanent Nursing,Beaufort Grange Care Home,620.2, 26-Sep-2017
211,Revenue,CAHD,South Glos Users in South Glos Homes,Permanent Nursing,Beaufort Grange Care Home,620.2, 26-Sep-2017
212,Revenue,CAHD,South Glos Users in South Glos Homes,Permanent Nursing,Beaufort Grange Care Home,620.2, 26-Sep-2017
213,Revenue,CAHD,South Glos Users in South Glos Homes,Permanent Nursing,Beaufort Grange Care Home,620.2, 26-Sep-2017
214,Revenue,CAHD,South Glos Users in South Glos Homes,Permanent Nursing,Beaufort Grange Care Home,620.2, 26-Sep-2017
215,Revenue,CAHD,South Glos Users in South Glos Homes,Permanent Nursing,Beaufort Grange Care Home,620.2, 26-Sep-2017
216,Revenue,CAHD,Bed Purchasing - Elderly S117- North,Permanent Nursing,Beaufort Grange Care Home,4673.92, 26-Sep-2017
217,Revenue,CAHD,South Glos Users in South Glos Homes,Permanent Nursing,Beaufort Grange Care Home,620.2, 26-Sep-2017
218,Revenue,CAHD,South Glos Users in South Glos Homes,Permanent Nursing,Beaufort Grange Care Home,620.2, 26-Sep-2017
219,Revenue,CAHD,South Glos Users in South Glos Homes,Permanent Nursing,Beaufort Grange Care Home,620.2, 26-Sep-2017
220,Revenue,CAHD,South Glos Users in South Glos Homes,Permanent Nursing,Beaufort Grange Care Home,620.2, 26-Sep-2017
221,Revenue,CAHD,South Glos Users in South Glos Homes,Permanent Nursing,Beaufort Grange Care Home,620.2, 26-Sep-2017
222,Revenue,CAHD,South Glos Users in South Glos Homes,Permanent Nursing,Beaufort Grange Care Home,620.2, 26-Sep-2017
223,Revenue,CAHD,Bed Purchasing - North,Permanent Residential,Beaufort House,2443.36, 26-Sep-2017
224,Revenue,CAHD,Bed Purchasing - Southmead Hospital,Permanent Residential,Beaufort House,4370, 26-Sep-2017
225,Revenue,CAHD,Bed Purchasing - Southmead Hospital,Permanent Residential,Beaufort House,2660, 26-Sep-2017
226,Revenue,CAHD,Bed Purchasing - North,Permanent Residential,Beaufort House,2464.28, 26-Sep-2017
227,Revenue,CAHD,Bed Purchasing - South,Permanent Residential,Beaufort House,2431.2, 26-Sep-2017
228,Revenue,CAHD,Bed Purchasing - South,Permanent Residential,Beaufort House,2339.4, 26-Sep-2017
229,Revenue,CAHD,Bed Purchasing - Southmead Hospital,Permanent Residential,Beaufort House,2464.28, 26-Sep-2017
230,Revenue,CAHD,Bed Purchasing - North,Permanent Residential,Beaufort House,2407.8, 26-Sep-2017
231,Revenue,CAHD,Bed Purchasing - Southmead Hospital,Permanent Residential,Beaufort House,2600, 26-Sep-2017
232,Revenue,CAHD,Bed Purchasing - North,Permanent Residential,Beaufort House,2407.8, 26-Sep-2017
233,Revenue,CAHD,Bed Purchasing - Southmead Hospital,Permanent Residential,Beaufort House,2660, 26-Sep-2017
234,Revenue,CAHD,Bed Purchasing - Southmead Hospital,Permanent Residential,Beaufort House,12442.86, 26-Sep-2017
235,Revenue,CAHD,Bed Purchasing - Southmead Hospital,Permanent Residential,Beaufort House,2600, 26-Sep-2017
236,Revenue,CAHD,Bed Purchasing - Southmead Hospital,Fees & Charges Income - General,Beaufort House,1286.88, 26-Sep-2017
237,Revenue,CAHD,Bed Purchasing - Southmead Hospital,Fees & Charges Income - General,Beaufort House,1267.67, 26-Sep-2017
238,Revenue,CAHD,Bed Purchasing - North,Permanent Residential,Beaufort House,2587.48, 26-Sep-2017
239,Revenue,CAHD,Bed Purchasing - South,Permanent Residential,Beaufort House,1300, 26-Sep-2017
240,Revenue,CAHD,Bed Purchasing - South,Permanent Residential,Beaufort House,1300, 26-Sep-2017
241,Revenue,CAHD,Bed Purchasing - Southmead Hospital,Permanent Residential,Beaufort House,2464.28, 26-Sep-2017
242,Revenue,CAHD,Bed Purchasing - Southmead Hospital,Permanent Residential,Beaufort House,2633.8, 26-Sep-2017
243,Revenue,CAHD,South Glos Users in South Glos Homes,Permanent Nursing,Beech House,620.2, 26-Sep-2017
244,Revenue,CAHD,Bed Purchasing - South,Permanent Residential,Beech House,2836.4, 26-Sep-2017
245,Revenue,CAHD,South Glos Users in South Glos Homes,Permanent Nursing,Beech House,2303.6, 26-Sep-2017
246,Revenue,CAHD,South Glos Users in South Glos Homes,Permanent Nursing,Beech House,620.2, 26-Sep-2017
247,Revenue,CAHD,South Glos Users in South Glos Homes,Permanent Nursing,Beech House,620.2, 26-Sep-2017
248,Revenue,CAHD,Bed Purchasing - North,Permanent Nursing,Beech House,2709.76, 26-Sep-2017
249,Revenue,CAHD,South Glos Users in South Glos Homes,Permanent Nursing,Beech House,620.2, 26-Sep-2017
250,Revenue,CAHD,South Glos Users in South Glos Homes,Permanent Nursing,Beech House,620.2, 26-Sep-2017
251,Revenue,CAHD,South Glos Users in South Glos Homes,Permanent Nursing,Beech House,620.2, 26-Sep-2017
252,Revenue,CAHD,Bed Purchasing - North,Permanent Nursing,Beech House,3031.04, 26-Sep-2017
253,Revenue,CAHD,South Glos Users in South Glos Homes,Permanent Nursing,Beech House,620.2, 26-Sep-2017
254,Revenue,CAHD,Bed Purchasing - North,Permanent Residential,Beech House,2836.4, 26-Sep-2017
255,Revenue,CAHD,South Glos Users in South Glos Homes,Permanent Nursing,Beech House,620.2, 26-Sep-2017
256,Revenue,CAHD,Bed Purchasing - North,Fees & Charges Income - General,Beech House,692, 26-Sep-2017
257,Revenue,CAHD,South Glos Users in South Glos Homes,Permanent Nursing,Beech House,620.2, 26-Sep-2017
258,Revenue,CAHD,South Glos Users in South Glos Homes,Permanent Nursing,Beech House,620.2, 26-Sep-2017
259,Revenue,CAHD,South Glos Users in South Glos Homes,Permanent Nursing,Beech House,620.2, 26-Sep-2017
260,Revenue,CAHD,South Glos Users in South Glos Homes,Permanent Nursing,Beech House,620.2, 26-Sep-2017
261,Revenue,CAHD,South Glos Users in South Glos Homes,Permanent Nursing,Beech House,620.2, 26-Sep-2017
262,Revenue,CAHD,South Glos Users in South Glos Homes,Permanent Nursing,Beech House,509.45, 26-Sep-2017
263,Revenue,CAHD,South Glos Users in South Glos Homes,Permanent Nursing,Beech House,620.2, 26-Sep-2017
264,Revenue,CAHD,South Glos Users in South Glos Homes,Permanent Nursing,Beech House,620.2, 26-Sep-2017
265,Revenue,CAHD,Bed Purchasing - North,Permanent Nursing,Beech House,3480, 26-Sep-2017
266,Revenue,CAHD,South Glos Users in South Glos Homes,Permanent Nursing,Beech House,620.2, 26-Sep-2017
267,Revenue,CAHD,South Glos Users in South Glos Homes,Permanent Nursing,Beech House,620.2, 26-Sep-2017
268,Revenue,CAHD,Bed Purchasing - North,Permanent Residential,Beech House,3444.2, 26-Sep-2017
269,Revenue,CAHD,Bed Purchasing - Southmead Hospital,Permanent Residential,Beech House,3680, 26-Sep-2017
270,Revenue,CAHD,South Glos Users in South Glos Homes,Permanent Nursing,Beech House,620.2, 26-Sep-2017
271,Revenue,CAHD,South Glos Users in South Glos Homes,Permanent Nursing,Beech House,930.3, 26-Sep-2017
272,Revenue,CAHD,South Glos Users in South Glos Homes,Permanent Nursing,Beech House,620.2, 26-Sep-2017
273,Revenue,CAHD,Bed Purchasing - North,Permanent Nursing,Beech House,3182.14, 26-Sep-2017
274,Revenue,CAHD,South Glos Users in South Glos Homes,Permanent Nursing,Beech House,620.2, 26-Sep-2017
275,Revenue,CAHD,Bed Purchasing - North,Permanent Nursing,Beech House,3169.68, 26-Sep-2017
276,Revenue,CAHD,South Glos Users in South Glos Homes,Permanent Nursing,Beech House,620.2, 26-Sep-2017
277,Revenue,CAHD,South Glos Users in South Glos Homes,Permanent Nursing,Beech House,620.2, 26-Sep-2017
278,Revenue,CAHD,South Glos Users in South Glos Homes,Permanent Nursing,Beech House,620.2, 26-Sep-2017
279,Revenue,CAHD,South Glos Users in South Glos Homes,Permanent Nursing,Beech House,620.2, 26-Sep-2017
280,Revenue,CAHD,South Glos Users in South Glos Homes,Permanent Nursing,Beech House,620.2, 26-Sep-2017
281,Revenue,CAHD,South Glos Users in South Glos Homes,Permanent Nursing,Beech House,620.2, 26-Sep-2017
282,Revenue,CAHD,Statemented Support Payments to OLAs,Other L.A.'s - General,Beechen Cliff School,715.65, 29-Sep-2017
283,Revenue,CAHD,Implementation of Education Commission,Consultants Fees,Best Practice Network,965, 11-Sep-2017
284,Revenue,CAHD,Implementation of Education Commission,Consultants Fees,Best Practice Network,965, 11-Sep-2017
285,Revenue,CAHD,Support ,Support ,Individual,1488, 04-Sep-2017
286,Revenue,CAHD,Home Care - Elderly - North,Other Small Contracts,Bibby Factors Bristol Limited,8035.45, 14-Sep-2017
287,Revenue,CAHD,Home Care - Elderly - North,Other Small Contracts,Bibby Factors Bristol Limited,8150.57, 14-Sep-2017
288,Revenue,CAHD,Home Care - Elderly - North,Other Small Contracts,Bibby Factors Bristol Limited,8043.96, 20-Sep-2017
289,Revenue,CAHD,Home Care - Elderly - North,Other Small Contracts,Bibby Factors Bristol Limited,8621.25, 29-Sep-2017
290,Revenue,CAHD,Home Care - Elderly - North,Other Small Contracts,Bibby Factors Bristol Limited,8420.22, 29-Sep-2017
291,Revenue,CAHD,CSC - Care Leavers Support Costs,"Provisions (Food, etc)",Big Yellow Self Storage Company Limited,1681.01, 29-Sep-2017
292,Revenue,CAHD,Bed purchasing - Elderly S117 - South,Permanent Nursing,Blossom Field,4179.8, 26-Sep-2017
293,Revenue,CAHD,South Glos Users in South Glos Homes,Permanent Nursing,Blossom Field,620.2, 26-Sep-2017
294,Revenue,CAHD,Bed Purchasing - North,Permanent Nursing,Blossom Field,3523.92, 26-Sep-2017
295,Revenue,CAHD,South Glos Users in South Glos Homes,Permanent Nursing,Blossom Field,620.2, 26-Sep-2017
296,Revenue,CAHD,South Glos Users in South Glos Homes,Permanent Nursing,Blossom Field,1107.5, 26-Sep-2017
297,Revenue,CAHD,Bed Purchasing - Elderly S117- North,Permanent Nursing,Blossom Field,3539.76, 26-Sep-2017
298,Revenue,CAHD,South Glos Users in South Glos Homes,Permanent Nursing,Blossom Field,620.2, 26-Sep-2017
299,Revenue,CAHD,South Glos Users in South Glos Homes,Permanent Nursing,Blossom Field,509.45, 26-Sep-2017
300,Revenue,CAHD,South Glos Users in South Glos Homes,Permanent Nursing,Blossom Field,620.2, 26-Sep-2017
301,Revenue,CAHD,Bed Purchasing - Southmead Hospital,Permanent Nursing,Blossom Field,4862.4, 26-Sep-2017
302,Revenue,CAHD,South Glos Users in South Glos Homes,Permanent Nursing,Blossom Field,620.2, 26-Sep-2017
303,Revenue,CAHD,South Glos Users in South Glos Homes,Permanent Nursing,Blossom Field,620.2, 26-Sep-2017
304,Revenue,CAHD,South Glos Users in South Glos Homes,Permanent Nursing,Blossom Field,620.2, 26-Sep-2017
305,Revenue,CAHD,South Glos Users in South Glos Homes,Permanent Nursing,Blossom Field,620.2, 26-Sep-2017
306,Revenue,CAHD,South Glos Users in South Glos Homes,Permanent Nursing,Blossom Field,620.2, 26-Sep-2017
307,Revenue,CAHD,South Glos Users in South Glos Homes,Permanent Nursing,Blossom Field,620.2, 26-Sep-2017
308,Revenue,CAHD,Bed Purchasing - North,Permanent Nursing,Blossom Field,1642.06, 26-Sep-2017
309,Revenue,CAHD,South Glos Users in South Glos Homes,Permanent Nursing,Blossom Field,620.2, 26-Sep-2017
310,Revenue,CAHD,South Glos Users in South Glos Homes,Permanent Nursing,Blossom Field,620.2, 26-Sep-2017
311,Revenue,CAHD,Bed purchasing - Elderly S117 - South,Permanent Nursing,Blossom Field,4468.56, 26-Sep-2017
312,Revenue,CAHD,South Glos Users in South Glos Homes,Permanent Nursing,Blossom Field,620.2, 26-Sep-2017
313,Revenue,CAHD,South Glos Users in South Glos Homes,Permanent Nursing,Blossom Field,620.2, 26-Sep-2017
314,Revenue,CAHD,Bed Purchasing - South,Permanent Nursing,Blossom Field,4229.28, 26-Sep-2017
315,Revenue,CAHD,South Glos Users in South Glos Homes,Permanent Nursing,Blossom Field,620.2, 26-Sep-2017
316,Revenue,CAHD,South Glos Users in South Glos Homes,Permanent Nursing,Blossom Field,620.2, 26-Sep-2017
317,Revenue,CAHD,South Glos Users in South Glos Homes,Permanent Nursing,Blossom Field,620.2, 26-Sep-2017
318,Revenue,CAHD,South Glos Users in South Glos Homes,Permanent Nursing,Blossom Field,620.2, 26-Sep-2017
319,Revenue,CAHD,South Glos Users in South Glos Homes,Permanent Nursing,Blossom Field,620.2, 26-Sep-2017
320,Revenue,CAHD,South Glos Users in South Glos Homes,Permanent Nursing,Blossom Field,620.2, 26-Sep-2017
321,Revenue,CAHD,South Glos Users in South Glos Homes,Permanent Nursing,Blossom Field,620.2, 26-Sep-2017
322,Revenue,CAHD,South Glos Users in South Glos Homes,Permanent Nursing,Blossom Field,620.2, 26-Sep-2017
323,Revenue,CAHD,South Glos Users in South Glos Homes,Permanent Nursing,Blossom Field,620.2, 26-Sep-2017
324,Revenue,CAHD,Bed Purchasing - North,Permanent Nursing,Blossom Field,4179.8, 26-Sep-2017
325,Revenue,CAHD,South Glos Users in South Glos Homes,Permanent Nursing,Blossom Field,620.2, 26-Sep-2017
326,Revenue,CAHD,Bed Purchasing - North,Permanent Nursing,Blossom Field,3824.08, 26-Sep-2017
327,Revenue,CAHD,South Glos Users in South Glos Homes,Permanent Nursing,Blossom Field,620.2, 26-Sep-2017
328,Revenue,CAHD,Bed Purchasing - North,Permanent Nursing,Blossom Field,3483.56, 26-Sep-2017
329,Revenue,CAHD,South Glos Users in South Glos Homes,Permanent Nursing,Blossom Field,620.2, 26-Sep-2017
330,Revenue,CAHD,South Glos Users in South Glos Homes,Permanent Nursing,Blossom Field,620.2, 26-Sep-2017
331,Revenue,CAHD,South Glos Users in South Glos Homes,Permanent Nursing,Blossom Field,1661.25, 26-Sep-2017
332,Revenue,CAHD,South Glos Users in South Glos Homes,Permanent Nursing,Blossom Field,620.2, 26-Sep-2017
333,Revenue,CAHD,South Glos Users in South Glos Homes,Permanent Nursing,Blossom Fields,620.2, 14-Sep-2017
334,Revenue,CAHD,South Glos Users in South Glos Homes,Permanent Nursing,Blossom Fields,620.2, 14-Sep-2017
335,Revenue,CAHD,Bed Purchasing - North,Permanent Nursing,Blossom Fields,1880.2, 14-Sep-2017
336,Revenue,CAHD,Bed Purchasing - North,Permanent Nursing,Blossom Fields,2688, 14-Sep-2017
337,Revenue,CAHD,CSC - Agency Fostering,Foster Parent Allowances,Blue Sky Fostering Limited,5115, 18-Sep-2017
338,Revenue,CAHD,Home Care - Elderly - South,Other Small Contracts,Bluebird Care (South Gloucestershire),288.96, 01-Sep-2017
339,Revenue,CAHD,Home Care - Elderly - North,Other Small Contracts,Bluebird Care (South Gloucestershire),318.84, 01-Sep-2017
340,Revenue,CAHD,Training - Adult Services,Training Expenses,Bob Dawson,1750, 13-Sep-2017
341,Revenue,CAHD,CSC - Vinney Green Secure Unit,"Provisions (Food, etc)",Booker Cash & Carry,655.8, 15-Sep-2017
342,Revenue,CAHD,CSC - Vinney Green Secure Unit,"Provisions (Food, etc)",Booker Cash & Carry,363.73, 15-Sep-2017
343,Revenue,CAHD,CSC - Vinney Green Secure Unit,"Provisions (Food, etc)",Booker Cash & Carry,126.59, 15-Sep-2017
344,Revenue,CAHD,Bed purchasing - S28A Under 65 - South,Permanent Residential,Bradbury House,4854.16, 26-Sep-2017
345,Revenue,CAHD,Bed Purchasing - South,Permanent Residential,Bradbury House,8375.2, 26-Sep-2017
346,Revenue,CAHD,Bed purchasing - S28A Under 65 - South,Permanent Residential,Bradbury House,7152.84, 26-Sep-2017
347,Revenue,CAHD,18-25 Year Olds,Permanent Residential,Bradbury House,9504.08, 26-Sep-2017
348,Revenue,CAHD,Bed purchasing - Elderly S117 - South,Permanent Residential,Bradbury House,8572.56, 26-Sep-2017
349,Revenue,CAHD,Jointly Funded H&SC Packages,Permanent Residential,Bradbury House,3184.96, 26-Sep-2017
350,Revenue,CAHD,Bed Purchasing - North,Permanent Residential,Bradbury House,5952.84, 26-Sep-2017
351,Revenue,CAHD,Jointly Funded H&SC Packages,Permanent Residential,Bradbury House,8223.16, 26-Sep-2017
352,Revenue,CAHD,Home Care - Elderly - North,Other Small Contracts,Bramble Home Care Limited,783.58, 20-Sep-2017
353,Revenue,CAHD,Home Care - Elderly - North,Other Small Contracts,Bramble Home Care Limited,1112.64, 25-Sep-2017
354,Revenue,CAHD,Home Care - Elderly - North,Other Small Contracts,Bramble Home Care Limited,974.4, 14-Sep-2017
355,Revenue,CAHD,Home Care - Elderly - North,Other Small Contracts,Bramble Home Care Limited,1121.76, 21-Sep-2017
356,Revenue,CAHD,Home Care - Elderly - North,Other Small Contracts,Bramble Home Care Limited,893.2, 21-Sep-2017
357,Revenue,CAHD,Home Care - Elderly - North,Other Small Contracts,Bramble Home Care Limited,733.72, 25-Sep-2017
358,Revenue,CAHD,Home Care - Elderly - North,Other Small Contracts,Bramble Home Care Limited,742.56, 25-Sep-2017
359,Revenue,CAHD,Home Care - Elderly - North,Other Small Contracts,Bramble Home Care Limited,1219.92, 25-Sep-2017
360,Revenue,CAHD,Home Care - Elderly - North,Other Small Contracts,Bramble Home Care Limited,830.96, 25-Sep-2017
361,Revenue,CAHD,Home Care - Elderly - North,Other Small Contracts,Bramble Home Care Limited,959.14, 21-Sep-2017
362,Revenue,CAHD,Home Care - Elderly - North,Other Small Contracts,Bramble Home Care Limited,1102.68, 25-Sep-2017
363,Revenue,CAHD,Home Care - Elderly - North,Other Small Contracts,Bramble Home Care Limited,940.52, 25-Sep-2017
364,Revenue,CAHD,Home Care - Elderly - North,Other Small Contracts,Bramble Home Care Limited,972.26, 21-Sep-2017
365,Revenue,CAHD,Home Care - Elderly - North,Other Small Contracts,Bramble Home Care Limited,637.56, 25-Sep-2017
366,Revenue,CAHD,Home Care - Elderly - North,Other Small Contracts,Bramble Home Care Limited,1254.4, 06-Sep-2017
367,Revenue,CAHD,Home Care - Elderly - North,Other Small Contracts,Bramble Home Care Limited,528.64, 25-Sep-2017
368,Revenue,CAHD,Home Care - Elderly - North,Other Small Contracts,Bramble Home Care Limited,949.76, 21-Sep-2017
369,Revenue,CAHD,Home Care - Elderly - North,Other Small Contracts,Bramble Home Care Limited,776.66, 25-Sep-2017
370,Revenue,CAHD,Home Care - Elderly - North,Other Small Contracts,Bramble Home Care Limited,896, 01-Sep-2017
371,Revenue,CAHD,Home Care - Elderly - North,Other Small Contracts,Bramble Home Care Limited,1121.76, 01-Sep-2017
372,Revenue,CAHD,Home Care - Elderly - North,Other Small Contracts,Bramble Home Care Limited,591.36, 25-Sep-2017
373,Revenue,CAHD,Home Care - Elderly - North,Other Small Contracts,Bramble Home Care Limited,1012.48, 01-Sep-2017
374,Revenue,CAHD,Home Care - Elderly - North,Other Small Contracts,Bramble Home Care Limited,940.8, 01-Sep-2017
375,Revenue,CAHD,Home Care - Elderly - North,Other Small Contracts,Bramble Home Care Limited,638.72, 01-Sep-2017
376,Revenue,CAHD,Home Care - Elderly - North,Other Small Contracts,Bramble Home Care Limited,609.28, 01-Sep-2017
377,Revenue,CAHD,Home Care - Elderly - North,Other Small Contracts,Bramble Home Care Limited,1003.52, 29-Sep-2017
378,Revenue,CAHD,Home Care - Elderly - North,Other Small Contracts,Bramble Home Care Limited,1112.64, 29-Sep-2017
379,Revenue,CAHD,Home Care - Elderly - North,Other Small Contracts,Bramble Home Care Limited,922.88, 29-Sep-2017
380,Revenue,CAHD,CSC - Residential Placements,Permanent Residential,Branas ISAF Ltd,19928.57, 11-Sep-2017
381,Revenue,CAHD,CSC - Residential Placements,Permanent Residential,Branas ISAF Ltd,21035.71, 11-Sep-2017
382,Revenue,CAHD,Social Lettings Agency,Fees - General,Individual,11.41, 01-Sep-2017
383,Revenue,CAHD,Social Lettings Agency,Other Supplies & Services,Individual,746.54, 01-Sep-2017
384,Revenue,CAHD,Bed Purchasing - Southmead Hospital,Permanent Residential,Bridge House Care Home,2423.08, 26-Sep-2017
385,Revenue,CAHD,Bed Purchasing - North,Permanent Residential,Bridge House Care Home,2382.12, 26-Sep-2017
386,Revenue,CAHD,Home Care - Elderly - North,Day Care / Social Activities,Bridge House Care Home,526.72, 26-Sep-2017
387,Revenue,CAHD,Bed Purchasing - Southmead Hospital,Permanent Residential,Bridge House Care Home,2464, 26-Sep-2017
388,Revenue,CAHD,Bed Purchasing - North,Permanent Residential,Bridge House Care Home,2496.04, 26-Sep-2017
389,Revenue,CAHD,Bed Purchasing - North,Permanent Residential,Bridge House Care Home,2191.8, 26-Sep-2017
390,Revenue,CAHD,Bed Purchasing - North,Permanent Residential,Bridgwater Court,10324.96, 26-Sep-2017
391,Revenue,CAHD,Health Inequalities,Other Small Contracts,Bristol & Avon Chinese Womens Group,500, 29-Sep-2017
392,Revenue,CAHD,Older People's Commissioned Se,Grants to Voluntary Bodies,Bristol Area Stroke Foundation,20093.5, 29-Sep-2017
393,Revenue,CAHD,Mental Health and Emotional Wellbeing,Project Funding,Bristol City Council,1500, 01-Sep-2017
394,Revenue,CAHD,Transport OLA Special Schools and RB,Client Transport,Bristol City Council,2977.58, 20-Sep-2017
395,Revenue,CAHD,Sexual Health,Other Small Contracts,Bristol City Council,253574.5, 14-Sep-2017
396,Revenue,CAHD,Sexual Health,Other Small Contracts,Bristol City Council,253574.5, 14-Sep-2017
397,Revenue,CAHD,Transport OLA Special Schools and RB,Client Transport,Bristol City Council,11686, 20-Sep-2017
398,Revenue,CAHD,Sexual Health,Other Small Contracts,Bristol City Council,242584.5, 27-Sep-2017
399,Revenue,CAHD,A & CL - Functional Skill 16/17,Examination Fees,Bristol City Council,1371.9, 20-Sep-2017
400,Revenue,CAHD,Placements OLA Special Schools and RB,Other L.A.'s - General,Bristol City Council - Schools,2040.58, 29-Sep-2017
401,Revenue,CAHD,Placements OLA Special Schools and RB,Other L.A.'s - General,Bristol City Council - Schools,2613, 29-Sep-2017
402,Revenue,CAHD,Placements OLA Special Schools and RB,Other L.A.'s - General,Bristol City Council - Schools,1372.67, 29-Sep-2017
403,Revenue,CAHD,Statemented Support Payments to OLAs,Other L.A.'s - General,Bristol City Council - Schools,1375.07, 29-Sep-2017
404,Revenue,CAHD,Statemented Support Payments to OLAs,Other L.A.'s - General,Bristol City Council - Schools,1093.61, 29-Sep-2017
405,Revenue,CAHD,Placements OLA Special Schools and RB,Other L.A.'s - General,Bristol City Council - Schools,2613, 29-Sep-2017
406,Revenue,CAHD,Placements OLA Special Schools and RB,Other L.A.'s - General,Bristol City Council - Schools,1328.08, 29-Sep-2017
407,Revenue,CAHD,Placements OLA Special Schools and RB,Other L.A.'s - General,Bristol City Council - Schools,1266.67, 29-Sep-2017
408,Revenue,CAHD,Placements OLA Special Schools and RB,Other L.A.'s - General,Bristol City Council - Schools,3404.67, 29-Sep-2017
409,Revenue,CAHD,Placements OLA Special Schools and RB,Other L.A.'s - General,Bristol City Council - Schools,2613, 29-Sep-2017
410,Revenue,CAHD,Statemented Support Payments to OLAs,Other L.A.'s - General,Bristol City Council - Schools,908.65, 29-Sep-2017
411,Revenue,CAHD,Placements OLA Special Schools and RB,Other L.A.'s - General,Bristol City Council - Schools,2613, 29-Sep-2017
412,Revenue,CAHD,Placements OLA Special Schools and RB,Other L.A.'s - General,Bristol City Council - Schools,1403.5, 29-Sep-2017
413,Revenue,CAHD,Placements OLA Special Schools and RB,Other L.A.'s - General,Bristol City Council - Schools,928.5, 29-Sep-2017
414,Revenue,CAHD,Placements OLA Special Schools and RB,Other L.A.'s - General,Bristol City Council - Schools,1403.5, 29-Sep-2017
415,Revenue,CAHD,Placements OLA Special Schools and RB,Other L.A.'s - General,Bristol City Council - Schools,2085.17, 29-Sep-2017
416,Revenue,CAHD,Placements OLA Special Schools and RB,Other L.A.'s - General,Bristol City Council - Schools,791.67, 29-Sep-2017
417,Revenue,CAHD,Placements OLA Special Schools and RB,Other L.A.'s - General,Bristol City Council - Schools,2613, 29-Sep-2017
418,Revenue,CAHD,Statemented Support Payments to OLAs,Other L.A.'s - General,Bristol City Council - Schools,643.28, 29-Sep-2017
419,Revenue,CAHD,Placements OLA Special Schools and RB,Other L.A.'s - General,Bristol City Council - Schools,823.17, 29-Sep-2017
420,Revenue,CAHD,Placements OLA Special Schools and RB,Other L.A.'s - General,Bristol City Council - Schools,4155.88, 29-Sep-2017
421,Revenue,CAHD,Placements OLA Special Schools and RB,Other L.A.'s - General,Bristol City Council - Schools,2613, 29-Sep-2017
422,Revenue,CAHD,Placements OLA Special Schools and RB,Other L.A.'s - General,Bristol City Council - Schools,2613, 29-Sep-2017
423,Revenue,CAHD,Placements OLA Special Schools and RB,Other L.A.'s - General,Bristol City Council - Schools,823.17, 29-Sep-2017
424,Revenue,CAHD,Placements OLA Special Schools and RB,Other L.A.'s - General,Bristol City Council - Schools,2613, 29-Sep-2017
425,Revenue,CAHD,Placements OLA Special Schools and RB,Other L.A.'s - General,Bristol City Council - Schools,2090.4, 29-Sep-2017
426,Revenue,CAHD,Placements OLA Special Schools and RB,Other L.A.'s - General,Bristol City Council - Schools,2116, 29-Sep-2017
427,Revenue,CAHD,Placements OLA Special Schools and RB,Other L.A.'s - General,Bristol City Council - Schools,2613, 29-Sep-2017
428,Revenue,CAHD,Placements OLA Special Schools and RB,Other L.A.'s - General,Bristol City Council - Schools,2907.67, 29-Sep-2017
429,Revenue,CAHD,Placements OLA Special Schools and RB,Other L.A.'s - General,Bristol City Council - Schools,897.67, 29-Sep-2017
430,Revenue,CAHD,Home Care - Elderly - North,Day Care / Social Activities,Bristol Community Links North,996.32, 26-Sep-2017
431,Revenue,CAHD,Home Care - Elderly - North,Day Care / Social Activities,Bristol Community Links North,2490.8, 26-Sep-2017
432,Revenue,CAHD,Home Care - Elderly - South,Supported Living,Bristol Houses UK Limited,657.12, 21-Sep-2017
433,Revenue,CAHD,Home Care - Elderly - South,Day Care / Social Activities,Bristol Houses UK Limited,1349.76, 21-Sep-2017
434,Revenue,CAHD,18-25 Year Olds,SU Employment Support,Britannia House,712.08, 26-Sep-2017
435,Revenue,CAHD,Home Care - Elderly - North,Day Care / Social Activities,Britannia House,949.44, 26-Sep-2017
436,Revenue,CAHD,18-25 Year Olds,Day Care / Social Activities,Britannia House,712.08, 26-Sep-2017
437,Revenue,CAHD,Home Care - Elderly - South,Supported Living,Britannia House,2209.12, 26-Sep-2017
438,Revenue,CAHD,Home Care - Elderly - North,Day Care / Social Activities,Britannia House,712.08, 26-Sep-2017
439,Revenue,CAHD,Home Care - Elderly - North,Day Care / Social Activities,Britannia House,949.44, 26-Sep-2017
440,Revenue,CAHD,Home Care - Elderly - South,Day Care / Social Activities,Britannia House,949.44, 26-Sep-2017
441,Revenue,CAHD,Home Care - Elderly - South,Day Care / Social Activities,Britannia House,712.08, 26-Sep-2017
442,Revenue,CAHD,Home Care - Elderly - South,Day Care / Social Activities,Britannia House,712.08, 26-Sep-2017
443,Revenue,CAHD,South Glos Users in South Glos Homes,Permanent Nursing,Britannia House,620.2, 26-Sep-2017
444,Revenue,CAHD,South Glos Users in South Glos Homes,Permanent Nursing,Britannia House,620.2, 26-Sep-2017
445,Revenue,CAHD,South Glos Users in South Glos Homes,Permanent Nursing,Britannia House,620.2, 26-Sep-2017
446,Revenue,CAHD,Bed Purchasing - South,Permanent Nursing,Britannia House,5609.76, 26-Sep-2017
447,Revenue,CAHD,South Glos Users in South Glos Homes,Permanent Nursing,Britannia House,620.2, 26-Sep-2017
448,Revenue,CAHD,Bed Purchasing - South,Permanent Residential,Britannia House,10988.8, 26-Sep-2017
449,Revenue,CAHD,Bed Purchasing - South,Permanent Nursing,Britannia House,5559.08, 26-Sep-2017
450,Revenue,CAHD,South Glos Users in South Glos Homes,Permanent Nursing,Britannia House,620.2, 26-Sep-2017
451,Revenue,CAHD,Bed purchasing - S28A Under 65 - South,Permanent Nursing,Britannia House,5893.56, 26-Sep-2017
452,Revenue,CAHD,South Glos Users in South Glos Homes,Permanent Nursing,Britannia House,620.2, 26-Sep-2017
453,Revenue,CAHD,Bed purchasing - S28A Under 65 - South,Permanent Residential,Britannia House,5789.24, 26-Sep-2017
454,Revenue,CAHD,Bed Purchasing - LD S28A- Over 65- South,Permanent Nursing,Britannia House,5893.56, 26-Sep-2017
455,Revenue,CAHD,South Glos Users in South Glos Homes,Permanent Nursing,Britannia House,620.2, 26-Sep-2017
456,Revenue,CAHD,Bed Purchasing - South,Permanent Residential,Britannia House,3756.88, 26-Sep-2017
457,Revenue,CAHD,Bed purchasing - S28A Under 65 - South,Permanent Residential,Britannia House,5670.48, 26-Sep-2017
458,Revenue,CAHD,Bed purchasing - S28A Under 65 - South,Permanent Residential,Britannia House,5789.04, 26-Sep-2017
459,Revenue,CAHD,Bed Purchasing - North,Permanent Nursing,Britannia House,5553.32, 26-Sep-2017
460,Revenue,CAHD,South Glos Users in South Glos Homes,Permanent Nursing,Britannia House,620.2, 26-Sep-2017
461,Revenue,CAHD,Bed purchasing - S28A Under 65 - South,Permanent Nursing,Britannia House,5893.56, 26-Sep-2017
462,Revenue,CAHD,South Glos Users in South Glos Homes,Permanent Nursing,Britannia House,620.2, 26-Sep-2017
463,Revenue,CAHD,Bed purchasing -S28A  Under 65 - North,Permanent Nursing,Britannia House,5335.52, 26-Sep-2017
464,Revenue,CAHD,Bed purchasing - S28A Under 65 - South,Permanent Residential,Britannia House,5789.04, 26-Sep-2017
465,Revenue,CAHD,Bed Purchasing - LD S28A- Over 65- South,Permanent Residential,Britannia House,5442.56, 26-Sep-2017
466,Revenue,CAHD,Bed purchasing - S28A Under 65 - South,Permanent Residential,Britannia House,9567.24, 26-Sep-2017
467,Revenue,CAHD,Supporting People Programme,Grants to Voluntary Bodies,Bromford Housing Group,14395.08, 01-Sep-2017
468,Revenue,CAHD,Supporting People Programme,Grants to Voluntary Bodies,Bromford Housing Group,14395.08, 29-Sep-2017
469,Revenue,CAHD,Pathway 1 - Re-Ablement Home Care,Private & Voluntary Home Care,Brunelcare,24132.35, 04-Sep-2017
470,Revenue,CAHD,Pathway 1 - Re-Ablement Home Care,Private & Voluntary Home Care,Brunelcare,24132.35, 12-Sep-2017
471,Revenue,CAHD,Pathway 1 - Re-Ablement Home Care,Private & Voluntary Home Care,Brunelcare,24132.35, 18-Sep-2017
472,Revenue,CAHD,Pathway 1 - Re-Ablement Home Care,Private & Voluntary Home Care,Brunelcare,24132.35, 25-Sep-2017
473,Revenue,CAHD,South Glos Users in South Glos Homes,Permanent Nursing,Brunelcare,686.65, 13-Sep-2017
474,Revenue,CAHD,South Glos Users in South Glos Homes,Permanent Nursing,Brunelcare,686.65, 13-Sep-2017
475,Revenue,CAHD,South Glos Users in South Glos Homes,Permanent Nursing,Brunelcare,686.65, 13-Sep-2017
476,Revenue,CAHD,South Glos Users in South Glos Homes,Permanent Nursing,Brunelcare,686.65, 13-Sep-2017
477,Revenue,CAHD,South Glos Users in South Glos Homes,Permanent Nursing,Brunelcare,686.65, 13-Sep-2017
478,Revenue,CAHD,South Glos Users in South Glos Homes,Permanent Nursing,Brunelcare,686.65, 13-Sep-2017
479,Revenue,CAHD,South Glos Users in South Glos Homes,Permanent Nursing,Brunelcare,686.65, 13-Sep-2017
480,Revenue,CAHD,South Glos Users in South Glos Homes,Permanent Nursing,Brunelcare,686.65, 13-Sep-2017
481,Revenue,CAHD,South Glos Users in South Glos Homes,Permanent Nursing,Brunelcare,686.65, 13-Sep-2017
482,Revenue,CAHD,South Glos Users in South Glos Homes,Permanent Nursing,Brunelcare,686.65, 13-Sep-2017
483,Revenue,CAHD,South Glos Users in South Glos Homes,Permanent Nursing,Brunelcare,686.65, 13-Sep-2017
484,Revenue,CAHD,South Glos Users in South Glos Homes,Permanent Nursing,Brunelcare,686.65, 13-Sep-2017
485,Revenue,CAHD,South Glos Users in South Glos Homes,Permanent Nursing,Brunelcare,686.65, 13-Sep-2017
486,Revenue,CAHD,South Glos Users in South Glos Homes,Permanent Nursing,Brunelcare,686.65, 13-Sep-2017
487,Revenue,CAHD,Bed purchasing - Elderly S117 - South,Permanent Nursing,Brunelcare,3516.29, 13-Sep-2017
488,Revenue,CAHD,Bed Purchasing - Elderly S117- North,Permanent Nursing,Brunelcare,3516.29, 13-Sep-2017
489,Revenue,CAHD,Bed Purchasing - Elderly S117- North,Permanent Nursing,Brunelcare,3516.29, 13-Sep-2017
490,Revenue,CAHD,Bed Purchasing - Southmead Hospital,Permanent Nursing,Brunelcare,2853.11, 13-Sep-2017
491,Revenue,CAHD,Bed Purchasing - Southmead Hospital,Permanent Nursing,Brunelcare,2749.83, 13-Sep-2017
492,Revenue,CAHD,Bed Purchasing - Southmead Hospital,Permanent Nursing,Brunelcare,2920.86, 13-Sep-2017
493,Revenue,CAHD,Bed Purchasing - Southmead Hospital,Permanent Nursing,Brunelcare,3516.29, 13-Sep-2017
494,Revenue,CAHD,Bed Purchasing - South,Permanent Nursing,Brunelcare,2913.25, 13-Sep-2017
495,Revenue,CAHD,Bed Purchasing - South,Permanent Nursing,Brunelcare,1532.55, 13-Sep-2017
496,Revenue,CAHD,Bed Purchasing - South,Permanent Nursing,Brunelcare,2703.82, 13-Sep-2017
497,Revenue,CAHD,Bed Purchasing - South,Permanent Nursing,Brunelcare,2729.15, 13-Sep-2017
498,Revenue,CAHD,Bed Purchasing - South,Respite Planned - Nursing,Brunelcare,1762.52, 13-Sep-2017
499,Revenue,CAHD,Bed Purchasing - South,Respite Planned - Nursing,Brunelcare,1898.1, 13-Sep-2017
500,Revenue,CAHD,Bed Purchasing - North,Permanent Nursing,Brunelcare,2882.6, 13-Sep-2017
501,Revenue,CAHD,Bed Purchasing - North,Permanent Nursing,Brunelcare,2847.04, 13-Sep-2017
502,Revenue,CAHD,Bed Purchasing - North,Permanent Nursing,Brunelcare,2880.21, 13-Sep-2017
503,Revenue,CAHD,Bed Purchasing - North,Permanent Nursing,Brunelcare,2920.86, 13-Sep-2017
504,Revenue,CAHD,Bed Purchasing - North,Respite Planned - Nursing,Brunelcare,3516.29, 13-Sep-2017
505,Revenue,CAHD,Pathway 2 - (Interim Beds),Permanent Nursing,Brunelcare,15608, 11-Sep-2017
506,Revenue,CAHD,Home Care - Elderly - South,Other Small Contracts,Brunelcare,2369.92, 18-Sep-2017
507,Revenue,CAHD,Home Care - Elderly - North,Other Small Contracts,Brunelcare,1111.04, 18-Sep-2017
508,Revenue,CAHD,Home Care - Elderly - South,Other Small Contracts,Brunelcare,2365.44, 20-Sep-2017
509,Revenue,CAHD,Home Care - Elderly - North,Other Small Contracts,Brunelcare,1106.56, 20-Sep-2017
510,Revenue,CAHD,Home Care - Elderly - South,Other Small Contracts,Brunelcare,2934.4, 27-Sep-2017
511,Revenue,CAHD,Home Care - Elderly - North,Other Small Contracts,Brunelcare,1200.64, 27-Sep-2017
512,Revenue,CAHD,Pathway 1 - Re-Ablement Home Care,Other Small Contracts,Brunelcare,70000, 18-Sep-2017
513,Revenue,CAHD,Woodleaze,Agency Staff (Admin/Support Staff) Pay,BS Project Services Limited,475.14, 14-Sep-2017
514,Revenue,CAHD,Woodleaze,Agency Staff (Admin/Support Staff) Pay,BS Project Services Limited,698.4, 14-Sep-2017
515,Revenue,CAHD,Woodleaze,Furniture & Fittings Loose,Bunzl Cleaning & Hygiene Supplies,950, 05-Sep-2017
516,Revenue,CAHD,Bed Purchasing - North,Permanent Nursing,Bupa Care Services  Bridge House,1762.64, 26-Sep-2017
517,Revenue,CAHD,Jointly Funded H&SC Packages,Permanent Nursing,Bupa Care Services  Bridge House,4400.48, 26-Sep-2017
518,Revenue,CAHD,South Glos Users in all other LA Homes,Permanent Nursing,Bupa Care Services  Bridge House,853.28, 26-Sep-2017
519,Revenue,CAHD,Alexandra Way,Mechanical & Electrical Maintenance,BWS Security Systems Limited,77.6, 29-Sep-2017
520,Revenue,CAHD,Woodleaze,Mechanical & Electrical Maintenance,BWS Security Systems Limited,77.6, 29-Sep-2017
521,Revenue,CAHD,CSC - Vinney Green Secure Unit,R & M by Departments,BWS Security Systems Limited,3970.85, 15-Sep-2017
522,Revenue,CAHD,LSE - Schools Priority Support,Consultants Fees,Cabot Learning Federation,1000, 29-Sep-2017
523,Revenue,CAHD,Statemented Support Payments to OLAs,Other L.A.'s - General,Cabot Learning Federation,1101.65, 29-Sep-2017
524,Revenue,CAHD,Statemented Support Payments to OLAs,Other L.A.'s - General,Cabot Learning Federation,522.65, 29-Sep-2017
525,Revenue,CAHD,Statemented Support Academies,Schools Funding,Cabot Learning Federation,667.4, 29-Sep-2017
526,Revenue,CAHD,Statemented Support Academies,Schools Funding,Cabot Learning Federation,699.57, 29-Sep-2017
527,Revenue,CAHD,Statemented Support Academies,Schools Funding,Cabot Learning Federation,8419.53, 29-Sep-2017
528,Revenue,CAHD,Statemented Support Academies,Schools Funding,Cabot Learning Federation,9431.48, 29-Sep-2017
529,Revenue,CAHD,Statemented Support Academies,Schools Funding,Cabot Learning Federation,667.4, 29-Sep-2017
530,Revenue,CAHD,Statemented Support Academies,Schools Funding,Cabot Learning Federation,667.4, 29-Sep-2017
531,Revenue,CAHD,Statemented Support Academies,Schools Funding,Cabot Learning Federation,603.07, 29-Sep-2017
532,Revenue,CAHD,Statemented Support Academies,Schools Funding,Cabot Learning Federation,538.73, 29-Sep-2017
533,Revenue,CAHD,Statemented Support Academies,Schools Funding,Cabot Learning Federation,562.86, 29-Sep-2017
534,Revenue,CAHD,Statemented Support Academies,Schools Funding,Cabot Learning Federation,562.86, 29-Sep-2017
535,Revenue,CAHD,Statemented Support Academies,Schools Funding,Cabot Learning Federation,1358.98, 29-Sep-2017
536,Revenue,CAHD,Statemented Support Academies,Schools Funding,Cabot Learning Federation,578.94, 29-Sep-2017
537,Revenue,CAHD,Statemented Support Academies,Schools Funding,Cabot Learning Federation,699.57, 29-Sep-2017
538,Revenue,CAHD,Statemented Support Academies,Schools Funding,Cabot Learning Federation,667.4, 29-Sep-2017
539,Revenue,CAHD,Statemented Support Academies,Schools Funding,Cabot Learning Federation,562.86, 29-Sep-2017
540,Revenue,CAHD,Statemented Support Academies,Schools Funding,Cabot Learning Federation,1270.53, 29-Sep-2017
541,Revenue,CAHD,Statemented Support Academies,Schools Funding,Cabot Learning Federation,546.78, 29-Sep-2017
542,Revenue,CAHD,Statemented Support Academies,Schools Funding,Cabot Learning Federation,788.03, 29-Sep-2017
543,Revenue,CAHD,Statemented Support Academies,Schools Funding,Cabot Learning Federation,659.36, 29-Sep-2017
544,Revenue,CAHD,Statemented Support Academies,Schools Funding,Cabot Learning Federation,924.73, 29-Sep-2017
545,Revenue,CAHD,Statemented Support Academies,Schools Funding,Cabot Learning Federation,836.28, 29-Sep-2017
546,Revenue,CAHD,Statemented Support Payments to OLAs,Other L.A.'s - General,Cabot Learning Federation,595.03, 29-Sep-2017
547,Revenue,CAHD,Statemented Support Academies,Schools Funding,Cabot Learning Federation,900.61, 29-Sep-2017
548,Revenue,CAHD,Statemented Support Academies,Schools Funding,Cabot Learning Federation,530.69, 29-Sep-2017
549,Revenue,CAHD,Statemented Support Academies,Schools Funding,Cabot Learning Federation,900.61, 29-Sep-2017
550,Revenue,CAHD,Statemented Support Payments to OLAs,Other L.A.'s - General,Cabot Learning Federation,1077.53, 29-Sep-2017
551,Revenue,CAHD,Statemented Support Payments to OLAs,Other L.A.'s - General,Cabot Learning Federation,586.98, 29-Sep-2017
552,Revenue,CAHD,Statemented Support Academies,Schools Funding,Cabot Learning Federation,812.15, 29-Sep-2017
553,Revenue,CAHD,Sexual Health,Other Small Contracts,Cadbury Heath Healthcare,1682.76, 07-Sep-2017
554,Revenue,CAHD,Sexual Health,Other Small Contracts,Cadbury Heath Healthcare,2093, 07-Sep-2017
555,Revenue,CAHD,EARLY YEARS DISABILITY  ACCES FUND,Preventative Assistance,Caerleon Childcare,615, 05-Sep-2017
556,Revenue,CAHD,Post 16 High Needs Placements,Other Private Contractors,Cambian Whinfell School Limited,26930.15, 22-Sep-2017
557,Revenue,CAHD,Post 16 High Needs Placements,Other Private Contractors,Cambian Whinfell School Limited,28012.92, 22-Sep-2017
558,Revenue,CAHD,Post 16 High Needs Placements,Other Private Contractors,Cambian Whinfell School Limited,28734.89, 22-Sep-2017
559,Revenue,CAHD,CSC - Residential Placements,Permanent Residential,Cambian Whinfell School Limited,34615.7, 22-Sep-2017
560,Revenue,CAHD,Post 16 High Needs Placements,Other Private Contractors,Cambian Whinfell School Limited,13622.45, 22-Sep-2017
561,Revenue,CAHD,Post 16 High Needs Placements,Other Private Contractors,Cambian Whinfell School Limited,17739.75, 22-Sep-2017
562,Revenue,CAHD,Post 16 High Needs Placements,Other Private Contractors,Cambian Whinfell School Limited,15657.35, 22-Sep-2017
563,Revenue,CAHD,Cambrian Green Day Service,Catering - Client Meals/Pupil Sch. Meals,Cambrian Court Dining,566.5, 11-Sep-2017
564,Revenue,CAHD,Cambrian Green Day Service,Catering - Client Meals/Pupil Sch. Meals,Cambrian Court Dining,511.5, 11-Sep-2017
565,Revenue,CAHD,Cambrian Green Day Service,Catering - Client Meals/Pupil Sch. Meals,Cambrian Court Dining,506, 11-Sep-2017
566,Revenue,CAHD,Home Care - Elderly - North,Day Care / Social Activities,Camphill Communities Thornbury Limited,596.3, 08-Sep-2017
567,Revenue,CAHD,Home Care - Elderly - North,Supported Living,Camphill Communities Thornbury Limited,493.95, 08-Sep-2017
568,Revenue,CAHD,Home Care - Elderly - North,Day Care / Social Activities,Camphill Communities Thornbury Limited,720.9, 14-Sep-2017
569,Revenue,CAHD,Home Care - Elderly - North,Other Small Contracts,Camphill Communities Thornbury Limited,160.2, 14-Sep-2017
570,Revenue,CAHD,Home Care - Elderly - North,Supported Living,Camphill Communities Thornbury Limited,235.85, 14-Sep-2017
571,Revenue,CAHD,Home Care - Elderly - North,Day Care / Social Activities,Camphill Communities Thornbury Limited,778.75, 22-Sep-2017
572,Revenue,CAHD,Home Care - Elderly - North,Other Small Contracts,Camphill Communities Thornbury Limited,164.65, 22-Sep-2017
573,Revenue,CAHD,Home Care - Elderly - North,Supported Living,Camphill Communities Thornbury Limited,413.85, 22-Sep-2017
574,Revenue,CAHD,Home Care - Elderly - North,Day Care / Social Activities,Camphill Communities Thornbury Limited,778.75, 29-Sep-2017
575,Revenue,CAHD,Home Care - Elderly - North,Other Small Contracts,Camphill Communities Thornbury Limited,160.2, 29-Sep-2017
576,Revenue,CAHD,Home Care - Elderly - North,Supported Living,Camphill Communities Thornbury Limited,565.15, 29-Sep-2017
577,Revenue,CAHD,Bed Purchasing - Elderly S117- North,Permanent Residential,Canjayor,2422.4, 26-Sep-2017
578,Revenue,CAHD,Home Care - Elderly - South,Other Small Contracts,Care 1st Homecare,3123.84, 18-Sep-2017
579,Revenue,CAHD,Home Care - Elderly - North,Other Small Contracts,Care 1st Homecare,4305.28, 18-Sep-2017
580,Revenue,CAHD,Home Care - Elderly - South,Other Small Contracts,Care 1st Homecare,3052.16, 20-Sep-2017
581,Revenue,CAHD,Home Care - Elderly - North,Other Small Contracts,Care 1st Homecare,4734.14, 20-Sep-2017
582,Revenue,CAHD,Home Care - Elderly - South,Other Small Contracts,Care 1st Homecare,3105.52, 21-Sep-2017
583,Revenue,CAHD,Home Care - Elderly - North,Other Small Contracts,Care 1st Homecare,4734.02, 21-Sep-2017
584,Revenue,CAHD,Home Care - Elderly - South,Other Small Contracts,Care 1st Homecare,2889.28, 27-Sep-2017
585,Revenue,CAHD,Home Care - Elderly - North,Other Small Contracts,Care 1st Homecare,5406.52, 27-Sep-2017
586,Revenue,CAHD,Home Care - Elderly - South,Other Small Contracts,Care 1st Homecare,3068.48, 27-Sep-2017
587,Revenue,CAHD,Home Care - Elderly - North,Other Small Contracts,Care 1st Homecare,5325.46, 27-Sep-2017
588,Revenue,CAHD,Home Care - Elderly - South,Other Small Contracts,Care Horizons Limited,369.6, 06-Sep-2017
589,Revenue,CAHD,Home Care - Elderly - North,Day Care / Social Activities,Care Horizons Limited,369.6, 06-Sep-2017
590,Revenue,CAHD,Home Care - Elderly - North,Other Small Contracts,Care Horizons Limited,263.34, 06-Sep-2017
591,Revenue,CAHD,Home care - Elderly MH - North,Other Small Contracts,Care Horizons Limited,207.9, 06-Sep-2017
592,Revenue,CAHD,Home Care - Elderly - South,Other Small Contracts,Care Horizons Limited,498.96, 11-Sep-2017
593,Revenue,CAHD,Home Care - Elderly - North,Day Care / Social Activities,Care Horizons Limited,364.98, 11-Sep-2017
594,Revenue,CAHD,Home Care - Elderly - North,Other Small Contracts,Care Horizons Limited,263.34, 11-Sep-2017
595,Revenue,CAHD,Home care - Elderly MH - North,Other Small Contracts,Care Horizons Limited,170.94, 11-Sep-2017
596,Revenue,CAHD,Home Care - Elderly - South,Other Small Contracts,Care Horizons Limited,572.88, 20-Sep-2017
597,Revenue,CAHD,Home Care - Elderly - North,Day Care / Social Activities,Care Horizons Limited,383.46, 20-Sep-2017
598,Revenue,CAHD,Home Care - Elderly - North,Other Small Contracts,Care Horizons Limited,147.84, 20-Sep-2017
599,Revenue,CAHD,Home care - Elderly MH - North,Other Small Contracts,Care Horizons Limited,184.8, 20-Sep-2017
600,Revenue,CAHD,Home Care - Elderly - South,Other Small Contracts,Care Horizons Limited,734.58, 27-Sep-2017
601,Revenue,CAHD,Home Care - Elderly - North,Other Small Contracts,Care Horizons Limited,207.9, 27-Sep-2017
602,Revenue,CAHD,Home care - Elderly MH - North,Other Small Contracts,Care Horizons Limited,194.04, 27-Sep-2017
603,Revenue,CAHD,Home Care - Elderly - South,Other Small Contracts,Carers R Us (Bristol) Limited,349.44, 20-Sep-2017
604,Revenue,CAHD,Home Care - Elderly - North,Other Small Contracts,Carers R Us (Bristol) Limited,2202.28, 20-Sep-2017
605,Revenue,CAHD,Home Care - Elderly - South,Other Small Contracts,Carers R Us (Bristol) Limited,349.44, 20-Sep-2017
606,Revenue,CAHD,Home Care - Elderly - North,Other Small Contracts,Carers R Us (Bristol) Limited,2234.58, 20-Sep-2017
607,Revenue,CAHD,Home Care - Elderly - South,Other Small Contracts,Carers R Us (Bristol) Limited,331.52, 27-Sep-2017
608,Revenue,CAHD,Home Care - Elderly - North,Other Small Contracts,Carers R Us (Bristol) Limited,2216.66, 27-Sep-2017
609,Revenue,CAHD,SLA Grants - Support Serv,Grants to Voluntary Bodies,Carers Support Centre,12275, 29-Sep-2017
610,Revenue,CAHD,SLA Grants - Support Serv,Grants to Voluntary Bodies,Carers Support Centre,25025, 29-Sep-2017
611,Revenue,CAHD,Health Inequalities,Other Small Contracts,Carers Support Centre,60477, 29-Sep-2017
612,Revenue,CAHD,Home Care - Elderly - South,Other Small Contracts,Caring Comes 1st Ltd,987.9, 06-Sep-2017
613,Revenue,CAHD,Home Care - Elderly - South,Other Small Contracts,Caring Comes 1st Ltd,937.95, 14-Sep-2017
614,Revenue,CAHD,Home Care - Elderly - North,Other Small Contracts,Caring Comes 1st Ltd,1087.8, 06-Sep-2017
615,Revenue,CAHD,Home Care - Elderly - South,Other Small Contracts,Caring Comes 1st Ltd,710.4, 04-Sep-2017
616,Revenue,CAHD,Home Care - Elderly - South,Other Small Contracts,Caring Comes 1st Ltd,2175.6, 04-Sep-2017
617,Revenue,CAHD,Home Care - Elderly - South,Other Small Contracts,Caring Comes 1st Ltd,1198.8, 04-Sep-2017
618,Revenue,CAHD,Home Care - Elderly - South,Other Small Contracts,Caring Comes 1st Ltd,777, 04-Sep-2017
619,Revenue,CAHD,Home Care - Elderly - South,Other Small Contracts,Caring Comes 1st Ltd,760.35, 11-Sep-2017
620,Revenue,CAHD,Home Care - Elderly - South,Other Small Contracts,Caring Comes 1st Ltd,582.75, 11-Sep-2017
621,Revenue,CAHD,Home Care - Elderly - South,Other Small Contracts,Caring Comes 1st Ltd,666, 12-Sep-2017
622,Revenue,CAHD,Home Care - Elderly - South,Other Small Contracts,Caring Comes 1st Ltd,1265.4, 12-Sep-2017
623,Revenue,CAHD,Home Care - Elderly - South,Other Small Contracts,Caring Comes 1st Ltd,1820.4, 28-Sep-2017
624,Revenue,CAHD,Home Care - Elderly - South,Other Small Contracts,Caring Comes 1st Ltd,610.5, 19-Sep-2017
625,Revenue,CAHD,Statemented Support Academies,Schools Funding,Castle School Education Trust,619.15, 29-Sep-2017
626,Revenue,CAHD,Statemented Support Academies,Schools Funding,Castle School Education Trust,812.15, 29-Sep-2017
627,Revenue,CAHD,Statemented Support Academies,Schools Funding,Castle School Education Trust,916.69, 29-Sep-2017
628,Revenue,CAHD,Statemented Support Academies,Schools Funding,Castle School Education Trust,651.32, 29-Sep-2017
629,Revenue,CAHD,Statemented Support Academies,Schools Funding,Castle School Education Trust,506.57, 29-Sep-2017
630,Revenue,CAHD,Statemented Support Academies,Schools Funding,Castle School Education Trust,1278.57, 29-Sep-2017
631,Revenue,CAHD,Statemented Support Academies,Schools Funding,Castle School Education Trust,964.94, 29-Sep-2017
632,Revenue,CAHD,Statemented Support Academies,Schools Funding,Castle School Education Trust,1045.36, 29-Sep-2017
633,Revenue,CAHD,Statemented Support Academies,Schools Funding,Castle School Education Trust,627.19, 29-Sep-2017
634,Revenue,CAHD,Statemented Support Academies,Schools Funding,Castle School Education Trust,683.48, 29-Sep-2017
635,Revenue,CAHD,Statemented Support Academies,Schools Funding,Castle School Education Trust,932.78, 29-Sep-2017
636,Revenue,CAHD,Statemented Support Academies,Schools Funding,Castle School Education Trust,675.44, 29-Sep-2017
637,Revenue,CAHD,Statemented Support Academies,Schools Funding,Castle School Education Trust,739.78, 29-Sep-2017
638,Revenue,CAHD,Statemented Support Academies,Schools Funding,Castle School Education Trust,562.86, 29-Sep-2017
639,Revenue,CAHD,Statemented Support Academies,Schools Funding,Castle School Education Trust,707.61, 29-Sep-2017
640,Revenue,CAHD,Statemented Support Academies,Schools Funding,Castle School Education Trust,844.32, 29-Sep-2017
641,Revenue,CAHD,Statemented Support Academies,Schools Funding,Castle School Education Trust,860.4, 29-Sep-2017
642,Revenue,CAHD,Statemented Support Academies,Schools Funding,Castle School Education Trust,578.94, 29-Sep-2017
643,Revenue,CAHD,Statemented Support Academies,Schools Funding,Castle School Education Trust,1125.78, 29-Sep-2017
644,Revenue,CAHD,Statemented Support Academies,Schools Funding,Castle School Education Trust,1005.15, 29-Sep-2017
645,Revenue,CAHD,Statemented Support Academies,Schools Funding,Castle School Education Trust,635.23, 29-Sep-2017
646,Revenue,CAHD,Statemented Support Academies,Schools Funding,Castle School Education Trust,675.44, 29-Sep-2017
647,Revenue,CAHD,Statemented Support Academies,Schools Funding,Castle School Education Trust,1489.04, 29-Sep-2017
648,Revenue,CAHD,Statemented Support Academies,Schools Funding,Castle School Education Trust,739.78, 29-Sep-2017
649,Revenue,CAHD,Statemented Support Academies,Schools Funding,Castle School Education Trust,667.4, 29-Sep-2017
650,Revenue,CAHD,Statemented Support Academies,Schools Funding,Castle School Education Trust,562.86, 29-Sep-2017
651,Revenue,CAHD,Statemented Support Academies,Schools Funding,Castle School Education Trust,860.4, 29-Sep-2017
652,Revenue,CAHD,Statemented Support Academies,Schools Funding,Castle School Education Trust,1093.61, 29-Sep-2017
653,Revenue,CAHD,Statemented Support Academies,Schools Funding,Castle School Education Trust,1342.9, 29-Sep-2017
654,Revenue,CAHD,Statemented Support Academies,Schools Funding,Castle School Education Trust,981.03, 29-Sep-2017
655,Revenue,CAHD,Social Lettings Agency,Fees - General,Individual,10.53, 01-Sep-2017
656,Revenue,CAHD,Social Lettings Agency,Fees & Charges Income - General,Individual,595.11, 01-Sep-2017
657,Revenue,CAHD,Social Lettings Agency,Fees - General,Individual,10.53, 29-Sep-2017
658,Revenue,CAHD,Social Lettings Agency,Fees & Charges Income - General,Individual,595.11, 29-Sep-2017
659,Revenue,CAHD,Home Care - Elderly - North,Day Care / Social Activities,Causeway House,2951.04, 26-Sep-2017
660,Revenue,CAHD,Home Care - Elderly - South,Day Care / Social Activities,Causeway House,5034.88, 26-Sep-2017
661,Revenue,CAHD,Home Care - Elderly - North,Day Care / Social Activities,Causeway House,4311.6, 26-Sep-2017
662,Revenue,CAHD,Home Care - Elderly - North,Day Care / Social Activities,Causeway House,2179.36, 26-Sep-2017
663,Revenue,CAHD,Home Care - Elderly - North,Day Care / Social Activities,Causeway House,3729.92, 26-Sep-2017
664,Revenue,CAHD,Home Care - Elderly - North,Day Care / Social Activities,Causeway House,1991.36, 26-Sep-2017
665,Revenue,CAHD,Home Care - Elderly - North,Day Care / Social Activities,Causeway House,3092.16, 26-Sep-2017
666,Revenue,CAHD,Home Care - Elderly - North,Day Care / Social Activities,Causeway House,4606.72, 26-Sep-2017
667,Revenue,CAHD,Home Care - Elderly - North,Day Care / Social Activities,Causeway House,1634.4, 26-Sep-2017
668,Revenue,CAHD,Home Care - Elderly - North,Day Care / Social Activities,Causeway House,3018.24, 26-Sep-2017
669,Revenue,CAHD,Bed Purchasing - Elderly S117- North,Permanent Nursing,Cedar Care Homes Limited,4352, 26-Sep-2017
670,Revenue,CAHD,Bed Purchasing - Elderly S117- North,Permanent Nursing,Cedar Care Homes Limited,2239.18, 26-Sep-2017
671,Revenue,CAHD,Bed Purchasing - North,Permanent Residential,Charlton House,1886.24, 26-Sep-2017
672,Revenue,CAHD,Training - Adult Services,Training Expenses,Chartered Institute of Environmental Health,800, 21-Sep-2017
673,Revenue,CAHD,Housing Needs,Training Expenses,Chartered Institute Of Housing,460, 21-Sep-2017
674,Revenue,CAHD,Home Care - Elderly - South,Other Small Contracts,Cherish Able Care Limited,1418.88, 25-Sep-2017
675,Revenue,CAHD,Home Care - Elderly - South,Other Small Contracts,Cherish Able Care Limited,9005.49, 01-Sep-2017
676,Revenue,CAHD,Home Care - Elderly - North,Other Small Contracts,Cherish Able Care Limited,2868.4, 01-Sep-2017
677,Revenue,CAHD,Home Care - Elderly - South,Other Small Contracts,Cherish Able Care Limited,8942.77, 07-Sep-2017
678,Revenue,CAHD,Home Care - Elderly - North,Other Small Contracts,Cherish Able Care Limited,2812.2, 07-Sep-2017
679,Revenue,CAHD,Home Care - Elderly - South,Other Small Contracts,Cherish Able Care Limited,8862.13, 14-Sep-2017
680,Revenue,CAHD,Home Care - Elderly - North,Other Small Contracts,Cherish Able Care Limited,3919.16, 14-Sep-2017
681,Revenue,CAHD,Home Care - Elderly - South,Other Small Contracts,Cherish Able Care Limited,8817.33, 21-Sep-2017
682,Revenue,CAHD,Home Care - Elderly - North,Other Small Contracts,Cherish Able Care Limited,3711.04, 21-Sep-2017
683,Revenue,CAHD,Home Care - Elderly - South,Other Small Contracts,Cherish Able Care Limited,8794.93, 28-Sep-2017
684,Revenue,CAHD,Home Care - Elderly - North,Other Small Contracts,Cherish Able Care Limited,4344.76, 28-Sep-2017
685,Revenue,CAHD,Bed purchasing -S28A  Under 65 - North,Permanent Residential,Chescombe Lodge,9357.8, 26-Sep-2017
686,Revenue,CAHD,CSC - LAT Placements,"Holidays, Outings & Visits",Childrens Contact Services Ltd,596.46, 26-Sep-2017
687,Revenue,CAHD,CSC - LAT Placements,"Holidays, Outings & Visits",Childrens Contact Services Ltd,423.18, 26-Sep-2017
688,Revenue,CAHD,18-25 Year Olds,Permanent Residential,Chosen Care Ltd  Citibase Watford,7689.72, 26-Sep-2017
689,Revenue,CAHD,Bed Purchasing - Elderly S117- North,Permanent Residential,Chosen Care Ltd  Citibase Watford,5060.64, 26-Sep-2017
690,Revenue,CAHD,Jointly Funded H&SC Packages,Permanent Residential,Chosen Care Ltd  Citibase Watford,5060.64, 26-Sep-2017
691,Revenue,CAHD,18-25 Year Olds,Permanent Residential,Chosen Care Ltd  Citibase Watford,6073.44, 26-Sep-2017
692,Revenue,CAHD,Bed Purchasing - Southmead Hospital,Permanent Nursing,Churchill Property Services,2249.92, 26-Sep-2017
693,Revenue,CAHD,Home Care - Elderly - South,Other Small Contracts,Cintre,261.52, 18-Sep-2017
694,Revenue,CAHD,Home Care - Elderly - North,Day Care / Social Activities,Cintre,107.41, 18-Sep-2017
695,Revenue,CAHD,Home Care - Elderly - North,Other Small Contracts,Cintre,452.99, 18-Sep-2017
696,Revenue,CAHD,Home Care - Elderly - South,Other Small Contracts,Cintre,336.24, 21-Sep-2017
697,Revenue,CAHD,Home Care - Elderly - North,Day Care / Social Activities,Cintre,112.08, 21-Sep-2017
698,Revenue,CAHD,Home Care - Elderly - North,Other Small Contracts,Cintre,406.29, 21-Sep-2017
699,Revenue,CAHD,Home Care - Elderly - South,Other Small Contracts,Cintre,186.8, 27-Sep-2017
700,Revenue,CAHD,Home Care - Elderly - North,Day Care / Social Activities,Cintre,88.73, 27-Sep-2017
701,Revenue,CAHD,Home Care - Elderly - North,Other Small Contracts,Cintre,252.18, 27-Sep-2017
702,Revenue,CAHD,Home Care - Elderly - South,Other Small Contracts,Cintre,205.48, 27-Sep-2017
703,Revenue,CAHD,Home Care - Elderly - North,Day Care / Social Activities,Cintre,102.74, 27-Sep-2017
704,Revenue,CAHD,Home Care - Elderly - North,Other Small Contracts,Cintre,373.6, 27-Sep-2017
705,Revenue,CAHD,Home Care - Elderly - South,Other Small Contracts,Cintre,373.6, 27-Sep-2017
706,Revenue,CAHD,Home Care - Elderly - North,Day Care / Social Activities,Cintre,102.74, 27-Sep-2017
707,Revenue,CAHD,Home Care - Elderly - North,Other Small Contracts,Cintre,406.29, 27-Sep-2017
708,Revenue,CAHD,Learning Difficulties,Premises Hire,Circadian Trust,518.4, 28-Sep-2017
709,Revenue,CAHD,Breakthrough and Inclusion Work,Membership Fees,Circadian Trust,720, 20-Sep-2017
710,Revenue,CAHD,MH Purchasing - Younger,Permanent Residential,Claro Homes,2207.44, 26-Sep-2017
711,Revenue,CAHD,Section 117 Placements MH Younger,Permanent Residential,Claro Homes,3406.56, 26-Sep-2017
712,Revenue,CAHD,Bed Purchasing - South,Respite Planned - Residential,Cleeve Lodge,750, 26-Sep-2017
713,Revenue,CAHD,Bed Purchasing - South,Permanent Residential,Cleeve Lodge,1232.16, 26-Sep-2017
714,Revenue,CAHD,Bed Purchasing - Southmead Hospital,Permanent Residential,Cleeve Lodge,2800, 26-Sep-2017
715,Revenue,CAHD,Bed Purchasing - South,Permanent Residential,Cleeve Lodge,2957.96, 26-Sep-2017
716,Revenue,CAHD,Bed Purchasing - South,Permanent Residential,Cleeve Lodge,2361.6, 26-Sep-2017
717,Revenue,CAHD,Bed Purchasing - South,Respite Planned - Residential,Cleeve Lodge,964.29, 26-Sep-2017
718,Revenue,CAHD,Bed Purchasing - South,Permanent Residential,Cleeve Lodge,2735.12, 26-Sep-2017
719,Revenue,CAHD,Bed Purchasing - South,Permanent Residential,Cleeve Lodge,2525.84, 26-Sep-2017
720,Revenue,CAHD,Bed Purchasing - South,Permanent Residential,Cleeve Lodge,2486.76, 26-Sep-2017
721,Revenue,CAHD,Bed Purchasing - South,Permanent Residential,Clerkenleap Barn,6079.8, 26-Sep-2017
722,Revenue,CAHD,Bed Purchasing - South,Permanent Residential,Collingwood Residential Home,2147.96, 26-Sep-2017
723,Revenue,CAHD,Bed Purchasing - Southmead Hospital,Permanent Residential,Collingwood Residential Home,2431.2, 26-Sep-2017
724,Revenue,CAHD,Bed Purchasing - South,Permanent Residential,Collingwood Residential Home,2329.92, 26-Sep-2017
725,Revenue,CAHD,Bed Purchasing - South,Permanent Residential,Collingwood Residential Home,2320, 26-Sep-2017
726,Revenue,CAHD,Bed Purchasing - Southmead Hospital,Permanent Residential,Collingwood Residential Home,2350.16, 26-Sep-2017
727,Revenue,CAHD,Bed Purchasing - South,Permanent Residential,Collingwood Residential Home,2016.16, 26-Sep-2017
728,Revenue,CAHD,Bed Purchasing - South,Permanent Nursing,Community Integrated Care,1901.96, 26-Sep-2017
729,Revenue,CAHD,Bed and Breakfast,Bed & Breakfast,Connolly & Callaghan Limited,616, 12-Sep-2017
730,Revenue,CAHD,Bed and Breakfast,Bed & Breakfast,Connolly & Callaghan Limited,455, 12-Sep-2017
731,Revenue,CAHD,Bed and Breakfast,Bed & Breakfast,Connolly & Callaghan Limited,462, 14-Sep-2017
732,Revenue,CAHD,Bed and Breakfast,Bed & Breakfast,Connolly & Callaghan Limited,623, 04-Sep-2017
733,Revenue,CAHD,Bed and Breakfast,Bed & Breakfast,Connolly & Callaghan Limited,462, 04-Sep-2017
734,Revenue,CAHD,Bed and Breakfast,Bed & Breakfast,Connolly & Callaghan Limited,616, 13-Sep-2017
735,Revenue,CAHD,Bed and Breakfast,Bed & Breakfast,Connolly & Callaghan Limited,455, 04-Sep-2017
736,Revenue,CAHD,Bed and Breakfast,Bed & Breakfast,Connolly & Callaghan Limited,490, 04-Sep-2017
737,Revenue,CAHD,Bed and Breakfast,Bed & Breakfast,Connolly & Callaghan Limited,490, 04-Sep-2017
738,Revenue,CAHD,Bed and Breakfast,Bed & Breakfast,Connolly & Callaghan Limited,455, 13-Sep-2017
739,Revenue,CAHD,Bed and Breakfast,Bed & Breakfast,Connolly & Callaghan Limited,455, 05-Sep-2017
740,Revenue,CAHD,Bed and Breakfast,Bed & Breakfast,Connolly & Callaghan Limited,455, 04-Sep-2017
741,Revenue,CAHD,Bed and Breakfast,Bed & Breakfast,Connolly & Callaghan Limited,791, 05-Sep-2017
742,Revenue,CAHD,Bed and Breakfast,Bed & Breakfast,Connolly & Callaghan Limited,721, 04-Sep-2017
743,Revenue,CAHD,Bed and Breakfast,Bed & Breakfast,Connolly & Callaghan Limited,623, 18-Sep-2017
744,Revenue,CAHD,Bed and Breakfast,Bed & Breakfast,Connolly & Callaghan Limited,539, 18-Sep-2017
745,Revenue,CAHD,Bed and Breakfast,Bed & Breakfast,Connolly & Callaghan Limited,455, 18-Sep-2017
746,Revenue,CAHD,Bed and Breakfast,Bed & Breakfast,Connolly & Callaghan Limited,490, 18-Sep-2017
747,Revenue,CAHD,Bed and Breakfast,Bed & Breakfast,Connolly & Callaghan Limited,490, 18-Sep-2017
748,Revenue,CAHD,Bed and Breakfast,Bed & Breakfast,Connolly & Callaghan Limited,455, 18-Sep-2017
749,Revenue,CAHD,Bed and Breakfast,Bed & Breakfast,Connolly & Callaghan Limited,455, 18-Sep-2017
750,Revenue,CAHD,Bed and Breakfast,Bed & Breakfast,Connolly & Callaghan Limited,455, 18-Sep-2017
751,Revenue,CAHD,Bed and Breakfast,Bed & Breakfast,Connolly & Callaghan Limited,791, 18-Sep-2017
752,Revenue,CAHD,Bed and Breakfast,Bed & Breakfast,Connolly & Callaghan Limited,721, 18-Sep-2017
753,Revenue,CAHD,Bed and Breakfast,Bed & Breakfast,Connolly & Callaghan Limited,539, 22-Sep-2017
754,Revenue,CAHD,Bed and Breakfast,Bed & Breakfast,Connolly & Callaghan Limited,455, 22-Sep-2017
755,Revenue,CAHD,Bed and Breakfast,Bed & Breakfast,Connolly & Callaghan Limited,490, 22-Sep-2017
756,Revenue,CAHD,Bed and Breakfast,Bed & Breakfast,Connolly & Callaghan Limited,455, 21-Sep-2017
757,Revenue,CAHD,Bed and Breakfast,Bed & Breakfast,Connolly & Callaghan Limited,455, 22-Sep-2017
758,Revenue,CAHD,Bed and Breakfast,Bed & Breakfast,Connolly & Callaghan Limited,791, 21-Sep-2017
759,Revenue,CAHD,Bed and Breakfast,Bed & Breakfast,Connolly & Callaghan Limited,721, 22-Sep-2017
760,Revenue,CAHD,Bed and Breakfast,Bed & Breakfast,Connolly & Callaghan Limited,532, 27-Sep-2017
761,Revenue,CAHD,Bed and Breakfast,Bed & Breakfast,Connolly & Callaghan Limited,455, 27-Sep-2017
762,Revenue,CAHD,Bed and Breakfast,Bed & Breakfast,Connolly & Callaghan Limited,490, 27-Sep-2017
763,Revenue,CAHD,Bed and Breakfast,Bed & Breakfast,Connolly & Callaghan Limited,455, 27-Sep-2017
764,Revenue,CAHD,Bed and Breakfast,Bed & Breakfast,Connolly & Callaghan Limited,490, 27-Sep-2017
765,Revenue,CAHD,Bed and Breakfast,Bed & Breakfast,Connolly & Callaghan Limited,455, 27-Sep-2017
766,Revenue,CAHD,Bed and Breakfast,Bed & Breakfast,Connolly & Callaghan Limited,791, 27-Sep-2017
767,Revenue,CAHD,Bed and Breakfast,Bed & Breakfast,Connolly & Callaghan Limited,721, 27-Sep-2017
768,Revenue,CAHD,Bed and Breakfast,Bed & Breakfast,Connolly & Callaghan Limited,539, 27-Sep-2017
769,Revenue,CAHD,Bed and Breakfast,Bed & Breakfast,Connolly & Callaghan Limited,532, 29-Sep-2017
770,Revenue,CAHD,Bed and Breakfast,Bed & Breakfast,Connolly & Callaghan Limited,539, 29-Sep-2017
771,Revenue,CAHD,Bed and Breakfast,Bed & Breakfast,Connolly & Callaghan Limited,455, 29-Sep-2017
772,Revenue,CAHD,Bed and Breakfast,Bed & Breakfast,Connolly & Callaghan Limited,490, 29-Sep-2017
773,Revenue,CAHD,Bed and Breakfast,Bed & Breakfast,Connolly & Callaghan Limited,455, 29-Sep-2017
774,Revenue,CAHD,Bed and Breakfast,Bed & Breakfast,Connolly & Callaghan Limited,490, 29-Sep-2017
775,Revenue,CAHD,Bed and Breakfast,Bed & Breakfast,Connolly & Callaghan Limited,581, 29-Sep-2017
776,Revenue,CAHD,Bed and Breakfast,Bed & Breakfast,Connolly & Callaghan Limited,721, 29-Sep-2017
777,Revenue,CAHD,Bed Purchasing - North,Permanent Residential,Cream Iii Ltd,10650.86, 26-Sep-2017
778,Revenue,CAHD,Bed Purchasing - North,Permanent Residential,Cream Iii Ltd,8284, 26-Sep-2017
779,Revenue,CAHD,Bed Purchasing - North,Respite Planned - Residential,Cream Iii Ltd,887.57, 26-Sep-2017
780,Revenue,CAHD,Bed Purchasing - North,Respite Planned - Residential,Cream Iii Ltd,887.57, 26-Sep-2017
781,Revenue,CAHD,Bed purchasing -S28A  Under 65 - North,Permanent Residential,Creedy Court,10156.6, 26-Sep-2017
782,Revenue,CAHD,Bed Purchasing - S28A - Over 65- North,Permanent Residential,Creedy Court,8534.04, 26-Sep-2017
783,Revenue,CAHD,Bed Purchasing - North,Permanent Residential,Creedy Court,13468.68, 26-Sep-2017
784,Revenue,CAHD,Independent Special Placements - Pre 16,Other Private Contractors,Cruckton Hall School,39234, 14-Sep-2017
785,Revenue,CAHD,Telecare,Other Supplies & Services,CSL Dualcom,494, 26-Sep-2017
786,Revenue,CAHD,Brokerage and Information Service,Grants to Voluntary Bodies,Curo Care & Support,31445, 29-Sep-2017
787,Revenue,CAHD,Public Health Project Funding - OffSH,Consultants Fees,D Harvey Consulting Limited,1252.8, 06-Sep-2017
788,Revenue,CAHD,Public Health Project Funding - OffSH,Consultants Fees,D Harvey Consulting Limited,1077.8, 06-Sep-2017
789,Revenue,CAHD,Public Health Project Funding - OffSH,Consultants Fees,D Harvey Consulting Limited,902.8, 06-Sep-2017
790,Revenue,CAHD,Public Health Project Funding - OffSH,Consultants Fees,D Harvey Consulting Limited,1266.7, 14-Sep-2017
791,Revenue,CAHD,Bed Purchasing - South,Permanent Residential,Daneswood,11757.84, 26-Sep-2017
792,Revenue,CAHD,Home Care - Elderly - South,Day Care / Social Activities,Daneswood,1354.56, 26-Sep-2017
793,Revenue,CAHD,Bed Purchasing - North,Permanent Residential,Daneswood,9836.56, 26-Sep-2017
794,Revenue,CAHD,Bed Purchasing - Elderly S117- North,Permanent Nursing,Danshell Healthcare Group,10419.44, 26-Sep-2017
795,Revenue,CAHD,Jointly Funded H&SC Packages,Permanent Nursing,Danshell Healthcare Group,1546.12, 26-Sep-2017
796,Revenue,CAHD,Learning Difficulties PSL,Other Supplies & Services,Individual,2105.5, 22-Sep-2017
797,Revenue,CAHD,Children Centres - North Locality,Printing & Stationery,De Lage Landen Leasing Ltd,1117.22, 25-Sep-2017
798,Revenue,CAHD,Children Centres - South Locality,Printing & Stationery,De Lage Landen Leasing Ltd,1117.23, 25-Sep-2017
799,Revenue,CAHD,Children Centres - North Locality,Printing & Stationery,De Lage Landen Leasing Ltd,1117.23, 11-Sep-2017
800,Revenue,CAHD,Children Centres - South Locality,Printing & Stationery,De Lage Landen Leasing Ltd,1117.22, 11-Sep-2017
801,Revenue,CAHD,SLA Grants - Support Serv,Grants to Voluntary Bodies,Individual,500, 29-Sep-2017
802,Revenue,CAHD,Home Care - Elderly - South,Supported Living,Design House,2746.28, 26-Sep-2017
803,Revenue,CAHD,Home Care - Elderly - South,Supported Living,Design House,2935.76, 26-Sep-2017
804,Revenue,CAHD,Home Care - Elderly - South,Supported Living,Design House,3002.6, 26-Sep-2017
805,Revenue,CAHD,Home Care - Elderly - South,Supported Living,Design House,2868.88, 26-Sep-2017
806,Revenue,CAHD,18-25 Year Olds,Supported Living,Design House,1599.92, 26-Sep-2017
807,Revenue,CAHD,Home Care - Elderly - North,Day Care / Social Activities,Design House,2339.44, 26-Sep-2017
808,Revenue,CAHD,Home Care - Elderly - South,Day Care / Social Activities,Design House,1471.6, 26-Sep-2017
809,Revenue,CAHD,Home Care - Elderly - South,Supported Living,Design House,2528.96, 26-Sep-2017
810,Revenue,CAHD,Home Care - Elderly - South,Supported Living,Design House,2528.96, 26-Sep-2017
811,Revenue,CAHD,Home Care - Elderly - South,Supported Living,Design House,1648.36, 26-Sep-2017
812,Revenue,CAHD,Home Care - Elderly - South,Supported Living,Design House,2060, 26-Sep-2017
813,Revenue,CAHD,Home Care - Elderly - South,Supported Living,Design House,1817.72, 26-Sep-2017
814,Revenue,CAHD,Home Care - Elderly - South,Supported Living,Design House,2412, 26-Sep-2017
815,Revenue,CAHD,Home Care - Elderly - South,Supported Living,Design House,4128.16, 26-Sep-2017
816,Revenue,CAHD,Home Care - Elderly - South,Supported Living,Design House,2927.36, 26-Sep-2017
817,Revenue,CAHD,Home Care - Elderly - South,Day Care / Social Activities,Design House,1431.6, 26-Sep-2017
818,Revenue,CAHD,Home Care - Elderly - South,Supported Living,Design House,2779.72, 26-Sep-2017
819,Revenue,CAHD,Home Care - Elderly - South,Supported Living,Design House,2829.88, 26-Sep-2017
820,Revenue,CAHD,Home Care - Elderly - South,Supported Living,Design House,2163.68, 26-Sep-2017
821,Revenue,CAHD,Home Care - Elderly - South,Supported Living,Design House,1817.72, 26-Sep-2017
822,Revenue,CAHD,Home Care - Elderly - South,Supported Living,Design House,2163.68, 26-Sep-2017
823,Revenue,CAHD,Bed Purchasing - South,Permanent Residential,Devon & Cornwall Autistic Community Trus,9526.04, 26-Sep-2017
824,Revenue,CAHD,Home Care - Elderly - South,Other Small Contracts,Dhek Bhal,599.76, 20-Sep-2017
825,Revenue,CAHD,Home Care - Elderly - North,Other Small Contracts,Dhek Bhal,40.32, 20-Sep-2017
826,Revenue,CAHD,Home Care - Elderly - South,Other Small Contracts,Dhek Bhal,544.32, 20-Sep-2017
827,Revenue,CAHD,Home Care - Elderly - North,Other Small Contracts,Dhek Bhal,40.32, 20-Sep-2017
828,Revenue,CAHD,Home Care - Elderly - South,Other Small Contracts,Dhek Bhal,604.8, 20-Sep-2017
829,Revenue,CAHD,Home Care - Elderly - North,Other Small Contracts,Dhek Bhal,40.32, 20-Sep-2017
830,Revenue,CAHD,Home Care - Elderly - South,Other Small Contracts,Dhek Bhal,509.04, 27-Sep-2017
831,Revenue,CAHD,Home Care - Elderly - North,Other Small Contracts,Dhek Bhal,40.32, 27-Sep-2017
832,Revenue,CAHD,Health Inequalities,Other Small Contracts,Dhek Bhal,500, 29-Sep-2017
833,Revenue,CAHD,Bed Purchasing - South,Permanent Residential,Dimensions  Suite 2,5396.28, 26-Sep-2017
834,Revenue,CAHD,Bed Purchasing - South,Permanent Residential,Dimensions  Suite 2,14791.04, 26-Sep-2017
835,Revenue,CAHD,Bed Purchasing - South,Permanent Residential,Dimensions  Suite 2,13558.24, 26-Sep-2017
836,Revenue,CAHD,Bed Purchasing - South,Permanent Residential,Dimensions  Suite 2,2689.28, 26-Sep-2017
837,Revenue,CAHD,Home Care - Elderly - North,Supported Living,Dimensions Suite 2,1823.24, 26-Sep-2017
838,Revenue,CAHD,Home Care - Elderly - South,Supported Living,Dimensions Suite 2,1823.24, 26-Sep-2017
839,Revenue,CAHD,Home Care - Elderly - South,Supported Living,Dimensions Suite 2,1823.24, 26-Sep-2017
840,Revenue,CAHD,Home Care - Elderly - South,Supported Living,Dimensions Suite 2,1823.24, 26-Sep-2017
841,Revenue,CAHD,Home Care - Elderly - North,Supported Living,Dimensions Suite 2,1823.24, 26-Sep-2017
842,Revenue,CAHD,Home Care - Elderly - South,Day Care / Social Activities,DoCare Ltd,72.38, 11-Sep-2017
843,Revenue,CAHD,Home Care - Elderly - South,Other Small Contracts,DoCare Ltd,1361.68, 11-Sep-2017
844,Revenue,CAHD,Home Care - Elderly - North,Other Small Contracts,DoCare Ltd,6055.18, 11-Sep-2017
845,Revenue,CAHD,Home Care - Elderly - South,Day Care / Social Activities,DoCare Ltd,67.21, 18-Sep-2017
846,Revenue,CAHD,Home Care - Elderly - South,Other Small Contracts,DoCare Ltd,1066.99, 18-Sep-2017
847,Revenue,CAHD,Home Care - Elderly - North,Other Small Contracts,DoCare Ltd,5932.63, 18-Sep-2017
848,Revenue,CAHD,Home Care - Elderly - South,Day Care / Social Activities,DoCare Ltd,62.04, 27-Sep-2017
849,Revenue,CAHD,Home Care - Elderly - South,Other Small Contracts,DoCare Ltd,1025.63, 27-Sep-2017
850,Revenue,CAHD,Home Care - Elderly - North,Other Small Contracts,DoCare Ltd,6118.24, 27-Sep-2017
851,Revenue,CAHD,Home Care - Elderly - South,Day Care / Social Activities,DoCare Ltd,72.38, 27-Sep-2017
852,Revenue,CAHD,Home Care - Elderly - South,Other Small Contracts,DoCare Ltd,844.68, 27-Sep-2017
853,Revenue,CAHD,Home Care - Elderly - North,Other Small Contracts,DoCare Ltd,5969.4, 27-Sep-2017
854,Revenue,CAHD,Statemented Support Academies,Schools Funding,Downend School,562.86, 29-Sep-2017
855,Revenue,CAHD,Statemented Support Academies,Schools Funding,Downend School,948.86, 29-Sep-2017
856,Revenue,CAHD,Statemented Support Academies,Schools Funding,Downend School,554.82, 29-Sep-2017
857,Revenue,CAHD,Statemented Support Academies,Schools Funding,Downend School,570.9, 29-Sep-2017
858,Revenue,CAHD,Statemented Support Academies,Schools Funding,Downend School,972.98, 29-Sep-2017
859,Revenue,CAHD,Statemented Support Academies,Schools Funding,Downend School,643.28, 29-Sep-2017
860,Revenue,CAHD,Statemented Support Academies,Schools Funding,Downend School,603.07, 29-Sep-2017
861,Revenue,CAHD,Statemented Support Academies,Schools Funding,Downend School,562.86, 29-Sep-2017
862,Revenue,CAHD,Statemented Support Academies,Schools Funding,Downend School,562.86, 29-Sep-2017
863,Revenue,CAHD,Social Lettings Agency,Other Supplies & Services,Individual,605.64, 22-Sep-2017
864,Revenue,CAHD,Bed Purchasing - Southmead Hospital,Permanent Nursing,Drakes Court,11860.71, 26-Sep-2017
865,Revenue,CAHD,Bed Purchasing - Southmead Hospital,Permanent Nursing,Drakes Court,2700, 26-Sep-2017
866,Revenue,CAHD,Bed Purchasing - Southmead Hospital,Fees & Charges Income - General,Drakes Court,1366.23, 26-Sep-2017
867,Revenue,CAHD,Bed Purchasing - Southmead Hospital,Fees & Charges Income - General,Drakes Court,2343.27, 26-Sep-2017
868,Revenue,CAHD,Bed Purchasing - North,Permanent Nursing,Drakes Court,2288.92, 26-Sep-2017
869,Revenue,CAHD,South Glos Users in South Glos Homes,Permanent Nursing,Drakes Court,620.2, 26-Sep-2017
870,Revenue,CAHD,Bed Purchasing - Southmead Hospital,Permanent Nursing,Drakes Court,2780, 26-Sep-2017
871,Revenue,CAHD,South Glos Users in South Glos Homes,Permanent Nursing,Drakes Court,620.2, 26-Sep-2017
872,Revenue,CAHD,Bed Purchasing - North,Permanent Nursing,Drakes Court,2700, 26-Sep-2017
873,Revenue,CAHD,Bed Purchasing - North,Fees & Charges Income - General,Drakes Court,1440.54, 26-Sep-2017
874,Revenue,CAHD,Bed Purchasing - Southmead Hospital,Permanent Nursing,Drakes Court,1945.28, 26-Sep-2017
875,Revenue,CAHD,South Glos Users in South Glos Homes,Permanent Nursing,Drakes Court,620.2, 26-Sep-2017
876,Revenue,CAHD,Bed Purchasing - South,Permanent Nursing,Drakes Court,2780, 26-Sep-2017
877,Revenue,CAHD,South Glos Users in South Glos Homes,Permanent Nursing,Drakes Court,620.2, 26-Sep-2017
878,Revenue,CAHD,Bed Purchasing - North,Respite Planned - Nursing,Drakes Court,2735.12, 26-Sep-2017
879,Revenue,CAHD,South Glos Users in South Glos Homes,Permanent Nursing,Drakes Court,620.2, 26-Sep-2017
880,Revenue,CAHD,South Glos Users in South Glos Homes,Permanent Nursing,Drakes Court,620.2, 26-Sep-2017
881,Revenue,CAHD,South Glos Users in South Glos Homes,Permanent Nursing,Drakes Court,3610.45, 26-Sep-2017
882,Revenue,CAHD,South Glos Users in South Glos Homes,Permanent Nursing,Drakes Court,620.2, 26-Sep-2017
883,Revenue,CAHD,Bed Purchasing - North,Fees & Charges Income - General,Drakes Court,553.39, 26-Sep-2017
884,Revenue,CAHD,Bed Purchasing - North,Permanent Nursing,Drakes Court,1945.28, 26-Sep-2017
885,Revenue,CAHD,Bed Purchasing - Southmead Hospital,Permanent Nursing,Drakes Court,1945.28, 26-Sep-2017
886,Revenue,CAHD,South Glos Users in South Glos Homes,Permanent Nursing,Drakes Court,620.2, 26-Sep-2017
887,Revenue,CAHD,South Glos Users in South Glos Homes,Permanent Nursing,Drakes Court,1639.1, 26-Sep-2017
888,Revenue,CAHD,South Glos Users in South Glos Homes,Permanent Nursing,Drakes Court,620.2, 26-Sep-2017
889,Revenue,CAHD,South Glos Users in South Glos Homes,Permanent Nursing,Drakes Court,3610.45, 26-Sep-2017
890,Revenue,CAHD,South Glos Users in South Glos Homes,Permanent Nursing,Drakes Court,1919.64, 26-Sep-2017
891,Revenue,CAHD,South Glos Users in South Glos Homes,Permanent Nursing,Drakes Court,620.2, 26-Sep-2017
892,Revenue,CAHD,Bed Purchasing - North,Permanent Residential,Drakes Court,1886.24, 26-Sep-2017
893,Revenue,CAHD,Bed Purchasing - North,Permanent Nursing,Drakes Court,2283.32, 26-Sep-2017
894,Revenue,CAHD,South Glos Users in South Glos Homes,Permanent Nursing,Drakes Court,620.2, 26-Sep-2017
895,Revenue,CAHD,Bed Purchasing - North,Permanent Nursing,Drakes Court,2633.8, 26-Sep-2017
896,Revenue,CAHD,South Glos Users in South Glos Homes,Permanent Nursing,Drakes Court,620.2, 26-Sep-2017
897,Revenue,CAHD,South Glos Users in South Glos Homes,Permanent Nursing,Drakes Court,620.2, 26-Sep-2017
898,Revenue,CAHD,South Glos Users in South Glos Homes,Permanent Nursing,Drakes Court,620.2, 26-Sep-2017
899,Revenue,CAHD,South Glos Users in South Glos Homes,Permanent Nursing,Drakes Court,620.2, 26-Sep-2017
900,Revenue,CAHD,South Glos Users in South Glos Homes,Permanent Nursing,Drakes Court,620.2, 26-Sep-2017
901,Revenue,CAHD,MH Purchasing - Younger,Permanent Residential,Dunraven House,2272.96, 26-Sep-2017
902,Revenue,CAHD,Bed and Breakfast,Bed & Breakfast,Individual,420, 21-Sep-2017
903,Revenue,CAHD,Bed and Breakfast,Bed & Breakfast,Individual,420, 04-Sep-2017
904,Revenue,CAHD,Bed and Breakfast,Bed & Breakfast,Individual,546, 11-Sep-2017
905,Revenue,CAHD,Bed and Breakfast,Bed & Breakfast,Individual,774, 11-Sep-2017
906,Revenue,CAHD,Bed and Breakfast,Bed & Breakfast,Individual,584, 11-Sep-2017
907,Revenue,CAHD,Bed and Breakfast,Bed & Breakfast,Individual,602, 20-Sep-2017
908,Revenue,CAHD,Bed and Breakfast,Bed & Breakfast,Individual,530, 20-Sep-2017
909,Revenue,CAHD,Bed Purchasing - North,Permanent Residential,East Court,2648.48, 26-Sep-2017
910,Revenue,CAHD,Minor Adaptations Service,Operational Equipment,Eastman & Co (Timber) Limited,1011.98, 15-Sep-2017
911,Revenue,CAHD,CSC - Corporate Parenting,Other Supplies & Services,Edge Church International,2120, 20-Sep-2017
912,Revenue,CAHD,CSC - Corporate Parenting,Other Supplies & Services,Edge Church International,2120, 20-Sep-2017
913,Revenue,CAHD,Bed Purchasing - Southmead Hospital,Permanent Residential,Edgecumbe Lodge,2072, 26-Sep-2017
914,Revenue,CAHD,Bed Purchasing - South,Permanent Residential,Edgecumbe Lodge,2140, 26-Sep-2017
915,Revenue,CAHD,Bed Purchasing - Southmead Hospital,Permanent Residential,Edgecumbe Lodge,2431.2, 26-Sep-2017
916,Revenue,CAHD,Bed Purchasing - South,Permanent Residential,Edgecumbe Lodge,2156.24, 26-Sep-2017
917,Revenue,CAHD,Bed Purchasing - North,Permanent Residential,Edgecumbe Lodge,2320.48, 26-Sep-2017
918,Revenue,CAHD,Bed Purchasing - South,Permanent Residential,Edgecumbe Lodge,2400, 26-Sep-2017
919,Revenue,CAHD,Bed Purchasing - South,Permanent Residential,Edgecumbe Lodge,2156.24, 26-Sep-2017
920,Revenue,CAHD,Bed Purchasing - South,Permanent Residential,Edgecumbe Lodge,2431.2, 26-Sep-2017
921,Revenue,CAHD,Bed Purchasing - South,Permanent Residential,Edgecumbe Lodge,2400, 26-Sep-2017
922,Revenue,CAHD,Bed Purchasing - Southmead Hospital,Permanent Residential,Edgecumbe Lodge,2431.2, 26-Sep-2017
923,Revenue,CAHD,Bed Purchasing - North,Permanent Residential,Edgecumbe Lodge,2156.24, 26-Sep-2017
924,Revenue,CAHD,Bed Purchasing - South,Permanent Residential,Edgemont House Ltd,2228.6, 26-Sep-2017
925,Revenue,CAHD,Bed Purchasing - Southmead Hospital,Permanent Residential,Edgemont House Ltd,1879.2, 26-Sep-2017
926,Revenue,CAHD,Bed Purchasing - South,Permanent Residential,Edgemont House Ltd,2188.08, 26-Sep-2017
927,Revenue,CAHD,Bed Purchasing - South,Permanent Residential,Edgemont House Ltd,2013.32, 26-Sep-2017
928,Revenue,CAHD,South Glos Users in South Glos Homes,Permanent Nursing,Edgemont View Nursing Home,620.2, 26-Sep-2017
929,Revenue,CAHD,South Glos Users in South Glos Homes,Permanent Nursing,Edgemont View Nursing Home,620.2, 26-Sep-2017
930,Revenue,CAHD,South Glos Users in South Glos Homes,Permanent Nursing,Edgemont View Nursing Home,620.2, 26-Sep-2017
931,Revenue,CAHD,South Glos Users in South Glos Homes,Permanent Nursing,Edgemont View Nursing Home,620.2, 26-Sep-2017
932,Revenue,CAHD,Bed Purchasing - South,Permanent Nursing,Edgemont View Nursing Home,2917.44, 26-Sep-2017
933,Revenue,CAHD,South Glos Users in South Glos Homes,Permanent Nursing,Edgemont View Nursing Home,620.2, 26-Sep-2017
934,Revenue,CAHD,South Glos Users in South Glos Homes,Permanent Nursing,Edgemont View Nursing Home,620.2, 26-Sep-2017
935,Revenue,CAHD,South Glos Users in South Glos Homes,Permanent Nursing,Edgemont View Nursing Home,620.2, 26-Sep-2017
936,Revenue,CAHD,South Glos Users in South Glos Homes,Permanent Nursing,Edgemont View Nursing Home,620.2, 26-Sep-2017
937,Revenue,CAHD,South Glos Users in South Glos Homes,Permanent Nursing,Edgemont View Nursing Home,620.2, 26-Sep-2017
938,Revenue,CAHD,South Glos Users in South Glos Homes,Permanent Nursing,Edgemont View Nursing Home,620.2, 26-Sep-2017
939,Revenue,CAHD,South Glos Users in South Glos Homes,Permanent Nursing,Edgemont View Nursing Home,620.2, 26-Sep-2017
940,Revenue,CAHD,South Glos Users in South Glos Homes,Permanent Nursing,Edgemont View Nursing Home,2148.55, 26-Sep-2017
941,Revenue,CAHD,South Glos Users in South Glos Homes,Permanent Nursing,Edgemont View Nursing Home,620.2, 26-Sep-2017
942,Revenue,CAHD,Bed Purchasing - South,Permanent Nursing,Edgemont View Nursing Home,2880, 26-Sep-2017
943,Revenue,CAHD,Bed Purchasing - South,Permanent Nursing,Edgemont View Nursing Home,2228, 26-Sep-2017
944,Revenue,CAHD,South Glos Users in South Glos Homes,Permanent Nursing,Edgemont View Nursing Home,620.2, 26-Sep-2017
945,Revenue,CAHD,South Glos Users in South Glos Homes,Permanent Nursing,Edgemont View Nursing Home,620.2, 26-Sep-2017
946,Revenue,CAHD,South Glos Users in South Glos Homes,Permanent Nursing,Edgemont View Nursing Home,620.2, 26-Sep-2017
947,Revenue,CAHD,South Glos Users in South Glos Homes,Permanent Nursing,Edgemont View Nursing Home,620.2, 26-Sep-2017
948,Revenue,CAHD,Supporting People Programme,Grants to Voluntary Bodies,Elim Housing Association Limited,5139.16, 01-Sep-2017
949,Revenue,CAHD,Supporting People Programme,Grants to Voluntary Bodies,Elim Housing Association Limited,5139.16, 27-Sep-2017
950,Revenue,CAHD,Home Care - Elderly - South,Day Care / Social Activities,Elite Home Care Ltd,190.68, 06-Sep-2017
951,Revenue,CAHD,Home Care - Elderly - South,Other Small Contracts,Elite Home Care Ltd,9278.52, 06-Sep-2017
952,Revenue,CAHD,Home Care - Elderly - North,Other Small Contracts,Elite Home Care Ltd,435.84, 06-Sep-2017
953,Revenue,CAHD,Home Care - Elderly - South,Day Care / Social Activities,Elite Home Care Ltd,190.68, 18-Sep-2017
954,Revenue,CAHD,Home Care - Elderly - South,Other Small Contracts,Elite Home Care Ltd,9109.02, 18-Sep-2017
955,Revenue,CAHD,Home Care - Elderly - North,Other Small Contracts,Elite Home Care Ltd,399.52, 18-Sep-2017
956,Revenue,CAHD,Home Care - Elderly - South,Day Care / Social Activities,Elite Home Care Ltd,190.68, 20-Sep-2017
957,Revenue,CAHD,Home Care - Elderly - South,Other Small Contracts,Elite Home Care Ltd,8753.12, 20-Sep-2017
958,Revenue,CAHD,Home Care - Elderly - North,Other Small Contracts,Elite Home Care Ltd,408.6, 20-Sep-2017
959,Revenue,CAHD,Home Care - Elderly - South,Day Care / Social Activities,Elite Home Care Ltd,190.68, 27-Sep-2017
960,Revenue,CAHD,Home Care - Elderly - South,Other Small Contracts,Elite Home Care Ltd,9089.7, 27-Sep-2017
961,Revenue,CAHD,Home Care - Elderly - North,Other Small Contracts,Elite Home Care Ltd,417.68, 27-Sep-2017
962,Revenue,CAHD,Bed Purchasing - North,Permanent Residential,Epworth House,2798.12, 26-Sep-2017
963,Revenue,CAHD,Independent Special Placements - Pre 16,Other Private Contractors,Exeter Royal Academy For Deaf Education,15858, 01-Sep-2017
964,Revenue,CAHD,Independent Special Placements - Pre 16,Other Private Contractors,Exeter Royal Academy For Deaf Education,26145, 15-Sep-2017
965,Revenue,CAHD,Homeless - Private Sector Leasing,Prop.Serv. General Repairs,Express Property Services Limited,1885.02, 25-Sep-2017
966,Revenue,CAHD,Homeless - Private Sector Leasing,Prop.Serv. General Repairs,Express Property Services Limited,1981.02, 25-Sep-2017
967,Revenue,CAHD,South Glos Users in South Glos Homes,Permanent Nursing,Fairview Court,620.2, 26-Sep-2017
968,Revenue,CAHD,South Glos Users in South Glos Homes,Permanent Nursing,Fairview Court,620.2, 26-Sep-2017
969,Revenue,CAHD,South Glos Users in South Glos Homes,Permanent Nursing,Fairview Court,620.2, 26-Sep-2017
970,Revenue,CAHD,South Glos Users in South Glos Homes,Permanent Nursing,Fairview Court,620.2, 26-Sep-2017
971,Revenue,CAHD,Bed Purchasing - Southmead Hospital,Permanent Nursing,Fairview Court,3360, 26-Sep-2017
972,Revenue,CAHD,South Glos Users in South Glos Homes,Permanent Nursing,Fairview Court,2458.65, 26-Sep-2017
973,Revenue,CAHD,South Glos Users in South Glos Homes,Permanent Nursing,Fairview Court,620.2, 26-Sep-2017
974,Revenue,CAHD,Bed Purchasing - Southmead Hospital,Permanent Nursing,Fairview Court,3241.6, 26-Sep-2017
975,Revenue,CAHD,South Glos Users in South Glos Homes,Permanent Nursing,Fairview Court,620.2, 26-Sep-2017
976,Revenue,CAHD,South Glos Users in South Glos Homes,Permanent Nursing,Fairview Court,620.2, 26-Sep-2017
977,Revenue,CAHD,South Glos Users in South Glos Homes,Permanent Nursing,Fairview Court,2170.7, 26-Sep-2017
978,Revenue,CAHD,South Glos Users in South Glos Homes,Permanent Nursing,Fairview Court,620.2, 26-Sep-2017
979,Revenue,CAHD,Bed Purchasing - Southmead Hospital,Permanent Nursing,Fairview Court,3031.04, 26-Sep-2017
980,Revenue,CAHD,South Glos Users in South Glos Homes,Permanent Nursing,Fairview Court,620.2, 26-Sep-2017
981,Revenue,CAHD,South Glos Users in South Glos Homes,Permanent Nursing,Fairview Court,1395.45, 26-Sep-2017
982,Revenue,CAHD,South Glos Users in South Glos Homes,Permanent Nursing,Fairview Court,620.2, 26-Sep-2017
983,Revenue,CAHD,Bed Purchasing - South,Permanent Nursing,Fairview Court,3000, 26-Sep-2017
984,Revenue,CAHD,South Glos Users in South Glos Homes,Permanent Nursing,Fairview Court,620.2, 26-Sep-2017
985,Revenue,CAHD,Bed purchasing - Elderly S117 - South,Permanent Nursing,Fairview Court,4000, 26-Sep-2017
986,Revenue,CAHD,South Glos Users in South Glos Homes,Permanent Nursing,Fairview Court,2569.4, 26-Sep-2017
987,Revenue,CAHD,South Glos Users in South Glos Homes,Permanent Nursing,Fairview Court,620.2, 26-Sep-2017
988,Revenue,CAHD,Bed purchasing - Elderly S117 - South,Permanent Nursing,Fairview Court,3000, 26-Sep-2017
989,Revenue,CAHD,South Glos Users in South Glos Homes,Permanent Nursing,Fairview Court,620.2, 26-Sep-2017
990,Revenue,CAHD,South Glos Users in South Glos Homes,Permanent Nursing,Fairview Court,620.2, 26-Sep-2017
991,Revenue,CAHD,Bed Purchasing - South,Permanent Nursing,Fairview Court,3241.6, 26-Sep-2017
992,Revenue,CAHD,South Glos Users in South Glos Homes,Permanent Nursing,Fairview Court,620.2, 26-Sep-2017
993,Revenue,CAHD,South Glos Users in South Glos Homes,Permanent Nursing,Fairview Court,620.2, 26-Sep-2017
994,Revenue,CAHD,South Glos Users in South Glos Homes,Permanent Nursing,Fairview Court,620.2, 26-Sep-2017
995,Revenue,CAHD,Bed Purchasing - South,Permanent Nursing,Fairview Court,866.01, 26-Sep-2017
996,Revenue,CAHD,Bed Purchasing - Southmead Hospital,Permanent Nursing,Fairview Court,3241.6, 26-Sep-2017
997,Revenue,CAHD,South Glos Users in South Glos Homes,Permanent Nursing,Fairview Court,620.2, 26-Sep-2017
998,Revenue,CAHD,Bed Purchasing - Southmead Hospital,Permanent Nursing,Fairview Court,3400, 26-Sep-2017
999,Revenue,CAHD,South Glos Users in South Glos Homes,Permanent Nursing,Fairview Court,620.2, 26-Sep-2017
1000,Revenue,CAHD,South Glos Users in South Glos Homes,Permanent Nursing,Fairview Court,620.2, 26-Sep-2017
1001,Revenue,CAHD,South Glos Users in South Glos Homes,Permanent Nursing,Fairview Court,620.2, 26-Sep-2017
1002,Revenue,CAHD,South Glos Users in South Glos Homes,Permanent Nursing,Fairview Court,620.2, 26-Sep-2017
1003,Revenue,CAHD,South Glos Users in South Glos Homes,Permanent Nursing,Fairview Court,620.2, 26-Sep-2017
1004,Revenue,CAHD,South Glos Users in South Glos Homes,Permanent Nursing,Fairview Court,1772, 26-Sep-2017
1005,Revenue,CAHD,South Glos Users in South Glos Homes,Permanent Nursing,Fairview Court,620.2, 26-Sep-2017
1006,Revenue,CAHD,Bed Purchasing - South,Permanent Nursing,Fairview Court,3000, 26-Sep-2017
1007,Revenue,CAHD,South Glos Users in South Glos Homes,Permanent Nursing,Fairview Court,620.2, 26-Sep-2017
1008,Revenue,CAHD,Bed Purchasing - Southmead Hospital,Permanent Nursing,Fairview Court,2318.76, 26-Sep-2017
1009,Revenue,CAHD,South Glos Users in South Glos Homes,Permanent Nursing,Fairview Court,620.2, 26-Sep-2017
1010,Revenue,CAHD,Bed Purchasing - South,Permanent Nursing,Fairview Court,3000, 26-Sep-2017
1011,Revenue,CAHD,South Glos Users in South Glos Homes,Permanent Nursing,Fairview Court,620.2, 26-Sep-2017
1012,Revenue,CAHD,South Glos Users in South Glos Homes,Permanent Nursing,Fairview Court,1749.85, 26-Sep-2017
1013,Revenue,CAHD,South Glos Users in South Glos Homes,Permanent Nursing,Fairview Court,620.2, 26-Sep-2017
1014,Revenue,CAHD,Bed Purchasing - Southmead Hospital,Permanent Nursing,Fairview Court,3360, 26-Sep-2017
1015,Revenue,CAHD,South Glos Users in South Glos Homes,Permanent Nursing,Fairview Court,620.2, 26-Sep-2017
1016,Revenue,CAHD,South Glos Users in South Glos Homes,Permanent Nursing,Fairview Court,620.2, 26-Sep-2017
1017,Revenue,CAHD,Bed purchasing - Elderly S117 - South,Permanent Residential,Fairview House,2058.04, 26-Sep-2017
1018,Revenue,CAHD,Bed Purchasing - Southmead Hospital,Permanent Residential,Fairview House,7628.57, 26-Sep-2017
1019,Revenue,CAHD,Bed Purchasing - Southmead Hospital,Permanent Residential,Fairview House,2400, 26-Sep-2017
1020,Revenue,CAHD,Bed Purchasing - Southmead Hospital,Fees & Charges Income - General,Fairview House,628.66, 26-Sep-2017
1021,Revenue,CAHD,Bed Purchasing - South,Permanent Residential,Fairview House,2094.64, 26-Sep-2017
1022,Revenue,CAHD,Bed Purchasing - South,Permanent Residential,Fairview House,1886.24, 26-Sep-2017
1023,Revenue,CAHD,Bed Purchasing - South,Permanent Residential,Fairview House,2127.32, 26-Sep-2017
1024,Revenue,CAHD,Bed Purchasing - South,Permanent Residential,Fairview House,1886.24, 26-Sep-2017
1025,Revenue,CAHD,Bed Purchasing - South,Permanent Residential,Fairview House,1886.24, 26-Sep-2017
1026,Revenue,CAHD,Bed Purchasing - South,Permanent Residential,Fairview House,1917.36, 26-Sep-2017
1027,Revenue,CAHD,Bed Purchasing - South,Permanent Residential,Fairview House,2117.24, 26-Sep-2017
1028,Revenue,CAHD,Bed Purchasing - North,Permanent Residential,Faith House,2633.8, 26-Sep-2017
1029,Revenue,CAHD,Bed Purchasing - North,Respite Planned - Residential,Faith House,10568.57, 26-Sep-2017
1030,Revenue,CAHD,Bed Purchasing - North,Respite Planned - Residential,Faith House,1076.43, 26-Sep-2017
1031,Revenue,CAHD,CSC - Parent & Child Assessments,Foster Parent Allowances,Families First (SW) Ltd,3932.4, 21-Sep-2017
1032,Revenue,CAHD,CSC - Parent & Child Assessments,Foster Parent Allowances,Families First (SW) Ltd,6095.22, 21-Sep-2017
1033,Revenue,CAHD,Post 16 High Needs Placements,Other Private Contractors,Farleigh FEC-Frome Priory,21646.16, 25-Sep-2017
1034,Revenue,CAHD,South Glos Users in South Glos Homes,Permanent Nursing,Field House Care Home,5066.96, 26-Sep-2017
1035,Revenue,CAHD,South Glos Users in South Glos Homes,Permanent Nursing,Field House Care Home,620.2, 26-Sep-2017
1036,Revenue,CAHD,Bed Purchasing - Southmead Hospital,Permanent Nursing,Field House Care Home,3261.88, 26-Sep-2017
1037,Revenue,CAHD,Bed Purchasing - Southmead Hospital,Permanent Nursing,Field House Care Home,3280, 26-Sep-2017
1038,Revenue,CAHD,Bed Purchasing - North,Permanent Nursing,Field House Care Home,3280, 26-Sep-2017
1039,Revenue,CAHD,Bed Purchasing - North,Permanent Nursing,Field House Care Home,3360, 26-Sep-2017
1040,Revenue,CAHD,Bed Purchasing - North,Respite Emergency - Residential,Fieldview,3444.2, 26-Sep-2017
1041,Revenue,CAHD,Bed Purchasing - North,Permanent Residential,Fieldview,2836.4, 26-Sep-2017
1042,Revenue,CAHD,Bed Purchasing - Elderly S117- North,Permanent Residential,Fieldview,4800, 26-Sep-2017
1043,Revenue,CAHD,MH Purchasing - Younger,Permanent Nursing,Fieldview,5267.6, 26-Sep-2017
1044,Revenue,CAHD,Bed Purchasing - South,Permanent Residential,Fig House,2836.4, 26-Sep-2017
1045,Revenue,CAHD,Statemented Support Payments to OLAs,Other L.A.'s - General,Filton Avenue Primary School,1125.78, 29-Sep-2017
1046,Revenue,CAHD,Home Care - Elderly - South,Other Small Contracts,Firstpoint Homecare Ltd,1122, 06-Sep-2017
1047,Revenue,CAHD,Home Care - Elderly - North,Day Care / Social Activities,Firstpoint Homecare Ltd,132, 06-Sep-2017
1048,Revenue,CAHD,Home Care - Elderly - North,Other Small Contracts,Firstpoint Homecare Ltd,52.8, 06-Sep-2017
1049,Revenue,CAHD,Home Care - Elderly - South,Other Small Contracts,Firstpoint Homecare Ltd,990, 11-Sep-2017
1050,Revenue,CAHD,Home Care - Elderly - North,Day Care / Social Activities,Firstpoint Homecare Ltd,132, 11-Sep-2017
1051,Revenue,CAHD,Home Care - Elderly - North,Other Small Contracts,Firstpoint Homecare Ltd,52.8, 11-Sep-2017
1052,Revenue,CAHD,Home Care - Elderly - South,Other Small Contracts,Firstpoint Homecare Ltd,954.8, 20-Sep-2017
1053,Revenue,CAHD,Home Care - Elderly - North,Day Care / Social Activities,Firstpoint Homecare Ltd,127.6, 20-Sep-2017
1054,Revenue,CAHD,Home Care - Elderly - South,Other Small Contracts,Firstpoint Homecare Ltd,985.6, 27-Sep-2017
1055,Revenue,CAHD,Home Care - Elderly - North,Day Care / Social Activities,Firstpoint Homecare Ltd,132, 27-Sep-2017
1056,Revenue,CAHD,CSC - Agency Fostering,Foster Parent Allowances,Five Rivers Child Care Limited,3197.61, 11-Sep-2017
1057,Revenue,CAHD,CSC - Agency Fostering,Foster Parent Allowances,Five Rivers Child Care Limited,3552.9, 11-Sep-2017
1058,Revenue,CAHD,CSC - Agency Fostering,Foster Parent Allowances,Five Rivers Child Care Limited,3671.33, 11-Sep-2017
1059,Revenue,CAHD,CSC - Agency Fostering,Foster Parent Allowances,Five Rivers Child Care Limited,3447.82, 01-Sep-2017
1060,Revenue,CAHD,CSC - Agency Fostering,Foster Parent Allowances,Five Rivers Child Care Limited,3447.82, 01-Sep-2017
1061,Revenue,CAHD,CSC - Agency Fostering,Foster Parent Allowances,Five Rivers Child Care Limited,3671.33, 11-Sep-2017
1062,Revenue,CAHD,CSC - Agency Fostering,Foster Parent Allowances,Five Rivers Child Care Limited,3518.19, 01-Sep-2017
1063,Revenue,CAHD,CSC - Agency Fostering,Foster Parent Allowances,Foster Care Associates Limited,2332.75, 01-Sep-2017
1064,Revenue,CAHD,CSC - Agency Fostering,Foster Parent Allowances,Foster Care Associates Limited,4131.68, 01-Sep-2017
1065,Revenue,CAHD,CSC - Asylum Seekers - Unaccompanied,Foster Parent Allowances,Foster Care Associates Limited,3578.02, 01-Sep-2017
1066,Revenue,CAHD,Home Care - Elderly - South,Day Care / Social Activities,Fourways Care Limited,39.12, 01-Sep-2017
1067,Revenue,CAHD,Home Care - Elderly - South,Other Small Contracts,Fourways Care Limited,6516.13, 01-Sep-2017
1068,Revenue,CAHD,Home Care - Elderly - North,Other Small Contracts,Fourways Care Limited,4865.55, 01-Sep-2017
1069,Revenue,CAHD,Younger MH non-res purchasing,Other Small Contracts,Fourways Care Limited,645.48, 01-Sep-2017
1070,Revenue,CAHD,Home Care - Elderly - South,Day Care / Social Activities,Fourways Care Limited,39.12, 06-Sep-2017
1071,Revenue,CAHD,Home Care - Elderly - South,Other Small Contracts,Fourways Care Limited,6904.9, 06-Sep-2017
1072,Revenue,CAHD,Home Care - Elderly - North,Other Small Contracts,Fourways Care Limited,4104.62, 06-Sep-2017
1073,Revenue,CAHD,Younger MH non-res purchasing,Other Small Contracts,Fourways Care Limited,709.05, 06-Sep-2017
1074,Revenue,CAHD,Home Care - Elderly - South,Day Care / Social Activities,Fourways Care Limited,39.12, 11-Sep-2017
1075,Revenue,CAHD,Home Care - Elderly - South,Other Small Contracts,Fourways Care Limited,6844.6, 11-Sep-2017
1076,Revenue,CAHD,Home Care - Elderly - North,Other Small Contracts,Fourways Care Limited,4486.04, 11-Sep-2017
1077,Revenue,CAHD,Younger MH non-res purchasing,Other Small Contracts,Fourways Care Limited,723.72, 11-Sep-2017
1078,Revenue,CAHD,Home Care - Elderly - South,Day Care / Social Activities,Fourways Care Limited,39.12, 20-Sep-2017
1079,Revenue,CAHD,Home Care - Elderly - South,Other Small Contracts,Fourways Care Limited,6414.38, 20-Sep-2017
1080,Revenue,CAHD,Home Care - Elderly - North,Other Small Contracts,Fourways Care Limited,4133.96, 20-Sep-2017
1081,Revenue,CAHD,Younger MH non-res purchasing,Other Small Contracts,Fourways Care Limited,704.16, 20-Sep-2017
1082,Revenue,CAHD,Home Care - Elderly - South,Day Care / Social Activities,Fourways Care Limited,78.24, 27-Sep-2017
1083,Revenue,CAHD,Home Care - Elderly - South,Other Small Contracts,Fourways Care Limited,6444.4, 27-Sep-2017
1084,Revenue,CAHD,Home Care - Elderly - North,Other Small Contracts,Fourways Care Limited,4006.82, 27-Sep-2017
1085,Revenue,CAHD,Younger MH non-res purchasing,Other Small Contracts,Fourways Care Limited,748.17, 27-Sep-2017
1086,Revenue,CAHD,Health Inequalities,Other Small Contracts,Frampton Cotterell Carers Group,500, 29-Sep-2017
1087,Revenue,CAHD,Supporting People Programme,Grants to Voluntary Bodies,Freeways Trust Limited,6939.4, 01-Sep-2017
1088,Revenue,CAHD,Supporting People Programme,Grants to Voluntary Bodies,Freeways Trust Limited,6939.4, 29-Sep-2017
1089,Revenue,CAHD,Freeways,Permanent Residential,Freeways Trust Limited,3677.48, 14-Sep-2017
1090,Revenue,CAHD,Freeways,Permanent Residential,Freeways Trust Limited,2364.64, 14-Sep-2017
1091,Revenue,CAHD,Freeways,Permanent Residential,Freeways Trust Limited,2364.64, 14-Sep-2017
1092,Revenue,CAHD,Freeways,Permanent Residential,Freeways Trust Limited,3441.12, 14-Sep-2017
1093,Revenue,CAHD,Freeways,Permanent Residential,Freeways Trust Limited,2364.64, 14-Sep-2017
1094,Revenue,CAHD,Freeways,Permanent Residential,Freeways Trust Limited,3491.6, 14-Sep-2017
1095,Revenue,CAHD,Freeways,Permanent Residential,Freeways Trust Limited,2629.12, 14-Sep-2017
1096,Revenue,CAHD,Freeways,Permanent Residential,Freeways Trust Limited,3649.08, 14-Sep-2017
1097,Revenue,CAHD,Freeways,Permanent Residential,Freeways Trust Limited,2229.44, 14-Sep-2017
1098,Revenue,CAHD,Freeways,Permanent Residential,Freeways Trust Limited,2792.8, 14-Sep-2017
1099,Revenue,CAHD,Freeways,Permanent Residential,Freeways Trust Limited,3557.68, 14-Sep-2017
1100,Revenue,CAHD,Freeways,Permanent Residential,Freeways Trust Limited,3122.76, 14-Sep-2017
1101,Revenue,CAHD,Freeways,Permanent Residential,Freeways Trust Limited,2364.64, 14-Sep-2017
1102,Revenue,CAHD,Freeways,Permanent Residential,Freeways Trust Limited,5034.72, 14-Sep-2017
1103,Revenue,CAHD,Freeways,Permanent Residential,Freeways Trust Limited,2517.36, 14-Sep-2017
1104,Revenue,CAHD,Freeways,Permanent Residential,Freeways Trust Limited,1348.59, 14-Sep-2017
1105,Revenue,CAHD,Freeways,Permanent Residential,Freeways Trust Limited,629.34, 14-Sep-2017
1106,Revenue,CAHD,Home Care - Elderly - South,Other Small Contracts,Freeways Trust Limited,774.48, 11-Sep-2017
1107,Revenue,CAHD,Home Care - Elderly - South,Other Small Contracts,Freeways Trust Limited,1180.16, 22-Sep-2017
1108,Revenue,CAHD,Home Care - Elderly - South,Other Small Contracts,Freeways Trust Limited,995.76, 27-Sep-2017
1109,Revenue,CAHD,Home Care - Elderly - North,Supported Living,Freeways Trust Ltd,810.4, 26-Sep-2017
1110,Revenue,CAHD,Bed purchasing - S28A Under 65 - South,Permanent Residential,Freeways Trust Ltd,3592.4, 26-Sep-2017
1111,Revenue,CAHD,Bed Purchasing - North,Permanent Residential,Freeways Trust Ltd,3606.68, 26-Sep-2017
1112,Revenue,CAHD,Bed Purchasing - South,Permanent Residential,Freeways Trust Ltd,3825.16, 26-Sep-2017
1113,Revenue,CAHD,Bed Purchasing - North,Permanent Residential,Freeways Trust Ltd,2888.32, 26-Sep-2017
1114,Revenue,CAHD,Bed Purchasing - South,Permanent Residential,Freeways Trust Ltd,3043.64, 26-Sep-2017
1115,Revenue,CAHD,Bed Purchasing - North,Permanent Residential,Freeways Trust Ltd,3190, 26-Sep-2017
1116,Revenue,CAHD,Bed Purchasing - North,Permanent Residential,Freeways Trust Ltd,3818.2, 26-Sep-2017
1117,Revenue,CAHD,18-25 Year Olds,Permanent Residential,Freeways Trust Ltd,3527.2, 26-Sep-2017
1118,Revenue,CAHD,Section 117 Placements MH Younger,Permanent Residential,Freeways Trust Ltd,3200, 26-Sep-2017
1119,Revenue,CAHD,Home Care - Elderly - North,Day Care / Social Activities,Frenchay Beckspool Building,864, 26-Sep-2017
1120,Revenue,CAHD,Home Care - Elderly - South,Day Care / Social Activities,Frenchay Beckspool Building,864, 26-Sep-2017
1121,Revenue,CAHD,Pathway 3 - (Complex Beds),Permanent Nursing,Frenchay House,32040, 18-Sep-2017
1122,Revenue,CAHD,Bed Purchasing - South,Respite Planned - Nursing,Frenchay Park Nursing Home,1828.57, 26-Sep-2017
1123,Revenue,CAHD,Bed Purchasing - Southmead Hospital,Permanent Nursing,Frenchay Park Nursing Home,3200, 26-Sep-2017
1124,Revenue,CAHD,Early Years High Needs Support,Other Private Contractors,Frenchay Pre School Playgroup,880.77, 25-Sep-2017
1125,Revenue,CAHD,CSC - Residential Placements,Permanent Residential,Friends Therapeutic Community Trust,15000, 11-Sep-2017
1126,Revenue,CAHD,CSC - Residential Placements,Permanent Residential,Friends Therapeutic Community Trust,15000, 26-Sep-2017
1127,Revenue,CAHD,Bed Purchasing - North,Permanent Residential,FSHC,4271.43, 26-Sep-2017
1128,Revenue,CAHD,Bed Purchasing - North,Respite Planned - Residential,FSHC,2700, 26-Sep-2017
1129,Revenue,CAHD,Bed Purchasing - North,Permanent Residential,FSHC,2600, 26-Sep-2017
1130,Revenue,CAHD,Bed Purchasing - North,Respite Planned - Residential,FSHC,2057.14, 26-Sep-2017
1131,Revenue,CAHD,South Glos Users in South Glos Homes,Permanent Nursing,Fshc  1St Floor,620.2, 26-Sep-2017
1132,Revenue,CAHD,Bed Purchasing - South,Permanent Nursing,Fshc  1St Floor,2621.16, 26-Sep-2017
1133,Revenue,CAHD,South Glos Users in South Glos Homes,Permanent Nursing,Fshc  1St Floor,620.2, 26-Sep-2017
1134,Revenue,CAHD,Bed Purchasing - South,Permanent Nursing,Fshc  1St Floor,2228, 26-Sep-2017
1135,Revenue,CAHD,Bed Purchasing - Southmead Hospital,Permanent Nursing,Fshc  1St Floor,2281.28, 26-Sep-2017
1136,Revenue,CAHD,Bed Purchasing - South,Permanent Nursing,Fshc  1St Floor,2228, 26-Sep-2017
1137,Revenue,CAHD,South Glos Users in South Glos Homes,Permanent Nursing,Fshc  1St Floor,620.2, 26-Sep-2017
1138,Revenue,CAHD,Bed Purchasing - Southmead Hospital,Permanent Nursing,Fshc  1St Floor,2390.68, 26-Sep-2017
1139,Revenue,CAHD,South Glos Users in South Glos Homes,Permanent Nursing,Fshc  1St Floor,620.2, 26-Sep-2017
1140,Revenue,CAHD,Bed Purchasing - Southmead Hospital,Permanent Nursing,Fshc  1St Floor,2228, 26-Sep-2017
1141,Revenue,CAHD,South Glos Users in South Glos Homes,Permanent Nursing,Fshc  1St Floor,620.2, 26-Sep-2017
1142,Revenue,CAHD,South Glos Users in South Glos Homes,Permanent Nursing,Fshc  1St Floor,620.2, 26-Sep-2017
1143,Revenue,CAHD,Bed Purchasing - Southmead Hospital,Permanent Residential,Fshc  1St Floor,2200, 26-Sep-2017
1144,Revenue,CAHD,Bed Purchasing - Southmead Hospital,Permanent Nursing,Fshc  1St Floor,2281.28, 26-Sep-2017
1145,Revenue,CAHD,South Glos Users in South Glos Homes,Permanent Nursing,Fshc  1St Floor,620.2, 26-Sep-2017
1146,Revenue,CAHD,South Glos Users in South Glos Homes,Permanent Nursing,Fshc  1St Floor,620.2, 26-Sep-2017
1147,Revenue,CAHD,Bed Purchasing - Southmead Hospital,Respite Emergency - Residential,Fshc  1St Floor,2640, 26-Sep-2017
1148,Revenue,CAHD,South Glos Users in South Glos Homes,Permanent Nursing,Fshc  1St Floor,620.2, 26-Sep-2017
1149,Revenue,CAHD,South Glos Users in South Glos Homes,Permanent Nursing,Fshc  1St Floor,531.6, 26-Sep-2017
1150,Revenue,CAHD,Bed Purchasing - Southmead Hospital,Permanent Nursing,Fshc  1St Floor,2228, 26-Sep-2017
1151,Revenue,CAHD,South Glos Users in South Glos Homes,Permanent Nursing,Fshc  1St Floor,620.2, 26-Sep-2017
1152,Revenue,CAHD,Bed Purchasing - Southmead Hospital,Permanent Nursing,Fshc  1St Floor,3099.8, 26-Sep-2017
1153,Revenue,CAHD,South Glos Users in South Glos Homes,Permanent Nursing,Fshc  1St Floor,620.2, 26-Sep-2017
1154,Revenue,CAHD,Bed Purchasing - Southmead Hospital,Fees & Charges Income - General,Fshc  1St Floor,1210.05, 26-Sep-2017
1155,Revenue,CAHD,Bed Purchasing - Southmead Hospital,Permanent Nursing,Fshc  1St Floor,2360, 26-Sep-2017
1156,Revenue,CAHD,South Glos Users in South Glos Homes,Permanent Nursing,Fshc  1St Floor,620.2, 26-Sep-2017
1157,Revenue,CAHD,Bed Purchasing - South,Permanent Nursing,Fshc  1St Floor,2613.56, 26-Sep-2017
1158,Revenue,CAHD,South Glos Users in South Glos Homes,Permanent Nursing,Fshc  1St Floor,620.2, 26-Sep-2017
1159,Revenue,CAHD,South Glos Users in South Glos Homes,Permanent Nursing,Fshc  1St Floor,620.2, 26-Sep-2017
1160,Revenue,CAHD,Bed Purchasing - South,Fees & Charges Income - General,Fshc  1St Floor,633.84, 26-Sep-2017
1161,Revenue,CAHD,South Glos Users in South Glos Homes,Permanent Nursing,Fshc  1St Floor,1816.3, 26-Sep-2017
1162,Revenue,CAHD,South Glos Users in South Glos Homes,Permanent Nursing,Fshc  1St Floor,620.2, 26-Sep-2017
1163,Revenue,CAHD,Bed Purchasing - Southmead Hospital,Permanent Nursing,Fshc  1St Floor,2281.28, 26-Sep-2017
1164,Revenue,CAHD,South Glos Users in South Glos Homes,Permanent Nursing,Fshc  1St Floor,620.2, 26-Sep-2017
1165,Revenue,CAHD,Bed Purchasing - Southmead Hospital,Permanent Nursing,Fshc  1St Floor,2360, 26-Sep-2017
1166,Revenue,CAHD,Bed Purchasing - South,Permanent Nursing,Fshc  1St Floor,2228, 26-Sep-2017
1167,Revenue,CAHD,South Glos Users in South Glos Homes,Permanent Nursing,Fshc  1St Floor,620.2, 26-Sep-2017
1168,Revenue,CAHD,Bed Purchasing - Southmead Hospital,Permanent Nursing,Fshc  1St Floor,2228, 26-Sep-2017
1169,Revenue,CAHD,South Glos Users in South Glos Homes,Permanent Nursing,Fshc  1St Floor,620.2, 26-Sep-2017
1170,Revenue,CAHD,Bed Purchasing - South,Permanent Nursing,Fshc  1St Floor,8355, 26-Sep-2017
1171,Revenue,CAHD,Bed Purchasing - South,Permanent Nursing,Fshc  1St Floor,2228, 26-Sep-2017
1172,Revenue,CAHD,South Glos Users in South Glos Homes,Permanent Nursing,Fshc  1St Floor,620.2, 26-Sep-2017
1173,Revenue,CAHD,Bed Purchasing - South,Fees & Charges Income - General,Fshc  1St Floor,2247, 26-Sep-2017
1174,Revenue,CAHD,Bed Purchasing - South,Permanent Nursing,Fshc  1St Floor,2281.28, 26-Sep-2017
1175,Revenue,CAHD,South Glos Users in South Glos Homes,Permanent Nursing,Fshc  1St Floor,620.2, 26-Sep-2017
1176,Revenue,CAHD,Bed Purchasing - Southmead Hospital,Respite Planned - Nursing,Fshc  1St Floor,2400, 26-Sep-2017
1177,Revenue,CAHD,Bed Purchasing - Southmead Hospital,Respite Planned - Nursing,Fshc  1St Floor,1885.71, 26-Sep-2017
1178,Revenue,CAHD,South Glos Users in South Glos Homes,Permanent Nursing,Fshc  1St Floor,620.2, 26-Sep-2017
1179,Revenue,CAHD,South Glos Users in South Glos Homes,Permanent Nursing,Fshc  1St Floor,620.2, 26-Sep-2017
1180,Revenue,CAHD,Bed Purchasing - North,Permanent Nursing,Fshc  1St Floor,2312.32, 26-Sep-2017
1181,Revenue,CAHD,South Glos Users in South Glos Homes,Permanent Nursing,Fshc  1St Floor,620.2, 26-Sep-2017
1182,Revenue,CAHD,Bed Purchasing - Southmead Hospital,Permanent Nursing,Fshc  1St Floor,2810.84, 26-Sep-2017
1183,Revenue,CAHD,South Glos Users in South Glos Homes,Permanent Nursing,Fshc  1St Floor,620.2, 26-Sep-2017
1184,Revenue,CAHD,Bed Purchasing - North,Respite Emergency - Residential,Fshc  1St Floor,4920, 26-Sep-2017
1185,Revenue,CAHD,Bed Purchasing - North,Respite Emergency - Residential,Fshc  1St Floor,1968, 26-Sep-2017
1186,Revenue,CAHD,Bed Purchasing - Southmead Hospital,Permanent Residential,Fshc  1St Floor,2256.96, 26-Sep-2017
1187,Revenue,CAHD,Bed Purchasing - Southmead Hospital,Permanent Nursing,Fshc  1St Floor,2228, 26-Sep-2017
1188,Revenue,CAHD,South Glos Users in South Glos Homes,Permanent Nursing,Fshc  1St Floor,620.2, 26-Sep-2017
1189,Revenue,CAHD,South Glos Users in South Glos Homes,Permanent Nursing,Fshc  1St Floor,1173.95, 26-Sep-2017
1190,Revenue,CAHD,South Glos Users in South Glos Homes,Permanent Nursing,Fshc  1St Floor,620.2, 26-Sep-2017
1191,Revenue,CAHD,South Glos Users in South Glos Homes,Permanent Nursing,Fshc  1St Floor,1550.5, 26-Sep-2017
1192,Revenue,CAHD,South Glos Users in South Glos Homes,Permanent Nursing,Fshc  1St Floor,620.2, 26-Sep-2017
1193,Revenue,CAHD,Bed Purchasing - North,Permanent Nursing,Fshc  1St Floor,2228, 26-Sep-2017
1194,Revenue,CAHD,South Glos Users in South Glos Homes,Permanent Nursing,Fshc  1St Floor,620.2, 26-Sep-2017
1195,Revenue,CAHD,South Glos Users in South Glos Homes,Permanent Nursing,Fshc  1St Floor,620.2, 26-Sep-2017
1196,Revenue,CAHD,Bed Purchasing - Southmead Hospital,Permanent Nursing,Fshc  1St Floor,2228, 26-Sep-2017
1197,Revenue,CAHD,South Glos Users in South Glos Homes,Permanent Nursing,Fshc  1St Floor,620.2, 26-Sep-2017
1198,Revenue,CAHD,Bed Purchasing - Southmead Hospital,Permanent Residential,Fshc  1St Floor,2072, 26-Sep-2017
1199,Revenue,CAHD,Bed Purchasing - South,Permanent Residential,Fshc  1St Floor,4457.14, 26-Sep-2017
1200,Revenue,CAHD,Bed Purchasing - South,Permanent Residential,Fshc  1St Floor,3200, 26-Sep-2017
1201,Revenue,CAHD,South Glos Users in South Glos Homes,Permanent Nursing,Fshc  1St Floor,620.2, 26-Sep-2017
1202,Revenue,CAHD,South Glos Users in South Glos Homes,Permanent Nursing,Fshc  1St Floor,1173.95, 26-Sep-2017
1203,Revenue,CAHD,South Glos Users in South Glos Homes,Permanent Nursing,Fshc  1St Floor,620.2, 26-Sep-2017
1204,Revenue,CAHD,Bed Purchasing - Southmead Hospital,Permanent Nursing,Fshc  1St Floor,2228, 26-Sep-2017
1205,Revenue,CAHD,South Glos Users in South Glos Homes,Permanent Nursing,Fshc  1St Floor,620.2, 26-Sep-2017
1206,Revenue,CAHD,Bed Purchasing - Southmead Hospital,Permanent Nursing,Fshc  1St Floor,2256.96, 26-Sep-2017
1207,Revenue,CAHD,South Glos Users in South Glos Homes,Permanent Nursing,Fshc  1St Floor,620.2, 26-Sep-2017
1208,Revenue,CAHD,Bed Purchasing - Southmead Hospital,Permanent Nursing,Fshc  1St Floor,2228, 26-Sep-2017
1209,Revenue,CAHD,South Glos Users in South Glos Homes,Permanent Nursing,Fshc  1St Floor,620.2, 26-Sep-2017
1210,Revenue,CAHD,South Glos Users in South Glos Homes,Permanent Nursing,Fshc  1St Floor,620.2, 26-Sep-2017
1211,Revenue,CAHD,Bed Purchasing - North,Permanent Nursing,Fshc  1St Floor,2228, 26-Sep-2017
1212,Revenue,CAHD,South Glos Users in South Glos Homes,Permanent Nursing,Fshc  1St Floor,620.2, 26-Sep-2017
1213,Revenue,CAHD,Bed Purchasing - North,Permanent Nursing,Fshc  1St Floor,3198, 26-Sep-2017
1214,Revenue,CAHD,South Glos Users in South Glos Homes,Permanent Nursing,Fshc  1St Floor,863.85, 26-Sep-2017
1215,Revenue,CAHD,South Glos Users in South Glos Homes,Permanent Nursing,Fshc  1St Floor,620.2, 26-Sep-2017
1216,Revenue,CAHD,Bed Purchasing - North,Fees & Charges Income - General,Fshc  1St Floor,749.08, 26-Sep-2017
1217,Revenue,CAHD,Bed Purchasing - North,Permanent Nursing,Fshc  1St Floor,2228, 26-Sep-2017
1218,Revenue,CAHD,South Glos Users in South Glos Homes,Permanent Nursing,Fshc  1St Floor,620.2, 26-Sep-2017
1219,Revenue,CAHD,South Glos Users in South Glos Homes,Permanent Nursing,Fshc  1St Floor,620.2, 26-Sep-2017
1220,Revenue,CAHD,South Glos Users in South Glos Homes,Permanent Nursing,Fshc  1St Floor,620.2, 26-Sep-2017
1221,Revenue,CAHD,Bed Purchasing - Southmead Hospital,Permanent Residential,Fshc  1St Floor,2228, 26-Sep-2017
1222,Revenue,CAHD,Bed Purchasing - Southmead Hospital,Permanent Residential,Fshc  1St Floor,557, 26-Sep-2017
1223,Revenue,CAHD,Bed Purchasing - Southmead Hospital,Permanent Residential,Fshc  1St Floor,557, 26-Sep-2017
1224,Revenue,CAHD,Bed Purchasing - North,Permanent Nursing,Fshc  1St Floor,7400.14, 26-Sep-2017
1225,Revenue,CAHD,Bed Purchasing - North,Permanent Nursing,Fshc  1St Floor,2228, 26-Sep-2017
1226,Revenue,CAHD,South Glos Users in South Glos Homes,Permanent Nursing,Fshc  1St Floor,620.2, 26-Sep-2017
1227,Revenue,CAHD,South Glos Users in South Glos Homes,Permanent Nursing,Fshc  1St Floor,620.2, 26-Sep-2017
1228,Revenue,CAHD,South Glos Users in South Glos Homes,Permanent Nursing,Fshc  1St Floor,686.65, 26-Sep-2017
1229,Revenue,CAHD,South Glos Users in South Glos Homes,Permanent Nursing,Fshc  1St Floor,575.9, 26-Sep-2017
1230,Revenue,CAHD,Bed Purchasing - Southmead Hospital,Permanent Nursing,Fshc  1St Floor,1591.43, 26-Sep-2017
1231,Revenue,CAHD,Bed Purchasing - Southmead Hospital,Fees & Charges Income - General,Fshc  1St Floor,768.29, 26-Sep-2017
1232,Revenue,CAHD,South Glos Users in South Glos Homes,Permanent Nursing,Fshc  1St Floor,620.2, 26-Sep-2017
1233,Revenue,CAHD,South Glos Users in South Glos Homes,Permanent Nursing,Fshc  1St Floor,620.2, 26-Sep-2017
1234,Revenue,CAHD,Bed Purchasing - North,Permanent Nursing,Fshc  1St Floor,2228, 26-Sep-2017
1235,Revenue,CAHD,South Glos Users in South Glos Homes,Permanent Nursing,Fshc  1St Floor,620.2, 26-Sep-2017
1236,Revenue,CAHD,Bed Purchasing - Southmead Hospital,Permanent Nursing,Fshc  1St Floor,2192.12, 26-Sep-2017
1237,Revenue,CAHD,South Glos Users in South Glos Homes,Permanent Nursing,Fshc  1St Floor,620.2, 26-Sep-2017
1238,Revenue,CAHD,Bed Purchasing - North,Permanent Nursing,Fshc  1St Floor,2228, 26-Sep-2017
1239,Revenue,CAHD,South Glos Users in South Glos Homes,Permanent Nursing,Fshc  1St Floor,620.2, 26-Sep-2017
1240,Revenue,CAHD,Bed Purchasing - North,Permanent Nursing,Fshc  1St Floor,2228, 26-Sep-2017
1241,Revenue,CAHD,South Glos Users in South Glos Homes,Permanent Nursing,Fshc  1St Floor,620.2, 26-Sep-2017
1242,Revenue,CAHD,South Glos Users in South Glos Homes,Permanent Nursing,Fshc  1St Floor,620.2, 26-Sep-2017
1243,Revenue,CAHD,Bed Purchasing - North,Permanent Nursing,Fshc  1St Floor,2228, 26-Sep-2017
1244,Revenue,CAHD,South Glos Users in South Glos Homes,Permanent Nursing,Fshc  1St Floor,620.2, 26-Sep-2017
1245,Revenue,CAHD,Bed Purchasing - North,Permanent Nursing,Fshc  1St Floor,2228, 26-Sep-2017
1246,Revenue,CAHD,South Glos Users in South Glos Homes,Permanent Nursing,Fshc  1St Floor,620.2, 26-Sep-2017
1247,Revenue,CAHD,Bed Purchasing - North,Permanent Nursing,Fshc  1St Floor,2256.96, 26-Sep-2017
1248,Revenue,CAHD,South Glos Users in South Glos Homes,Permanent Nursing,Fshc  1St Floor,620.2, 26-Sep-2017
1249,Revenue,CAHD,Bed Purchasing - North,Permanent Nursing,Fshc  1St Floor,2228, 26-Sep-2017
1250,Revenue,CAHD,South Glos Users in South Glos Homes,Permanent Nursing,Fshc  1St Floor,620.2, 26-Sep-2017
1251,Revenue,CAHD,Bed Purchasing - Southmead Hospital,Permanent Nursing,Fshc  1St Floor,2228, 26-Sep-2017
1252,Revenue,CAHD,South Glos Users in South Glos Homes,Permanent Nursing,Fshc  1St Floor,620.2, 26-Sep-2017
1253,Revenue,CAHD,Bed Purchasing - North,Permanent Nursing,Fshc  1St Floor,2296, 26-Sep-2017
1254,Revenue,CAHD,South Glos Users in South Glos Homes,Permanent Nursing,Fshc  1St Floor,620.2, 26-Sep-2017
1255,Revenue,CAHD,Bed Purchasing - North,Permanent Nursing,Fshc  1St Floor,2228, 26-Sep-2017
1256,Revenue,CAHD,South Glos Users in South Glos Homes,Permanent Nursing,Fshc  1St Floor,620.2, 26-Sep-2017
1257,Revenue,CAHD,Bed Purchasing - North,Permanent Nursing,Fshc  1St Floor,2228, 26-Sep-2017
1258,Revenue,CAHD,South Glos Users in South Glos Homes,Permanent Nursing,Fshc  1St Floor,620.2, 26-Sep-2017
1259,Revenue,CAHD,Bed Purchasing - North,Permanent Nursing,Fshc  1St Floor,2296, 26-Sep-2017
1260,Revenue,CAHD,South Glos Users in South Glos Homes,Permanent Nursing,Fshc  1St Floor,620.2, 26-Sep-2017
1261,Revenue,CAHD,Bed Purchasing - Southmead Hospital,Permanent Nursing,Fshc  1St Floor,2382.56, 26-Sep-2017
1262,Revenue,CAHD,South Glos Users in South Glos Homes,Permanent Nursing,Fshc  1St Floor,620.2, 26-Sep-2017
1263,Revenue,CAHD,South Glos Users in South Glos Homes,Permanent Nursing,Fshc  1St Floor,620.2, 26-Sep-2017
1264,Revenue,CAHD,Bed Purchasing - North,Permanent Nursing,Fshc  1St Floor,2228, 26-Sep-2017
1265,Revenue,CAHD,South Glos Users in South Glos Homes,Permanent Nursing,Fshc  1St Floor,620.2, 26-Sep-2017
1266,Revenue,CAHD,Bed Purchasing - North,Permanent Nursing,Fshc  1St Floor,10473.32, 26-Sep-2017
1267,Revenue,CAHD,Bed Purchasing - North,Fees & Charges Income - General,Fshc  1St Floor,5673.14, 26-Sep-2017
1268,Revenue,CAHD,Bed Purchasing - North,Permanent Nursing,Fshc  1St Floor,1904.24, 26-Sep-2017
1269,Revenue,CAHD,South Glos Users in South Glos Homes,Permanent Nursing,Fshc  1St Floor,620.2, 26-Sep-2017
1270,Revenue,CAHD,Bed Purchasing - North,Permanent Nursing,Fshc  1St Floor,671.36, 26-Sep-2017
1271,Revenue,CAHD,Bed Purchasing - Southmead Hospital,Permanent Nursing,Fshc  1St Floor,3100, 26-Sep-2017
1272,Revenue,CAHD,South Glos Users in South Glos Homes,Permanent Nursing,Fshc  1St Floor,620.2, 26-Sep-2017
1273,Revenue,CAHD,South Glos Users in South Glos Homes,Permanent Nursing,Fshc  1St Floor,620.2, 26-Sep-2017
1274,Revenue,CAHD,South Glos Users in South Glos Homes,Permanent Nursing,Fshc  1St Floor,620.2, 26-Sep-2017
1275,Revenue,CAHD,South Glos Users in South Glos Homes,Permanent Nursing,Fshc  1St Floor,620.2, 26-Sep-2017
1276,Revenue,CAHD,South Glos Users in South Glos Homes,Permanent Nursing,Fshc  1St Floor,620.2, 26-Sep-2017
1277,Revenue,CAHD,Bed Purchasing - South,Permanent Nursing,Fshc  1St Floor,2507.16, 26-Sep-2017
1278,Revenue,CAHD,South Glos Users in South Glos Homes,Permanent Nursing,Fshc  1St Floor,620.2, 26-Sep-2017
1279,Revenue,CAHD,South Glos Users in South Glos Homes,Permanent Nursing,Fshc  1St Floor,620.2, 26-Sep-2017
1280,Revenue,CAHD,Bed Purchasing - North,Permanent Nursing,Fshc  1St Floor,2228, 26-Sep-2017
1281,Revenue,CAHD,South Glos Users in South Glos Homes,Permanent Nursing,Fshc  1St Floor,620.2, 26-Sep-2017
1282,Revenue,CAHD,South Glos Users in South Glos Homes,Permanent Nursing,Fshc  1St Floor,620.2, 26-Sep-2017
1283,Revenue,CAHD,Bed Purchasing - Southmead Hospital,Permanent Residential,Fshc  1St Floor,2072, 26-Sep-2017
1284,Revenue,CAHD,Bed Purchasing - Southmead Hospital,Permanent Nursing,Fshc  1St Floor,2479.8, 26-Sep-2017
1285,Revenue,CAHD,South Glos Users in South Glos Homes,Permanent Nursing,Fshc  1St Floor,620.2, 26-Sep-2017
1286,Revenue,CAHD,South Glos Users in South Glos Homes,Permanent Nursing,Fshc  1St Floor,620.2, 26-Sep-2017
1287,Revenue,CAHD,South Glos Users in South Glos Homes,Permanent Nursing,Fshc  1St Floor,620.2, 26-Sep-2017
1288,Revenue,CAHD,South Glos Users in South Glos Homes,Permanent Nursing,Fshc  1St Floor,620.2, 26-Sep-2017
1289,Revenue,CAHD,Bed Purchasing - Southmead Hospital,Permanent Nursing,Fshc  1St Floor,2405.88, 26-Sep-2017
1290,Revenue,CAHD,South Glos Users in South Glos Homes,Permanent Nursing,Fshc  1St Floor,620.2, 26-Sep-2017
1291,Revenue,CAHD,South Glos Users in South Glos Homes,Permanent Nursing,Fshc  1St Floor,1173.95, 26-Sep-2017
1292,Revenue,CAHD,South Glos Users in South Glos Homes,Permanent Nursing,Fshc  1St Floor,620.2, 26-Sep-2017
1293,Revenue,CAHD,South Glos Users in South Glos Homes,Permanent Nursing,Fshc  1St Floor,620.2, 26-Sep-2017
1294,Revenue,CAHD,South Glos Users in South Glos Homes,Permanent Nursing,Fshc  1St Floor,1772, 26-Sep-2017
1295,Revenue,CAHD,South Glos Users in South Glos Homes,Permanent Nursing,Fshc  1St Floor,620.2, 26-Sep-2017
1296,Revenue,CAHD,South Glos Users in South Glos Homes,Permanent Nursing,Fshc  1St Floor,620.2, 26-Sep-2017
1297,Revenue,CAHD,South Glos Users in South Glos Homes,Permanent Nursing,Fshc  1St Floor,2768.75, 26-Sep-2017
1298,Revenue,CAHD,Bed Purchasing - North,Permanent Nursing,Fshc  1St Floor,2549.24, 26-Sep-2017
1299,Revenue,CAHD,Bed Purchasing - Southmead Hospital,Permanent Nursing,Fshc  1St Floor,2507.16, 26-Sep-2017
1300,Revenue,CAHD,South Glos Users in South Glos Homes,Permanent Nursing,Fshc  1St Floor,620.2, 26-Sep-2017
1301,Revenue,CAHD,Bed Purchasing - North,Permanent Nursing,Fshc  1St Floor,2296, 26-Sep-2017
1302,Revenue,CAHD,South Glos Users in South Glos Homes,Permanent Nursing,Fshc  1St Floor,620.2, 26-Sep-2017
1303,Revenue,CAHD,South Glos Users in South Glos Homes,Permanent Nursing,Fshc  1St Floor,620.2, 26-Sep-2017
1304,Revenue,CAHD,Bed Purchasing - Southmead Hospital,Permanent Nursing,Fshc  1St Floor,2228, 26-Sep-2017
1305,Revenue,CAHD,South Glos Users in South Glos Homes,Permanent Nursing,Fshc  1St Floor,620.2, 26-Sep-2017
1306,Revenue,CAHD,Bed Purchasing - Southmead Hospital,Permanent Nursing,Fshc  1St Floor,8388.52, 26-Sep-2017
1307,Revenue,CAHD,Bed Purchasing - Southmead Hospital,Permanent Nursing,Fshc  1St Floor,3100, 26-Sep-2017
1308,Revenue,CAHD,South Glos Users in South Glos Homes,Permanent Nursing,Fshc  1St Floor,2170.7, 26-Sep-2017
1309,Revenue,CAHD,South Glos Users in South Glos Homes,Permanent Nursing,Fshc  1St Floor,620.2, 26-Sep-2017
1310,Revenue,CAHD,South Glos Users in South Glos Homes,Permanent Nursing,Fshc  1St Floor,620.2, 26-Sep-2017
1311,Revenue,CAHD,Bed Purchasing - North,Permanent Nursing,Fshc  1St Floor,2410.72, 26-Sep-2017
1312,Revenue,CAHD,South Glos Users in South Glos Homes,Permanent Nursing,Fshc  1St Floor,620.2, 26-Sep-2017
1313,Revenue,CAHD,Bed Purchasing - North,Permanent Nursing,Fshc  1St Floor,1830.14, 26-Sep-2017
1314,Revenue,CAHD,South Glos Users in South Glos Homes,Permanent Nursing,Fshc  1St Floor,620.2, 26-Sep-2017
1315,Revenue,CAHD,Bed Purchasing - South,Permanent Nursing,Fshc  1St Floor,2507.16, 26-Sep-2017
1316,Revenue,CAHD,South Glos Users in South Glos Homes,Permanent Nursing,Fshc  1St Floor,620.2, 26-Sep-2017
1317,Revenue,CAHD,Bed Purchasing - Southmead Hospital,Permanent Nursing,Fshc  1St Floor,2296, 26-Sep-2017
1318,Revenue,CAHD,South Glos Users in South Glos Homes,Permanent Nursing,Fshc  1St Floor,620.2, 26-Sep-2017
1319,Revenue,CAHD,South Glos Users in South Glos Homes,Permanent Nursing,Fshc  1St Floor,1860.6, 26-Sep-2017
1320,Revenue,CAHD,Bed Purchasing - South,Permanent Nursing,Fshc  1St Floor,2431.2, 26-Sep-2017
1321,Revenue,CAHD,South Glos Users in South Glos Homes,Permanent Nursing,Fshc  1St Floor,620.2, 26-Sep-2017
1322,Revenue,CAHD,South Glos Users in South Glos Homes,Permanent Nursing,Fshc  1St Floor,620.2, 26-Sep-2017
1323,Revenue,CAHD,Bed Purchasing - South,Permanent Nursing,Fshc  1St Floor,2500, 26-Sep-2017
1324,Revenue,CAHD,South Glos Users in South Glos Homes,Permanent Nursing,Fshc  1St Floor,620.2, 26-Sep-2017
1325,Revenue,CAHD,Bed Purchasing - Southmead Hospital,Permanent Nursing,Fshc  1St Floor,2228, 26-Sep-2017
1326,Revenue,CAHD,South Glos Users in South Glos Homes,Permanent Nursing,Fshc  1St Floor,620.2, 26-Sep-2017
1327,Revenue,CAHD,South Glos Users in South Glos Homes,Permanent Nursing,Fshc  1St Floor,620.2, 26-Sep-2017
1328,Revenue,CAHD,Bed Purchasing - South,Permanent Nursing,Fshc  1St Floor,7310.71, 26-Sep-2017
1329,Revenue,CAHD,Bed Purchasing - South,Permanent Nursing,Fshc  1St Floor,2300, 26-Sep-2017
1330,Revenue,CAHD,South Glos Users in South Glos Homes,Permanent Nursing,Fshc  1St Floor,620.2, 26-Sep-2017
1331,Revenue,CAHD,Bed Purchasing - South,Permanent Residential,Fshc  1St Floor,2182.36, 26-Sep-2017
1332,Revenue,CAHD,South Glos Users in South Glos Homes,Permanent Nursing,Fshc  1St Floor,841.7, 26-Sep-2017
1333,Revenue,CAHD,South Glos Users in South Glos Homes,Permanent Nursing,Fshc  1St Floor,620.2, 26-Sep-2017
1334,Revenue,CAHD,Bed Purchasing - North,Permanent Nursing,Fshc  1St Floor,2228, 26-Sep-2017
1335,Revenue,CAHD,South Glos Users in South Glos Homes,Permanent Nursing,Fshc  1St Floor,620.2, 26-Sep-2017
1336,Revenue,CAHD,South Glos Users in South Glos Homes,Permanent Nursing,Fshc  1St Floor,664.5, 26-Sep-2017
1337,Revenue,CAHD,South Glos Users in South Glos Homes,Permanent Nursing,Fshc  1St Floor,620.2, 26-Sep-2017
1338,Revenue,CAHD,Bed Purchasing - Southmead Hospital,Permanent Residential,Fshc  1St Floor,2072, 26-Sep-2017
1339,Revenue,CAHD,South Glos Users in South Glos Homes,Permanent Nursing,Fshc  1St Floor,1041.05, 26-Sep-2017
1340,Revenue,CAHD,South Glos Users in South Glos Homes,Permanent Nursing,Fshc  1St Floor,620.2, 26-Sep-2017
1341,Revenue,CAHD,Bed Purchasing - South,Permanent Nursing,Fshc  1St Floor,2228, 26-Sep-2017
1342,Revenue,CAHD,South Glos Users in South Glos Homes,Permanent Nursing,Fshc  1St Floor,620.2, 26-Sep-2017
1343,Revenue,CAHD,South Glos Users in South Glos Homes,Permanent Nursing,Fshc  1St Floor,620.2, 26-Sep-2017
1344,Revenue,CAHD,South Glos Users in South Glos Homes,Permanent Nursing,Fshc  1St Floor,620.2, 26-Sep-2017
1345,Revenue,CAHD,Bed Purchasing - Southmead Hospital,Permanent Nursing,Fshc  1St Floor,2258.92, 26-Sep-2017
1346,Revenue,CAHD,South Glos Users in South Glos Homes,Permanent Nursing,Fshc  1St Floor,620.2, 26-Sep-2017
1347,Revenue,CAHD,South Glos Users in South Glos Homes,Permanent Nursing,Fshc  1St Floor,620.2, 26-Sep-2017
1348,Revenue,CAHD,South Glos Users in South Glos Homes,Permanent Nursing,Fshc  1St Floor,620.2, 26-Sep-2017
1349,Revenue,CAHD,Bed Purchasing - South,Permanent Residential,Fshc  1St Floor,2600, 26-Sep-2017
1350,Revenue,CAHD,Bed Purchasing - Southmead Hospital,Permanent Residential,Fshc  1St Floor,2300, 26-Sep-2017
1351,Revenue,CAHD,Bed Purchasing - Southmead Hospital,Permanent Residential,Fshc  1St Floor,2300, 26-Sep-2017
1352,Revenue,CAHD,Bed Purchasing - South,Permanent Residential,Fshc  1St Floor,2140, 26-Sep-2017
1353,Revenue,CAHD,Bed Purchasing - Southmead Hospital,Permanent Nursing,Fshc  1St Floor,2296, 26-Sep-2017
1354,Revenue,CAHD,South Glos Users in South Glos Homes,Permanent Nursing,Fshc  1St Floor,620.2, 26-Sep-2017
1355,Revenue,CAHD,Bed Purchasing - South,Permanent Nursing,Fshc  1St Floor,2836.4, 26-Sep-2017
1356,Revenue,CAHD,South Glos Users in South Glos Homes,Permanent Nursing,Fshc  1St Floor,620.2, 26-Sep-2017
1357,Revenue,CAHD,Bed Purchasing - Southmead Hospital,Permanent Nursing,Fshc  1St Floor,2228, 26-Sep-2017
1358,Revenue,CAHD,South Glos Users in South Glos Homes,Permanent Nursing,Fshc  1St Floor,620.2, 26-Sep-2017
1359,Revenue,CAHD,Bed Purchasing - South,Permanent Nursing,Fshc  1St Floor,2633.8, 26-Sep-2017
1360,Revenue,CAHD,South Glos Users in South Glos Homes,Permanent Nursing,Fshc  1St Floor,620.2, 26-Sep-2017
1361,Revenue,CAHD,South Glos Users in South Glos Homes,Permanent Nursing,Fshc  1St Floor,3610.45, 26-Sep-2017
1362,Revenue,CAHD,Bed Purchasing - South,Permanent Nursing,Fshc  1St Floor,2228, 26-Sep-2017
1363,Revenue,CAHD,South Glos Users in South Glos Homes,Permanent Nursing,Fshc  1St Floor,620.2, 26-Sep-2017
1364,Revenue,CAHD,South Glos Users in South Glos Homes,Permanent Nursing,Fshc  1St Floor,535.71, 26-Sep-2017
1365,Revenue,CAHD,Bed Purchasing - South,Permanent Nursing,Fshc  1St Floor,2228, 26-Sep-2017
1366,Revenue,CAHD,South Glos Users in South Glos Homes,Permanent Nursing,Fshc  1St Floor,620.2, 26-Sep-2017
1367,Revenue,CAHD,Bed Purchasing - South,Permanent Nursing,Fshc  1St Floor,2354.28, 26-Sep-2017
1368,Revenue,CAHD,South Glos Users in South Glos Homes,Permanent Nursing,Fshc  1St Floor,620.2, 26-Sep-2017
1369,Revenue,CAHD,Bed Purchasing - South,Permanent Nursing,Fshc  1St Floor,2228, 26-Sep-2017
1370,Revenue,CAHD,South Glos Users in South Glos Homes,Permanent Nursing,Fshc  1St Floor,620.2, 26-Sep-2017
1371,Revenue,CAHD,Bed Purchasing - South,Permanent Residential,Fshc  1St Floor,2182.36, 26-Sep-2017
1372,Revenue,CAHD,Bed Purchasing - South,Permanent Nursing,Fshc  1St Floor,2192.12, 26-Sep-2017
1373,Revenue,CAHD,Bed Purchasing - Southmead Hospital,Permanent Nursing,Fshc  1St Floor,2874.96, 26-Sep-2017
1374,Revenue,CAHD,Bed purchasing - Elderly S117 - South,Permanent Nursing,Fshc  1St Floor,2192.12, 26-Sep-2017
1375,Revenue,CAHD,Bed Purchasing - South,Permanent Nursing,Fshc  1St Floor,3444.2, 26-Sep-2017
1376,Revenue,CAHD,Bed Purchasing - South,Permanent Nursing,Fshc  1St Floor,2633.8, 26-Sep-2017
1377,Revenue,CAHD,Bed Purchasing - South,Permanent Nursing,Fshc  1St Floor,3849.4, 26-Sep-2017
1378,Revenue,CAHD,Bed Purchasing - Southmead Hospital,Permanent Nursing,Fshc  1St Floor,2192.12, 26-Sep-2017
1379,Revenue,CAHD,Bed Purchasing - Southmead Hospital,Permanent Nursing,Fshc  1St Floor,2192.12, 26-Sep-2017
1380,Revenue,CAHD,South Glos Users in South Glos Homes,Permanent Nursing,Fshc  1St Floor,620.2, 26-Sep-2017
1381,Revenue,CAHD,Bed Purchasing - Southmead Hospital,Respite Planned - Nursing,Fshc  1St Floor,1821.43, 26-Sep-2017
1382,Revenue,CAHD,Bed Purchasing - Southmead Hospital,Permanent Nursing,Fshc  1St Floor,2192.12, 26-Sep-2017
1383,Revenue,CAHD,Bed Purchasing - South,Permanent Nursing,Fshc  1St Floor,2192.12, 26-Sep-2017
1384,Revenue,CAHD,Bed Purchasing - South,Permanent Residential,Fshc  1St Floor,3588.12, 26-Sep-2017
1385,Revenue,CAHD,Bed Purchasing - North,Respite Planned - Residential,Fshc  1St Floor,1265.51, 26-Sep-2017
1386,Revenue,CAHD,Bed Purchasing - Southmead Hospital,Permanent Residential,Fshc  1St Floor,2014.64, 26-Sep-2017
1387,Revenue,CAHD,Bed Purchasing - Southmead Hospital,Permanent Residential,Fshc  1St Floor,10720.76, 26-Sep-2017
1388,Revenue,CAHD,Bed Purchasing - North,Respite Emergency - Residential,Fshc  1St Floor,2214.64, 26-Sep-2017
1389,Revenue,CAHD,Bed Purchasing - North,Respite Emergency - Residential,Fshc  1St Floor,2056.45, 26-Sep-2017
1390,Revenue,CAHD,Bed Purchasing - North,Permanent Nursing,Fshc  1St Floor,2194.2, 26-Sep-2017
1391,Revenue,CAHD,Bed Purchasing - North,Permanent Nursing,Fshc  1St Floor,2066, 26-Sep-2017
1392,Revenue,CAHD,South Glos Users in South Glos Homes,Permanent Nursing,Fshc  1St Floor,620.2, 26-Sep-2017
1393,Revenue,CAHD,Bed Purchasing - North,Permanent Nursing,Fshc  1St Floor,10994.07, 26-Sep-2017
1394,Revenue,CAHD,Bed Purchasing - Southmead Hospital,Respite Planned - Nursing,Fshc  1St Floor,2703, 26-Sep-2017
1395,Revenue,CAHD,Bed Purchasing - Southmead Hospital,Respite Planned - Nursing,Fshc  1St Floor,1749, 26-Sep-2017
1396,Revenue,CAHD,Bed Purchasing - North,Permanent Nursing,Fshc  1St Floor,2222.72, 26-Sep-2017
1397,Revenue,CAHD,Bed Purchasing - North,Permanent Nursing,Fshc  1St Floor,2751.57, 26-Sep-2017
1398,Revenue,CAHD,Bed Purchasing - North,Permanent Nursing,Fshc  1St Floor,2266, 26-Sep-2017
1399,Revenue,CAHD,Bed Purchasing - North,Fees & Charges Income - General,Fshc  1St Floor,633.84, 26-Sep-2017
1400,Revenue,CAHD,Bed Purchasing - North,Permanent Nursing,Fshc  1St Floor,12121.53, 26-Sep-2017
1401,Revenue,CAHD,Bed Purchasing - North,Permanent Nursing,Fshc  1St Floor,2218.32, 26-Sep-2017
1402,Revenue,CAHD,Bed Purchasing - North,Fees & Charges Income - General,Fshc  1St Floor,5991.48, 26-Sep-2017
1403,Revenue,CAHD,Bed Purchasing - South,Permanent Residential,Fshc  1St Floor,2228.6, 26-Sep-2017
1404,Revenue,CAHD,Bed Purchasing - North,Permanent Residential,Fshc  1St Floor,1855.12, 26-Sep-2017
1405,Revenue,CAHD,CSC - Agency Fostering,Foster Parent Allowances,Fusion Fostering Ltd,3653.57, 04-Sep-2017
1406,Revenue,CAHD,CSC - Regional Adoption Agency Project,Agency Staff (Admin/Support Staff) Pay,Gatenby Sanderson Limited,3500, 22-Sep-2017
1407,Revenue,CAHD,Bed Purchasing - South,Permanent Residential,Gladstone House,5749.96, 26-Sep-2017
1408,Revenue,CAHD,Bed Purchasing - North,Permanent Residential,Glan Y Felin,6520.08, 26-Sep-2017
1409,Revenue,CAHD,Bed Purchasing - South,Permanent Residential,Glasallt Fawr,5121.84, 26-Sep-2017
1410,Revenue,CAHD,South Glos Users in South Glos Homes,Permanent Nursing,Glebe House Nursing Home,620.2, 26-Sep-2017
1411,Revenue,CAHD,South Glos Users in South Glos Homes,Permanent Nursing,Glebe House Nursing Home,620.2, 26-Sep-2017
1412,Revenue,CAHD,South Glos Users in South Glos Homes,Permanent Nursing,Glebe House Nursing Home,620.2, 26-Sep-2017
1413,Revenue,CAHD,South Glos Users in South Glos Homes,Permanent Nursing,Glebe House Nursing Home,620.2, 26-Sep-2017
1414,Revenue,CAHD,South Glos Users in South Glos Homes,Permanent Nursing,Glebe House Nursing Home,620.2, 26-Sep-2017
1415,Revenue,CAHD,Bed Purchasing - North,Permanent Nursing,Glebe House Nursing Home,3154.24, 26-Sep-2017
1416,Revenue,CAHD,South Glos Users in South Glos Homes,Permanent Nursing,Glebe House Nursing Home,620.2, 26-Sep-2017
1417,Revenue,CAHD,South Glos Users in South Glos Homes,Permanent Nursing,Glebe House Nursing Home,620.2, 26-Sep-2017
1418,Revenue,CAHD,South Glos Users in South Glos Homes,Permanent Nursing,Glebe House Nursing Home,620.2, 26-Sep-2017
1419,Revenue,CAHD,South Glos Users in South Glos Homes,Permanent Nursing,Glebe House Nursing Home,620.2, 26-Sep-2017
1420,Revenue,CAHD,Bed Purchasing - North,Permanent Nursing,Glebe House Nursing Home,3043.36, 26-Sep-2017
1421,Revenue,CAHD,South Glos Users in South Glos Homes,Permanent Nursing,Glebe House Nursing Home,620.2, 26-Sep-2017
1422,Revenue,CAHD,South Glos Users in South Glos Homes,Permanent Nursing,Glebe House Nursing Home,620.2, 26-Sep-2017
1423,Revenue,CAHD,South Glos Users in South Glos Homes,Permanent Nursing,Glebe House Nursing Home,620.2, 26-Sep-2017
1424,Revenue,CAHD,South Glos Users in South Glos Homes,Permanent Nursing,Glebe House Nursing Home,620.2, 26-Sep-2017
1425,Revenue,CAHD,South Glos Users in South Glos Homes,Permanent Nursing,Glebe House Nursing Home,620.2, 26-Sep-2017
1426,Revenue,CAHD,South Glos Users in South Glos Homes,Permanent Nursing,Glebe House Nursing Home,620.2, 26-Sep-2017
1427,Revenue,CAHD,South Glos Users in South Glos Homes,Permanent Nursing,Glebe House Nursing Home,620.2, 26-Sep-2017
1428,Revenue,CAHD,South Glos Users in South Glos Homes,Permanent Nursing,Glebe House Nursing Home,620.2, 26-Sep-2017
1429,Revenue,CAHD,South Glos Users in South Glos Homes,Permanent Nursing,Glebe House Nursing Home,620.2, 26-Sep-2017
1430,Revenue,CAHD,South Glos Users in South Glos Homes,Permanent Nursing,Glebe House Nursing Home,1395.45, 26-Sep-2017
1431,Revenue,CAHD,South Glos Users in South Glos Homes,Permanent Nursing,Glebe House Nursing Home,620.2, 26-Sep-2017
1432,Revenue,CAHD,South Glos Users in South Glos Homes,Permanent Nursing,Glebe House Nursing Home,620.2, 26-Sep-2017
1433,Revenue,CAHD,South Glos Users in South Glos Homes,Permanent Nursing,Glebe House Nursing Home,620.2, 26-Sep-2017
1434,Revenue,CAHD,Bed Purchasing - North,Permanent Nursing,Glebe House Nursing Home,53068.62, 26-Sep-2017
1435,Revenue,CAHD,Bed Purchasing - North,Permanent Nursing,Glebe House Nursing Home,3216.28, 26-Sep-2017
1436,Revenue,CAHD,South Glos Users in South Glos Homes,Permanent Nursing,Glebe House Nursing Home,620.2, 26-Sep-2017
1437,Revenue,CAHD,Bed Purchasing - North,Fees & Charges Income - General,Glebe House Nursing Home,4685.52, 26-Sep-2017
1438,Revenue,CAHD,Bed Purchasing - North,Fees & Charges Income - General,Glebe House Nursing Home,4636.77, 26-Sep-2017
1439,Revenue,CAHD,Bed Purchasing - North,Fees & Charges Income - General,Glebe House Nursing Home,4636.77, 26-Sep-2017
1440,Revenue,CAHD,South Glos Users in South Glos Homes,Permanent Nursing,Glebe House Nursing Home,620.2, 26-Sep-2017
1441,Revenue,CAHD,South Glos Users in South Glos Homes,Permanent Nursing,Glebe House Nursing Home,620.2, 26-Sep-2017
1442,Revenue,CAHD,Bed Purchasing - South,Permanent Residential,Goldcare House,4539.28, 26-Sep-2017
1443,Revenue,CAHD,Bed Purchasing - Southmead Hospital,Permanent Residential,Gordena Care Home,11282.26, 26-Sep-2017
1444,Revenue,CAHD,Bed Purchasing - Southmead Hospital,Permanent Residential,Gordena Care Home,3852.48, 26-Sep-2017
1445,Revenue,CAHD,Bed Purchasing - South,Permanent Residential,Gordena Care Home,2586.8, 26-Sep-2017
1446,Revenue,CAHD,Bed Purchasing - South,Permanent Residential,Gordena Care Home,3682.84, 26-Sep-2017
1447,Revenue,CAHD,Bed Purchasing - South,Permanent Residential,Gordena Care Home,2582.6, 26-Sep-2017
1448,Revenue,CAHD,Bed Purchasing - South,Permanent Residential,Gordena Care Home,4293.88, 26-Sep-2017
1449,Revenue,CAHD,Bed Purchasing - South,Permanent Residential,Gordena Care Home,3694.04, 26-Sep-2017
1450,Revenue,CAHD,Bed Purchasing - South,Permanent Residential,Gordena Care Limited,4826.88, 26-Sep-2017
1451,Revenue,CAHD,Bed Purchasing - South,Permanent Residential,Gordena Care Limited,7380.04, 26-Sep-2017
1452,Revenue,CAHD,Jointly Funded H&SC Packages,Permanent Residential,Gordena Care Limited,2900.8, 26-Sep-2017
1453,Revenue,CAHD,Bed purchasing - S28A Under 65 - South,Permanent Residential,Gordena Care Limited,4694.4, 26-Sep-2017
1454,Revenue,CAHD,Bed Purchasing - North,Permanent Residential,Gordena Care Limited,4892.64, 26-Sep-2017
1455,Revenue,CAHD,Bed Purchasing - South,Permanent Nursing,Gracefields Nursing Home,2486.52, 26-Sep-2017
1456,Revenue,CAHD,South Glos Users in South Glos Homes,Permanent Nursing,Gracefields Nursing Home,620.2, 26-Sep-2017
1457,Revenue,CAHD,South Glos Users in South Glos Homes,Permanent Nursing,Gracefields Nursing Home,620.2, 26-Sep-2017
1458,Revenue,CAHD,South Glos Users in South Glos Homes,Permanent Nursing,Gracefields Nursing Home,620.2, 26-Sep-2017
1459,Revenue,CAHD,South Glos Users in South Glos Homes,Permanent Nursing,Gracefields Nursing Home,620.2, 26-Sep-2017
1460,Revenue,CAHD,South Glos Users in South Glos Homes,Permanent Nursing,Gracefields Nursing Home,620.2, 26-Sep-2017
1461,Revenue,CAHD,Bed purchasing - Elderly S117 - South,Permanent Nursing,Gracefields Nursing Home,2445.68, 26-Sep-2017
1462,Revenue,CAHD,South Glos Users in South Glos Homes,Permanent Nursing,Gracefields Nursing Home,620.2, 26-Sep-2017
1463,Revenue,CAHD,South Glos Users in South Glos Homes,Permanent Nursing,Gracefields Nursing Home,620.2, 26-Sep-2017
1464,Revenue,CAHD,Bed Purchasing - South,Permanent Nursing,Gracefields Nursing Home,3274, 26-Sep-2017
1465,Revenue,CAHD,South Glos Users in South Glos Homes,Permanent Nursing,Gracefields Nursing Home,620.2, 26-Sep-2017
1466,Revenue,CAHD,Bed Purchasing - South,Permanent Nursing,Gracefields Nursing Home,3094.72, 26-Sep-2017
1467,Revenue,CAHD,South Glos Users in South Glos Homes,Permanent Nursing,Gracefields Nursing Home,620.2, 26-Sep-2017
1468,Revenue,CAHD,Bed Purchasing - South,Permanent Nursing,Gracefields Nursing Home,3952.2, 26-Sep-2017
1469,Revenue,CAHD,South Glos Users in South Glos Homes,Permanent Nursing,Gracefields Nursing Home,620.2, 26-Sep-2017
1470,Revenue,CAHD,South Glos Users in South Glos Homes,Permanent Nursing,Gracefields Nursing Home,620.2, 26-Sep-2017
1471,Revenue,CAHD,South Glos Users in South Glos Homes,Permanent Nursing,Gracefields Nursing Home,2436.5, 26-Sep-2017
1472,Revenue,CAHD,South Glos Users in South Glos Homes,Permanent Nursing,Gracefields Nursing Home,620.2, 26-Sep-2017
1473,Revenue,CAHD,Bed Purchasing - South,Permanent Nursing,Gracefields Nursing Home,3400, 26-Sep-2017
1474,Revenue,CAHD,Bed Purchasing - South,Fees & Charges Income - General,Gracefields Nursing Home,621.36, 26-Sep-2017
1475,Revenue,CAHD,South Glos Users in South Glos Homes,Permanent Nursing,Gracefields Nursing Home,620.2, 26-Sep-2017
1476,Revenue,CAHD,South Glos Users in South Glos Homes,Permanent Nursing,Gracefields Nursing Home,620.2, 26-Sep-2017
1477,Revenue,CAHD,South Glos Users in South Glos Homes,Permanent Nursing,Gracefields Nursing Home,620.2, 26-Sep-2017
1478,Revenue,CAHD,South Glos Users in South Glos Homes,Permanent Nursing,Gracefields Nursing Home,620.2, 26-Sep-2017
1479,Revenue,CAHD,South Glos Users in South Glos Homes,Permanent Nursing,Gracefields Nursing Home,620.2, 26-Sep-2017
1480,Revenue,CAHD,South Glos Users in South Glos Homes,Permanent Nursing,Gracefields Nursing Home,620.2, 26-Sep-2017
1481,Revenue,CAHD,South Glos Users in South Glos Homes,Permanent Nursing,Gracefields Nursing Home,620.2, 26-Sep-2017
1482,Revenue,CAHD,South Glos Users in South Glos Homes,Permanent Nursing,Gracefields Nursing Home,620.2, 26-Sep-2017
1483,Revenue,CAHD,South Glos Users in South Glos Homes,Permanent Nursing,Gracefields Nursing Home,1351.15, 26-Sep-2017
1484,Revenue,CAHD,South Glos Users in South Glos Homes,Permanent Nursing,Gracefields Nursing Home,620.2, 26-Sep-2017
1485,Revenue,CAHD,South Glos Users in South Glos Homes,Permanent Nursing,Gracefields Nursing Home,620.2, 26-Sep-2017
1486,Revenue,CAHD,Bed Purchasing - South,Permanent Nursing,Gracefields Nursing Home,3071.4, 26-Sep-2017
1487,Revenue,CAHD,South Glos Users in South Glos Homes,Permanent Nursing,Gracefields Nursing Home,620.2, 26-Sep-2017
1488,Revenue,CAHD,Bed Purchasing - Southmead Hospital,Permanent Nursing,Gracefields Nursing Home,3094.72, 26-Sep-2017
1489,Revenue,CAHD,South Glos Users in South Glos Homes,Permanent Nursing,Gracefields Nursing Home,620.2, 26-Sep-2017
1490,Revenue,CAHD,South Glos Users in South Glos Homes,Permanent Nursing,Gracefields Nursing Home,620.2, 26-Sep-2017
1491,Revenue,CAHD,Bed Purchasing - South,Permanent Nursing,Gracefields Nursing Home,2970.12, 26-Sep-2017
1492,Revenue,CAHD,South Glos Users in South Glos Homes,Permanent Nursing,Gracefields Nursing Home,620.2, 26-Sep-2017
1493,Revenue,CAHD,South Glos Users in South Glos Homes,Permanent Nursing,Gracefields Nursing Home,620.2, 26-Sep-2017
1494,Revenue,CAHD,South Glos Users in South Glos Homes,Permanent Nursing,Gracefields Nursing Home,620.2, 26-Sep-2017
1495,Revenue,CAHD,South Glos Users in South Glos Homes,Permanent Nursing,Gracefields Nursing Home,620.2, 26-Sep-2017
1496,Revenue,CAHD,South Glos Users in South Glos Homes,Permanent Nursing,Gracefields Nursing Home,620.2, 26-Sep-2017
1497,Revenue,CAHD,Bed Purchasing - Southmead Hospital,Permanent Nursing,Gracefields Nursing Home,3274, 26-Sep-2017
1498,Revenue,CAHD,South Glos Users in South Glos Homes,Permanent Nursing,Gracefields Nursing Home,620.2, 26-Sep-2017
1499,Revenue,CAHD,Bed Purchasing - South,Permanent Nursing,Gracefields Nursing Home,2445.68, 26-Sep-2017
1500,Revenue,CAHD,South Glos Users in South Glos Homes,Permanent Nursing,Gracefields Nursing Home,620.2, 26-Sep-2017
1501,Revenue,CAHD,Bed Purchasing - South,Permanent Nursing,Gracefields Nursing Home,3400, 26-Sep-2017
1502,Revenue,CAHD,South Glos Users in South Glos Homes,Permanent Nursing,Gracefields Nursing Home,620.2, 26-Sep-2017
1503,Revenue,CAHD,South Glos Users in South Glos Homes,Permanent Nursing,Gracefields Nursing Home,620.2, 26-Sep-2017
1504,Revenue,CAHD,Bed Purchasing - South,Permanent Nursing,Gracefields Nursing Home,2868.8, 26-Sep-2017
1505,Revenue,CAHD,South Glos Users in South Glos Homes,Permanent Nursing,Gracefields Nursing Home,620.2, 26-Sep-2017
1506,Revenue,CAHD,Bed Purchasing - Southmead Hospital,Permanent Nursing,Gracefields Nursing Home,3094.72, 26-Sep-2017
1507,Revenue,CAHD,South Glos Users in South Glos Homes,Permanent Nursing,Gracefields Nursing Home,620.2, 26-Sep-2017
1508,Revenue,CAHD,South Glos Users in South Glos Homes,Permanent Nursing,Gracefields Nursing Home,620.2, 26-Sep-2017
1509,Revenue,CAHD,South Glos Users in South Glos Homes,Permanent Nursing,Gracefields Nursing Home,1284.7, 26-Sep-2017
1510,Revenue,CAHD,Bed Purchasing - Southmead Hospital,Permanent Nursing,Gracefields Nursing Home,2445.68, 26-Sep-2017
1511,Revenue,CAHD,South Glos Users in South Glos Homes,Permanent Nursing,Gracefields Nursing Home,620.2, 26-Sep-2017
1512,Revenue,CAHD,Bed Purchasing - Southmead Hospital,Permanent Nursing,Gracefields Nursing Home,3274, 26-Sep-2017
1513,Revenue,CAHD,Bed Purchasing - South,Permanent Residential,Granada House Residential Home,2200, 26-Sep-2017
1514,Revenue,CAHD,Sexual Health,Other Small Contracts,Great Western Hospitals NHS FT,545.6, 01-Sep-2017
1515,Revenue,CAHD,CSC - Asylum Seekers - Unaccompanied,Foster Parent Allowances,Greenfields Adolecent Development Limited,2214.29, 20-Sep-2017
1516,Revenue,CAHD,CSC - Asylum Seekers - Unaccompanied,Foster Parent Allowances,Greenfields Adolecent Development Limited,2214.29, 29-Sep-2017
1517,Revenue,CAHD,Statemented Support Academies,Schools Funding,Greenshaw Learning Trust T/A Yate Academy,659.36, 29-Sep-2017
1518,Revenue,CAHD,Statemented Support Academies,Schools Funding,Greenshaw Learning Trust T/A Yate Academy,1334.86, 29-Sep-2017
1519,Revenue,CAHD,Statemented Support Academies,Schools Funding,Greenshaw Learning Trust T/A Yate Academy,1013.19, 29-Sep-2017
1520,Revenue,CAHD,Statemented Support Academies,Schools Funding,Greenshaw Learning Trust T/A Yate Academy,1182.07, 29-Sep-2017
1521,Revenue,CAHD,Statemented Support Academies,Schools Funding,Greenshaw Learning Trust T/A Yate Academy,1013.19, 29-Sep-2017
1522,Revenue,CAHD,Statemented Support Academies,Schools Funding,Greenshaw Learning Trust T/A Yate Academy,522.65, 29-Sep-2017
1523,Revenue,CAHD,Statemented Support Academies,Schools Funding,Greenshaw Learning Trust T/A Yate Academy,1013.19, 29-Sep-2017
1524,Revenue,CAHD,Statemented Support Academies,Schools Funding,Greenshaw Learning Trust T/A Yate Academy,852.36, 29-Sep-2017
1525,Revenue,CAHD,Statemented Support Academies,Schools Funding,Greenshaw Learning Trust T/A Yate Academy,828.23, 29-Sep-2017
1526,Revenue,CAHD,Statemented Support Academies,Schools Funding,Greenshaw Learning Trust T/A Yate Academy,788.03, 29-Sep-2017
1527,Revenue,CAHD,Statemented Support Academies,Schools Funding,Greenshaw Learning Trust T/A Yate Academy,683.48, 29-Sep-2017
1528,Revenue,CAHD,Statemented Support Academies,Schools Funding,Greenshaw Learning Trust T/A Yate Academy,707.61, 29-Sep-2017
1529,Revenue,CAHD,Statemented Support Academies,Schools Funding,Greenshaw Learning Trust T/A Yate Academy,659.36, 29-Sep-2017
1530,Revenue,CAHD,Statemented Support Academies,Schools Funding,Greenshaw Learning Trust T/A Yate Academy,989.07, 29-Sep-2017
1531,Revenue,CAHD,Statemented Support Academies,Schools Funding,Greenshaw Learning Trust T/A Yate Academy,1013.19, 29-Sep-2017
1532,Revenue,CAHD,Bed Purchasing - South,Permanent Residential,Grove Care,3039, 26-Sep-2017
1533,Revenue,CAHD,Bed Purchasing - South,Permanent Residential,Gwendoline House,2238.36, 26-Sep-2017
1534,Revenue,CAHD,Bed Purchasing - South,Permanent Residential,Gwendoline House,2370.4, 26-Sep-2017
1535,Revenue,CAHD,Bed Purchasing - North,Respite Planned - Residential,Gwendoline House,1105, 26-Sep-2017
1536,Revenue,CAHD,Bed Purchasing - Southmead Hospital,Permanent Residential,Gwendoline House,2068.24, 26-Sep-2017
1537,Revenue,CAHD,Home Care - Elderly - South,Other Small Contracts,H F T,860.76, 08-Sep-2017
1538,Revenue,CAHD,Supporting People Programme,Grants to Voluntary Bodies,Habinteg Housing Association,666, 01-Sep-2017
1539,Revenue,CAHD,Supporting People Programme,Grants to Voluntary Bodies,Habinteg Housing Association,666, 29-Sep-2017
1540,Revenue,CAHD,CAHC - Complaints & Advocacy Service,Complaints External Expenses,Hala Hall,1140.75, 29-Sep-2017
1541,Revenue,CAHD,Social Lettings Agency,Fees - General,Individual,13.13, 27-Sep-2017
1542,Revenue,CAHD,Social Lettings Agency,Other Supplies & Services,Individual,577.72, 27-Sep-2017
1543,Revenue,CAHD,Supporting People Programme,Grants to Voluntary Bodies,Hanover Housing Association,996.16, 01-Sep-2017
1544,Revenue,CAHD,Supporting People Programme,Grants to Voluntary Bodies,Hanover Housing Association,996.16, 29-Sep-2017
1545,Revenue,CAHD,Section 117 Placements MH Younger,Permanent Residential,Harefield Hall,3039, 26-Sep-2017
1546,Revenue,CAHD,Bed Purchasing - South,Permanent Residential,Harefield Hall,2669.6, 26-Sep-2017
1547,Revenue,CAHD,Bed Purchasing - South,Permanent Residential,Harefield Hall,3002.52, 26-Sep-2017
1548,Revenue,CAHD,Bed Purchasing - South,Permanent Residential,Harefield Hall,2252.96, 26-Sep-2017
1549,Revenue,CAHD,Bed Purchasing - South,Permanent Residential,Harefield Hall,2443.48, 26-Sep-2017
1550,Revenue,CAHD,Bed Purchasing - South,Permanent Residential,Harefield Hall,2594.64, 26-Sep-2017
1551,Revenue,CAHD,Home Care Monitoring (CM2000),Other Supplies & Services,HAS Technology Limited T/A CM2000,11016.97, 08-Sep-2017
1552,Revenue,CAHD,Bed Purchasing - Southmead Hospital,Permanent Nursing,Hazelwood Gardens Nursing Home,2608.48, 26-Sep-2017
1553,Revenue,CAHD,Bed Purchasing - Southmead Hospital,Permanent Nursing,Hazelwood Gardens Nursing Home,2245.88, 26-Sep-2017
1554,Revenue,CAHD,Bed Purchasing - Southmead Hospital,Permanent Nursing,Hc-One Ltd,2211.24, 26-Sep-2017
1555,Revenue,CAHD,Bed Purchasing - Southmead Hospital,Permanent Residential,Hc-One Ltd,2140.32, 26-Sep-2017
1556,Revenue,CAHD,Bed Purchasing - Southmead Hospital,Permanent Nursing,Hc-One Ltd,2135.24, 26-Sep-2017
1557,Revenue,CAHD,Bed Purchasing - Southmead Hospital,Permanent Nursing,Hc-One Ltd,2763.76, 26-Sep-2017
1558,Revenue,CAHD,Bed Purchasing - North,Permanent Nursing,Hc-One Ltd,2130.64, 26-Sep-2017
1559,Revenue,CAHD,Bed Purchasing - North,Permanent Nursing,Hc-One Ltd,2116.36, 26-Sep-2017
1560,Revenue,CAHD,Bed Purchasing - Southmead Hospital,Permanent Nursing,Hc-One Ltd,2130.64, 26-Sep-2017
1561,Revenue,CAHD,Bed Purchasing - Southmead Hospital,Permanent Residential,Hc-One Ltd,2224.52, 26-Sep-2017
1562,Revenue,CAHD,Bed Purchasing - Southmead Hospital,Permanent Residential,Hc-One Ltd,2145.07, 26-Sep-2017
1563,Revenue,CAHD,Bed Purchasing - North,Permanent Nursing,Hc-One Ltd,11718.52, 26-Sep-2017
1564,Revenue,CAHD,Bed Purchasing - North,Permanent Nursing,Hc-One Ltd,3004.69, 26-Sep-2017
1565,Revenue,CAHD,Bed Purchasing - North,Permanent Nursing,Hc-One Ltd,2130.64, 26-Sep-2017
1566,Revenue,CAHD,Bed Purchasing - North,Fees & Charges Income - General,Hc-One Ltd,2154.23, 26-Sep-2017
1567,Revenue,CAHD,Bed Purchasing - North,Fees & Charges Income - General,Hc-One Ltd,8418.08, 26-Sep-2017
1568,Revenue,CAHD,Bed Purchasing - North,Permanent Nursing,Hc-One Ltd,2130.6, 26-Sep-2017
1569,Revenue,CAHD,Bed Purchasing - Southmead Hospital,Permanent Nursing,Hc-One Ltd,2728.28, 26-Sep-2017
1570,Revenue,CAHD,Bed Purchasing - Southmead Hospital,Permanent Nursing,Hc-One Ltd,2804.48, 26-Sep-2017
1571,Revenue,CAHD,Bed Purchasing - Southmead Hospital,Permanent Nursing,Hc-One Ltd,2560.8, 26-Sep-2017
1572,Revenue,CAHD,Home Care - Elderly - South,Day Care / Social Activities,Headway Bristol,475.2, 04-Sep-2017
1573,Revenue,CAHD,Home Care - Elderly - South,Other Small Contracts,Headway Bristol,86.4, 04-Sep-2017
1574,Revenue,CAHD,Home Care - Elderly - North,Day Care / Social Activities,Headway Bristol,847.8, 04-Sep-2017
1575,Revenue,CAHD,Home Care - Elderly - North,Other Small Contracts,Headway Bristol,194.4, 04-Sep-2017
1576,Revenue,CAHD,Home Care - Elderly - South,Day Care / Social Activities,Headway Bristol,475.2, 11-Sep-2017
1577,Revenue,CAHD,Home Care - Elderly - North,Day Care / Social Activities,Headway Bristol,939.6, 11-Sep-2017
1578,Revenue,CAHD,Home Care - Elderly - North,Other Small Contracts,Headway Bristol,129.6, 11-Sep-2017
1579,Revenue,CAHD,Home Care - Elderly - South,Day Care / Social Activities,Headway Bristol,432, 18-Sep-2017
1580,Revenue,CAHD,Home Care - Elderly - North,Day Care / Social Activities,Headway Bristol,1247.4, 18-Sep-2017
1581,Revenue,CAHD,Home Care - Elderly - North,Other Small Contracts,Headway Bristol,64.8, 18-Sep-2017
1582,Revenue,CAHD,Home Care - Elderly - South,Day Care / Social Activities,Headway Bristol,496.8, 26-Sep-2017
1583,Revenue,CAHD,Home Care - Elderly - North,Day Care / Social Activities,Headway Bristol,1209.6, 26-Sep-2017
1584,Revenue,CAHD,Home Care - Elderly - North,Other Small Contracts,Headway Bristol,64.8, 26-Sep-2017
1585,Revenue,CAHD,Home Care - Elderly - South,Other Small Contracts,Helping Hands Homecare,846.72, 13-Sep-2017
1586,Revenue,CAHD,Home Care - Elderly - North,Day Care / Social Activities,Helping Hands Homecare,215.04, 13-Sep-2017
1587,Revenue,CAHD,Home Care - Elderly - North,Other Small Contracts,Helping Hands Homecare,5211.79, 13-Sep-2017
1588,Revenue,CAHD,Younger MH non-res purchasing,Other Small Contracts,Helping Hands Homecare,66.84, 13-Sep-2017
1589,Revenue,CAHD,Home Care - Elderly - South,Other Small Contracts,Helping Hands Homecare,497.28, 15-Sep-2017
1590,Revenue,CAHD,Home Care - Elderly - North,Day Care / Social Activities,Helping Hands Homecare,224, 15-Sep-2017
1591,Revenue,CAHD,Home Care - Elderly - North,Other Small Contracts,Helping Hands Homecare,4625, 15-Sep-2017
1592,Revenue,CAHD,Home Care - Elderly - South,Other Small Contracts,Helping Hands Homecare,824.32, 15-Sep-2017
1593,Revenue,CAHD,Home Care - Elderly - North,Day Care / Social Activities,Helping Hands Homecare,232.96, 15-Sep-2017
1594,Revenue,CAHD,Home Care - Elderly - North,Other Small Contracts,Helping Hands Homecare,4654.97, 15-Sep-2017
1595,Revenue,CAHD,Younger MH non-res purchasing,Other Small Contracts,Helping Hands Homecare,66.84, 15-Sep-2017
1596,Revenue,CAHD,Home Care - Elderly - South,Other Small Contracts,Helping Hands Homecare,586.88, 22-Sep-2017
1597,Revenue,CAHD,Home Care - Elderly - North,Day Care / Social Activities,Helping Hands Homecare,232.96, 22-Sep-2017
1598,Revenue,CAHD,Home Care - Elderly - North,Other Small Contracts,Helping Hands Homecare,5238.88, 22-Sep-2017
1599,Revenue,CAHD,Younger MH non-res purchasing,Other Small Contracts,Helping Hands Homecare,102.68, 22-Sep-2017
1600,Revenue,CAHD,Home Care - Elderly - South,Other Small Contracts,Helping Hands Homecare,931.84, 29-Sep-2017
1601,Revenue,CAHD,Home Care - Elderly - North,Day Care / Social Activities,Helping Hands Homecare,232.96, 29-Sep-2017
1602,Revenue,CAHD,Home Care - Elderly - North,Other Small Contracts,Helping Hands Homecare,5592.69, 29-Sep-2017
1603,Revenue,CAHD,Younger MH non-res purchasing,Other Small Contracts,Helping Hands Homecare,66.84, 29-Sep-2017
1604,Revenue,CAHD,Placements OLA Special Schools and RB,Other L.A.'s - General,Henbury Court Primary Academy,833.33, 29-Sep-2017
1605,Revenue,CAHD,S117 Placements PCT,Permanent Residential,Hesley Hall,18899.04, 26-Sep-2017
1606,Revenue,CAHD,Bed Purchasing - North,Permanent Residential,High Border Lodge,2001.68, 26-Sep-2017
1607,Revenue,CAHD,CSC - Corporate Parenting,"Provisions (Food, etc)",High Street Vouchers Ltd T/A Park Retail Ltd,509, 11-Sep-2017
1608,Revenue,CAHD,Bed Purchasing - Southmead Hospital,Permanent Residential,Highgate Studios,2378.68, 26-Sep-2017
1609,Revenue,CAHD,Bed Purchasing - Southmead Hospital,Permanent Nursing,Holly Villa,2063.48, 26-Sep-2017
1610,Revenue,CAHD,Bed Purchasing - North,Permanent Residential,Holmleigh Care Homes Ltd,4579.12, 26-Sep-2017
1611,Revenue,CAHD,Bed Purchasing - South,Permanent Residential,Holmleigh Care Homes Ltd,4374.12, 26-Sep-2017
1612,Revenue,CAHD,Jointly Funded H&SC Packages,Permanent Residential,Holmleigh Care Homes Ltd,1253.16, 26-Sep-2017
1613,Revenue,CAHD,Bed Purchasing - North,Permanent Residential,Home Farm Trust Ltd  5-6 Brook Office Pa,3316.24, 26-Sep-2017
1614,Revenue,CAHD,Bed Purchasing - North,Permanent Residential,Home Farm Trust Ltd  5-6 Brook Office Pa,3852.32, 26-Sep-2017
1615,Revenue,CAHD,Home Care - Elderly - South,Supported Living,Home Farm Trust Ltd  5-6 Brook Office Pa,4074.2, 26-Sep-2017
1616,Revenue,CAHD,18-25 Year Olds,Permanent Residential,Home From Home Care Ltd,9740.76, 26-Sep-2017
1617,Revenue,CAHD,Bed Purchasing - North,Permanent Residential,Homes Caring For Autism Ltd  Churchill H,8175.92, 26-Sep-2017
1618,Revenue,CAHD,Jointly Funded H&SC Packages,Permanent Residential,Homes Caring For Autism Ltd  Churchill H,2470.36, 26-Sep-2017
1619,Revenue,CAHD,18-25 Year Olds,Permanent Residential,Homes Caring For Autism Ltd  Churchill H,5765.32, 26-Sep-2017
1620,Revenue,CAHD,Jointly Funded H&SC Packages,Permanent Residential,Homes Caring For Autism Ltd  Churchill H,8039.24, 26-Sep-2017
1621,Revenue,CAHD,Bed Purchasing - Southmead Hospital,Permanent Nursing,Horfield Care Limited,1507.18, 11-Sep-2017
1622,Revenue,CAHD,Bed Purchasing - Southmead Hospital,Permanent Nursing,Horfield Care Limited,1905.84, 11-Sep-2017
1623,Revenue,CAHD,Bed Purchasing - Southmead Hospital,Permanent Nursing,Horfield Care Limited,1568.11, 11-Sep-2017
1624,Revenue,CAHD,Bed Purchasing - Southmead Hospital,Permanent Nursing,Horfield Care Limited,1470.11, 11-Sep-2017
1625,Revenue,CAHD,Bed Purchasing - South,Permanent Nursing,Horfield Care Limited,1391.81, 11-Sep-2017
1626,Revenue,CAHD,Bed Purchasing - South,Permanent Nursing,Horfield Care Limited,1413.47, 11-Sep-2017
1627,Revenue,CAHD,Supporting People Programme,Grants to Voluntary Bodies,Housing 21,631.5, 01-Sep-2017
1628,Revenue,CAHD,Supporting People Programme,Grants to Voluntary Bodies,Housing 21,957.66, 01-Sep-2017
1629,Revenue,CAHD,Supporting People Programme,Grants to Voluntary Bodies,Housing 21,957.66, 29-Sep-2017
1630,Revenue,CAHD,Supporting People Programme,Grants to Voluntary Bodies,Housing 21,631.5, 29-Sep-2017
1631,Revenue,CAHD,Extra Care Housing,Private & Voluntary Home Care,Housing 21,40614.39, 08-Sep-2017
1632,Revenue,CAHD,Extra Care Housing,Private & Voluntary Home Care,Housing 21,26103.55, 01-Sep-2017
1633,Revenue,CAHD,Extra Care Housing,Private & Voluntary Home Care,Housing 21,26103.55, 29-Sep-2017
1634,Revenue,CAHD,18-25 Year Olds,Day Care / Social Activities,Impact Mentoring,2000, 27-Sep-2017
1635,Revenue,CAHD,SEN High Needs - Not at School Base,Other Private Contractors,Impact Mentoring,825, 18-Sep-2017
1636,Revenue,CAHD,CSC - Vinney Green Secure Unit,Mechanical & Electrical Maintenance,Integral UK Limited,2150, 20-Sep-2017
1637,Revenue,CAHD,CSC - Adoption Support Fund,Post Adoption,Intramosaic Counselling and Psychotherapy Limited,1400.85, 22-Sep-2017
1638,Revenue,CAHD,CSC - Vinney Green Secure Unit,Furniture & Fittings Loose,ITEC,4940, 20-Sep-2017
1639,Revenue,CAHD,Social Lettings Agency,Fees - General,Individual,12.22, 12-Sep-2017
1640,Revenue,CAHD,Social Lettings Agency,Other Supplies & Services,Individual,690.32, 12-Sep-2017
1641,Revenue,CAHD,CSC - Professional Fees Foster Carers,Respite Care,James Mcfarland & Sue Hollin,1292.14, 15-Sep-2017
1642,Revenue,CAHD,Social Lettings Agency,Fees - General,Individual,10.53, 01-Sep-2017
1643,Revenue,CAHD,Social Lettings Agency,Other Supplies & Services,Individual,595.11, 01-Sep-2017
1644,Revenue,CAHD,Social Lettings Agency,Fees - General,Individual,10.53, 29-Sep-2017
1645,Revenue,CAHD,Social Lettings Agency,Other Supplies & Services,Individual,595.11, 29-Sep-2017
1646,Revenue,CAHD,CSC - Adoption Support Fund,Post Adoption,Individual,1550, 21-Sep-2017
1647,Revenue,CAHD,Training - Adult Services,Training Expenses,Individual,629, 11-Sep-2017
1648,Revenue,CAHD,Bed Purchasing - South,Permanent Residential,Individual,4147.72, 26-Sep-2017
1649,Revenue,CAHD,CSC - Care Leavers Support Costs,Bus & Rail Passes (not one off tickets),Jordan Xavier Ltd,50, 08-Sep-2017
1650,Revenue,CAHD,CSC - Care Leavers Support Costs,Adults - Family Support,Jordan Xavier Ltd,462.43, 08-Sep-2017
1651,Revenue,CAHD,CSC - Care Leavers Support Costs,Adults - Family Support,Jordan Xavier Ltd,534.5, 08-Sep-2017
1652,Revenue,CAHD,CSC - Care Leavers Support Costs,Bus & Rail Passes (not one off tickets),Jordan Xavier Ltd,47.9, 08-Sep-2017
1653,Revenue,CAHD,CSC - Care Leavers Support Costs,Adults - Family Support,Jordan Xavier Ltd,477.84, 08-Sep-2017
1654,Revenue,CAHD,CSC - Section 17 Long Term Support,"Provisions (Food, etc)",Individual,650, 01-Sep-2017
1655,Revenue,CAHD,CSC - Section 17 Long Term Support,"Provisions (Food, etc)",Individual,650, 29-Sep-2017
1656,Revenue,CAHD,Home Care - Elderly - South,Supported Living,Julia Simone- Supp. Ind.,1209.92, 26-Sep-2017
1657,Revenue,CAHD,Younger MH non-res purchasing,Supported Living,Julia Simone- Supp. Ind.,1209.92, 26-Sep-2017
1658,Revenue,CAHD,Home Care - Elderly - North,Supported Living,Julia Simone- Supp. Ind.,1244.76, 26-Sep-2017
1659,Revenue,CAHD,Younger MH non-res purchasing,Supported Living,Julia Simone- Supp. Ind.,1209.76, 26-Sep-2017
1660,Revenue,CAHD,Younger MH non-res purchasing,Supported Living,Julia Simone- Supp. Ind.,1209.88, 26-Sep-2017
1661,Revenue,CAHD,Younger MH non-res purchasing,Supported Living,Julia Simone- Supp. Ind.,17105.51, 26-Sep-2017
1662,Revenue,CAHD,Younger MH non-res purchasing,Supported Living,Julia Simone- Supp. Ind.,1209.92, 26-Sep-2017
1663,Revenue,CAHD,Younger MH non-res purchasing,Supported Living,Julia Simone- Supp. Ind.,6654.56, 26-Sep-2017
1664,Revenue,CAHD,Bed Purchasing - South,Permanent Residential,Julia Simone- Supp. Ind.,4475.32, 26-Sep-2017
1665,Revenue,CAHD,Bed purchasing -S28A  Under 65 - North,Permanent Residential,Julia Simone- Supp. Ind.,3988.04, 26-Sep-2017
1666,Revenue,CAHD,Housing Needs,Interpreting & Translation,K International Plc,492.44, 29-Sep-2017
1667,Revenue,CAHD,Care Management Team - North,Legal Fees,K J Harwood Limited,3360.8, 18-Sep-2017
1668,Revenue,CAHD,Bed Purchasing - Elderly S117- North,Permanent Residential,Individual,2800, 26-Sep-2017
1669,Revenue,CAHD,CSC - Adoption Support Fund,Post Adoption,Individual,765.75, 25-Sep-2017
1670,Revenue,CAHD,CSC - Adoption Support Fund,Post Adoption,Individual,765.75, 25-Sep-2017
1671,Revenue,CAHD,CSC - Adoption Support Fund,Post Adoption,Individual,765.75, 25-Sep-2017
1672,Revenue,CAHD,Statemented Support Payments to OLAs,Other L.A.'s - General,Katharine Lady Berkeley School,530.69, 29-Sep-2017
1673,Revenue,CAHD,Statemented Support Payments to OLAs,Other L.A.'s - General,Katharine Lady Berkeley School,643.28, 29-Sep-2017
1674,Revenue,CAHD,Statemented Support Payments to OLAs,Other L.A.'s - General,Katharine Lady Berkeley School,619.15, 29-Sep-2017
1675,Revenue,CAHD,Home Care - Elderly - South,Other Small Contracts,Kensington Community Care,3118.08, 06-Sep-2017
1676,Revenue,CAHD,Home Care - Elderly - North,Other Small Contracts,Kensington Community Care,6539.85, 06-Sep-2017
1677,Revenue,CAHD,Home Care - Elderly - South,Other Small Contracts,Kensington Community Care,2934.4, 11-Sep-2017
1678,Revenue,CAHD,Home Care - Elderly - North,Other Small Contracts,Kensington Community Care,6432.26, 11-Sep-2017
1679,Revenue,CAHD,Home Care - Elderly - South,Other Small Contracts,Kensington Community Care,3185.28, 20-Sep-2017
1680,Revenue,CAHD,Home Care - Elderly - North,Other Small Contracts,Kensington Community Care,6482.56, 20-Sep-2017
1681,Revenue,CAHD,Home Care - Elderly - South,Other Small Contracts,Kensington Community Care,3019.52, 20-Sep-2017
1682,Revenue,CAHD,Home Care - Elderly - North,Other Small Contracts,Kensington Community Care,6213.76, 20-Sep-2017
1683,Revenue,CAHD,Home Care - Elderly - South,Other Small Contracts,Kensington Community Care,2607.36, 27-Sep-2017
1684,Revenue,CAHD,Home Care - Elderly - North,Other Small Contracts,Kensington Community Care,6424.32, 27-Sep-2017
1685,Revenue,CAHD,Bed Purchasing - Southmead Hospital,Permanent Residential,Kenver House Residential Home,2248.96, 26-Sep-2017
1686,Revenue,CAHD,Bed Purchasing - South,Permanent Residential,Kenver House Residential Home,2252.04, 26-Sep-2017
1687,Revenue,CAHD,Bed Purchasing - Southmead Hospital,Permanent Residential,Kenver House Residential Home,2316, 26-Sep-2017
1688,Revenue,CAHD,Bed Purchasing - South,Permanent Residential,Kenver House Residential Home,2463.08, 26-Sep-2017
1689,Revenue,CAHD,Bed purchasing - Elderly S117 - South,Permanent Residential,Kenver House Residential Home,2463.08, 26-Sep-2017
1690,Revenue,CAHD,Bed Purchasing - South,Permanent Residential,Kenver House Residential Home,2613.56, 26-Sep-2017
1691,Revenue,CAHD,Bed Purchasing - South,Permanent Residential,Kenver House Residential Home,2463.08, 26-Sep-2017
1692,Revenue,CAHD,Bed Purchasing - South,Permanent Residential,Kenver House Residential Home,2463.08, 26-Sep-2017
1693,Revenue,CAHD,Bed Purchasing - Elderly MH - South,Respite Emergency - Residential,Kenver House Residential Home,2580, 26-Sep-2017
1694,Revenue,CAHD,Bed Purchasing - South,Permanent Residential,Kenver House Residential Home,2248.96, 26-Sep-2017
1695,Revenue,CAHD,Mental Capacity Act / DOLS,Legal Fees,Individual,450, 28-Sep-2017
1696,Revenue,CAHD,CSC - Care Leavers Independent Living,Adults - Family Support,Key2 Futures Limited,2352, 04-Sep-2017
1697,Revenue,CAHD,CSC - Care Leavers Independent Living,Adults - Family Support,Key2 Futures Limited,2430.4, 29-Sep-2017
1698,Revenue,CAHD,CSC - Care Leavers Independent Living,Adults - Family Support,Key2 Futures Limited,2414.28, 29-Sep-2017
1699,Revenue,CAHD,Supporting People Programme,Grants to Voluntary Bodies,Keyring Living Support Networks,2988.58, 01-Sep-2017
1700,Revenue,CAHD,Supporting People Programme,Grants to Voluntary Bodies,Keyring Living Support Networks,2988.58, 29-Sep-2017
1701,Revenue,CAHD,CSC - Kids Contract,Grants to Voluntary Bodies,Kids,44345, 22-Sep-2017
1702,Revenue,CAHD,CSC - Short Breaks,Grants to Voluntary Bodies,Kids,1362, 22-Sep-2017
1703,Revenue,CAHD,Bed Purchasing - North,Permanent Residential,Kilkhampton Lodge,17727.52, 26-Sep-2017
1704,Revenue,CAHD,Bed Purchasing - North,Permanent Nursing,Kingfisher Lodge Care Centre,3329.08, 26-Sep-2017
1705,Revenue,CAHD,Bed Purchasing - Southmead Hospital,Permanent Nursing,Kingfisher Lodge Care Centre,3600, 26-Sep-2017
1706,Revenue,CAHD,Bed Purchasing - Southmead Hospital,Permanent Nursing,Kingfisher Lodge Care Centre,3600, 26-Sep-2017
1707,Revenue,CAHD,Bed purchasing - Elderly S117 - South,Permanent Nursing,Kingfisher Lodge Care Centre,4579.8, 26-Sep-2017
1708,Revenue,CAHD,Bed purchasing - Elderly S117 - South,Permanent Nursing,Kingfisher Lodge Care Centre,2944.16, 26-Sep-2017
1709,Revenue,CAHD,Supporting People Programme,Grants to Voluntary Bodies,Kingswood Young Homeless Project,8151.18, 01-Sep-2017
1710,Revenue,CAHD,Supporting People Programme,Grants to Voluntary Bodies,Kingswood Young Homeless Project,8151.18, 27-Sep-2017
1711,Revenue,CAHD,CSC - LAC Housing Support Grants,Grants to Voluntary Bodies,Kingswood Young Homeless Project,9564.25, 22-Sep-2017
1712,Revenue,CAHD,CSC - Regional Adoption Agency Project,Consultants Fees,Individual,5368.95, 22-Sep-2017
1713,Revenue,CAHD,Bed Purchasing - North,Permanent Residential,Kisimul Group,12236.52, 26-Sep-2017
1714,Revenue,CAHD,Supporting People Programme,Grants to Voluntary Bodies,Knightstone Housing Association Limited,2544.33, 01-Sep-2017
1715,Revenue,CAHD,Supporting People Programme,Grants to Voluntary Bodies,Knightstone Housing Association Limited,820.58, 01-Sep-2017
1716,Revenue,CAHD,Supporting People Programme,Grants to Voluntary Bodies,Knightstone Housing Association Limited,865.25, 01-Sep-2017
1717,Revenue,CAHD,Supporting People Programme,Grants to Voluntary Bodies,Knightstone Housing Association Limited,2543.75, 01-Sep-2017
1718,Revenue,CAHD,Supporting People Programme,Grants to Voluntary Bodies,Knightstone Housing Association Limited,1833.66, 01-Sep-2017
1719,Revenue,CAHD,Supporting People Programme,Grants to Voluntary Bodies,Knightstone Housing Association Limited,2544.33, 29-Sep-2017
1720,Revenue,CAHD,Supporting People Programme,Grants to Voluntary Bodies,Knightstone Housing Association Limited,820.58, 29-Sep-2017
1721,Revenue,CAHD,Supporting People Programme,Grants to Voluntary Bodies,Knightstone Housing Association Limited,1833.66, 29-Sep-2017
1722,Revenue,CAHD,Supporting People Programme,Grants to Voluntary Bodies,Knightstone Housing Association Limited,2543.75, 29-Sep-2017
1723,Revenue,CAHD,Supporting People Programme,Grants to Voluntary Bodies,Knightstone Housing Association Limited,865.25, 29-Sep-2017
1724,Revenue,CAHD,Bed and Breakfast,Bed & Breakfast,Knightstone Housing Association Limited,931.42, 14-Sep-2017
1725,Revenue,CAHD,Bed and Breakfast,Bed & Breakfast,Knightstone Housing Association Limited,2433.48, 15-Sep-2017
1726,Revenue,CAHD,Bed and Breakfast,Bed & Breakfast,Knightstone Housing Association Limited,3725.68, 15-Sep-2017
1727,Revenue,CAHD,Bed and Breakfast,Bed & Breakfast,Knightstone Housing Association Limited,2864.12, 15-Sep-2017
1728,Revenue,CAHD,Bed and Breakfast,Bed & Breakfast,Knightstone Housing Association Limited,1432.06, 21-Sep-2017
1729,Revenue,CAHD,Bed and Breakfast,Bed & Breakfast,Knightstone Housing Association Limited,931.42, 14-Sep-2017
1730,Revenue,CAHD,Placements OLA Special Schools and RB,Other L.A.'s - General,Knowle DGE,2088.42, 29-Sep-2017
1731,Revenue,CAHD,Placements OLA Special Schools and RB,Other L.A.'s - General,Knowle DGE,1375.92, 29-Sep-2017
1732,Revenue,CAHD,Placements OLA Special Schools and RB,Other L.A.'s - General,Knowle DGE,900.92, 29-Sep-2017
1733,Revenue,CAHD,Placements OLA Special Schools and RB,Other L.A.'s - General,Knowle DGE,900.92, 29-Sep-2017
1734,Revenue,CAHD,Placements OLA Special Schools and RB,Other L.A.'s - General,Knowle DGE,2088.42, 29-Sep-2017
1735,Revenue,CAHD,Placements OLA Special Schools and RB,Other L.A.'s - General,Knowle DGE,900.92, 29-Sep-2017
1736,Revenue,CAHD,CSC - Vinney Green Secure Unit,R & M by Departments,Kool-It  Services Limited,4611, 08-Sep-2017
1737,Revenue,CAHD,Home Care - Elderly - South,Other Small Contracts,Kumari Care Limited,1370.2, 05-Sep-2017
1738,Revenue,CAHD,Home Care - Elderly - North,Other Small Contracts,Kumari Care Limited,1001.98, 05-Sep-2017
1739,Revenue,CAHD,Home Care - Elderly - South,Other Small Contracts,Kumari Care Limited,795.6, 11-Sep-2017
1740,Revenue,CAHD,Home Care - Elderly - North,Other Small Contracts,Kumari Care Limited,1001.98, 11-Sep-2017
1741,Revenue,CAHD,Home Care - Elderly - South,Other Small Contracts,Kumari Care Limited,468.52, 20-Sep-2017
1742,Revenue,CAHD,Home Care - Elderly - North,Other Small Contracts,Kumari Care Limited,963.27, 20-Sep-2017
1743,Revenue,CAHD,Home Care - Elderly - South,Other Small Contracts,Kumari Care Limited,671.84, 20-Sep-2017
1744,Revenue,CAHD,Home Care - Elderly - North,Other Small Contracts,Kumari Care Limited,1001.98, 20-Sep-2017
1745,Revenue,CAHD,Home Care - Elderly - South,Other Small Contracts,Kumari Care Limited,671.84, 27-Sep-2017
1746,Revenue,CAHD,Home Care - Elderly - North,Other Small Contracts,Kumari Care Limited,1001.98, 27-Sep-2017
1747,Revenue,CAHD,Bed Purchasing - North,Permanent Nursing,Larchfield Care Home,3068.36, 26-Sep-2017
1748,Revenue,CAHD,Bed Purchasing - North,Permanent Residential,Leonard Cheshire  National Account Centr,3517.16, 26-Sep-2017
1749,Revenue,CAHD,Bed Purchasing - North,Permanent Residential,Leonard Cheshire  National Account Centr,19344.38, 26-Sep-2017
1750,Revenue,CAHD,Bed Purchasing - South,Permanent Residential,Leonard Cheshire  National Account Centr,3889.64, 26-Sep-2017
1751,Revenue,CAHD,Bed Purchasing - South,Permanent Residential,Leonard Cheshire  National Account Centr,21393.02, 26-Sep-2017
1752,Revenue,CAHD,Bed Purchasing - North,Permanent Nursing,Leonard Cheshire  National Account Centr,4082.72, 26-Sep-2017
1753,Revenue,CAHD,Bed Purchasing - North,Permanent Nursing,Leonard Cheshire  National Account Centr,22454.96, 26-Sep-2017
1754,Revenue,CAHD,Bed Purchasing - North,Permanent Nursing,Leonard Cheshire  National Account Centr,3361.6, 26-Sep-2017
1755,Revenue,CAHD,Bed Purchasing - North,Permanent Nursing,Leonard Cheshire  National Account Centr,18488.8, 26-Sep-2017
1756,Revenue,CAHD,18-25 Year Olds,Permanent Residential,Leonard Cheshire  National Account Centr,3757.76, 26-Sep-2017
1757,Revenue,CAHD,Bed Purchasing - North,Permanent Residential,Leonard Cheshire  National Account Centr,6516.64, 26-Sep-2017
1758,Revenue,CAHD,Bed Purchasing - North,Permanent Nursing,Leonard Cheshire  National Account Centr,5246.76, 26-Sep-2017
1759,Revenue,CAHD,Bed Purchasing - North,Permanent Nursing,Leonard Cheshire  National Account Centr,28857.18, 26-Sep-2017
1760,Revenue,CAHD,Jointly Funded H&SC Packages,Permanent Nursing,Leonard Cheshire  National Account Centr,1941.5, 26-Sep-2017
1761,Revenue,CAHD,Bed Purchasing - North,Permanent Nursing,Leonard Cheshire  National Account Centr,3402.8, 26-Sep-2017
1762,Revenue,CAHD,Bed Purchasing - North,Permanent Nursing,Leonard Cheshire  National Account Centr,18715.4, 26-Sep-2017
1763,Revenue,CAHD,Bed Purchasing - North,Permanent Nursing,Leonard Cheshire  National Account Centr,5131.24, 26-Sep-2017
1764,Revenue,CAHD,Bed Purchasing - North,Permanent Nursing,Leonard Cheshire  National Account Centr,28221.82, 26-Sep-2017
1765,Revenue,CAHD,Bed Purchasing - North,Permanent Residential,Leonard Cheshire  National Account Centr,3457.6, 26-Sep-2017
1766,Revenue,CAHD,Bed Purchasing - North,Permanent Residential,Leonard Cheshire  National Account Centr,19016.8, 26-Sep-2017
1767,Revenue,CAHD,Bed Purchasing - North,Permanent Nursing,Leonard Cheshire  National Account Centr,18165.84, 26-Sep-2017
1768,Revenue,CAHD,Jointly Funded H&SC Packages,Permanent Nursing,Leonard Cheshire  National Account Centr,808.5, 26-Sep-2017
1769,Revenue,CAHD,Bed Purchasing - North,Permanent Nursing,Leonard Cheshire  National Account Centr,3302.88, 26-Sep-2017
1770,Revenue,CAHD,Bed Purchasing - North,Permanent Nursing,Leonard Cheshire  National Account Centr,32268.28, 26-Sep-2017
1771,Revenue,CAHD,Bed Purchasing - North,Permanent Nursing,Leonard Cheshire  National Account Centr,5866.96, 26-Sep-2017
1772,Revenue,CAHD,Bed Purchasing - South,Permanent Nursing,Leonard Cheshire  National Account Centr,3488.56, 26-Sep-2017
1773,Revenue,CAHD,Bed Purchasing - South,Permanent Nursing,Leonard Cheshire  National Account Centr,19187.08, 26-Sep-2017
1774,Revenue,CAHD,Bed Purchasing - Southmead Hospital,Permanent Nursing,Leonard Cheshire  National Account Centr,3572.28, 26-Sep-2017
1775,Revenue,CAHD,Bed Purchasing - Southmead Hospital,Permanent Nursing,Leonard Cheshire  National Account Centr,19647.54, 26-Sep-2017
1776,Revenue,CAHD,Bed Purchasing - North,Permanent Nursing,Leonard Cheshire  National Account Centr,3910.52, 26-Sep-2017
1777,Revenue,CAHD,Bed Purchasing - North,Permanent Nursing,Leonard Cheshire  National Account Centr,21507.86, 26-Sep-2017
1778,Revenue,CAHD,Bed Purchasing - North,Permanent Nursing,Leonard Cheshire  National Account Centr,4692.36, 26-Sep-2017
1779,Revenue,CAHD,Bed Purchasing - North,Permanent Nursing,Leonard Cheshire  National Account Centr,25807.98, 26-Sep-2017
1780,Revenue,CAHD,Home Care - Elderly - North,Supported Living,Lifeways Community Care (Gloucester) Limited,12346.44, 08-Sep-2017
1781,Revenue,CAHD,Home Care - Elderly - North,Supported Living,Lifeways Community Care (Gloucester) Limited,12453.3, 19-Sep-2017
1782,Revenue,CAHD,18-25 Year Olds,Permanent Residential,Linden House,19294.4, 26-Sep-2017
1783,Revenue,CAHD,18-25 Year Olds,Permanent Residential,Linden House,9647.2, 26-Sep-2017
1784,Revenue,CAHD,Bed Purchasing - North,Permanent Residential,Linden House,8211.64, 26-Sep-2017
1785,Revenue,CAHD,Alexandra Way,Mechanical & Electrical Maintenance,Lionel Saunders & Co (Bristol) Limited,2398, 15-Sep-2017
1786,Revenue,CAHD,Bed Purchasing - Southmead Hospital,Permanent Residential,Little Croft,1886.24, 26-Sep-2017
1787,Revenue,CAHD,Bed Purchasing - South,Permanent Residential,Little Croft,2053.56, 26-Sep-2017
1788,Revenue,CAHD,Bed Purchasing - Southmead Hospital,Permanent Residential,Little Croft,1886.24, 26-Sep-2017
1789,Revenue,CAHD,Bed Purchasing - North,Permanent Residential,Little Croft,1886.24, 26-Sep-2017
1790,Revenue,CAHD,Bed Purchasing - Southmead Hospital,Permanent Residential,Little Croft,2258.92, 26-Sep-2017
1791,Revenue,CAHD,Bed Purchasing - South,Permanent Residential,Little Croft,2735.12, 26-Sep-2017
1792,Revenue,CAHD,Bed Purchasing - South,Permanent Residential,Little Croft,2329.92, 26-Sep-2017
1793,Revenue,CAHD,Bed Purchasing - Southmead Hospital,Permanent Residential,Little Croft,3000, 26-Sep-2017
1794,Revenue,CAHD,Bed Purchasing - Southmead Hospital,Permanent Residential,Little Croft,2735.12, 26-Sep-2017
1795,Revenue,CAHD,Bed Purchasing - South,Permanent Residential,Little Croft,1886.24, 26-Sep-2017
1796,Revenue,CAHD,Bed Purchasing - Southmead Hospital,Permanent Residential,Little Croft,2735.12, 26-Sep-2017
1797,Revenue,CAHD,Bed Purchasing - Southmead Hospital,Permanent Residential,Little Croft,2373.64, 26-Sep-2017
1798,Revenue,CAHD,Bed Purchasing - Southmead Hospital,Permanent Residential,Little Croft,1867.92, 26-Sep-2017
1799,Revenue,CAHD,Bed Purchasing - Southmead Hospital,Permanent Residential,Little Croft,2048.96, 26-Sep-2017
1800,Revenue,CAHD,Bed Purchasing - Southmead Hospital,Permanent Residential,Little Croft,2532.52, 26-Sep-2017
1801,Revenue,CAHD,Bed Purchasing - Southmead Hospital,Permanent Residential,Little Croft,2735.12, 26-Sep-2017
1802,Revenue,CAHD,Bed Purchasing - South,Permanent Residential,Little Croft,3000, 26-Sep-2017
1803,Revenue,CAHD,Bed Purchasing - South,Permanent Residential,Little Croft,2785.71, 26-Sep-2017
1804,Revenue,CAHD,Bed Purchasing - Southmead Hospital,Permanent Residential,Little Croft,1886.24, 26-Sep-2017
1805,Revenue,CAHD,Bed Purchasing - South,Permanent Residential,Little Croft,2329.92, 26-Sep-2017
1806,Revenue,CAHD,Bed Purchasing - Southmead Hospital,Respite Planned - Residential,Little Croft,4050, 26-Sep-2017
1807,Revenue,CAHD,Bed Purchasing - Southmead Hospital,Respite Planned - Residential,Little Croft,7423.68, 26-Sep-2017
1808,Revenue,CAHD,Bed Purchasing - South,Permanent Residential,Little Croft,3000, 26-Sep-2017
1809,Revenue,CAHD,Bed Purchasing - Southmead Hospital,Permanent Residential,Little Croft,2735.12, 26-Sep-2017
1810,Revenue,CAHD,Bed Purchasing - Southmead Hospital,Permanent Residential,Little Croft,1823.4, 26-Sep-2017
1811,Revenue,CAHD,Bed Purchasing - South,Permanent Residential,Little Croft,2070.72, 26-Sep-2017
1812,Revenue,CAHD,Bed Purchasing - Southmead Hospital,Permanent Residential,Little Croft,1886.24, 26-Sep-2017
1813,Revenue,CAHD,Bed Purchasing - Southmead Hospital,Permanent Residential,Little Croft,1886.24, 26-Sep-2017
1814,Revenue,CAHD,Bed Purchasing - South,Permanent Residential,Little Croft,2228.6, 26-Sep-2017
1815,Revenue,CAHD,Bed Purchasing - North,Permanent Residential,Littlecroft Residential Homes  Longcroft,7058.16, 26-Sep-2017
1816,Revenue,CAHD,18-25 Year Olds,Other Small Contracts,Lloyds TSB Commercial Finance Limited,116.48, 11-Sep-2017
1817,Revenue,CAHD,18-25 Year Olds,Supported Living,Lloyds TSB Commercial Finance Limited,2916.48, 11-Sep-2017
1818,Revenue,CAHD,Home Care - Elderly - South,Day Care / Social Activities,Lloyds TSB Commercial Finance Limited,5720.96, 11-Sep-2017
1819,Revenue,CAHD,Home Care - Elderly - South,Other Small Contracts,Lloyds TSB Commercial Finance Limited,7190.27, 11-Sep-2017
1820,Revenue,CAHD,Home Care - Elderly - South,Supported Living,Lloyds TSB Commercial Finance Limited,7171.41, 11-Sep-2017
1821,Revenue,CAHD,Home Care - Elderly - North,Day Care / Social Activities,Lloyds TSB Commercial Finance Limited,215.04, 11-Sep-2017
1822,Revenue,CAHD,Home Care - Elderly - North,Supported Living,Lloyds TSB Commercial Finance Limited,1599.36, 11-Sep-2017
1823,Revenue,CAHD,Younger MH non-res purchasing,Other Small Contracts,Lloyds TSB Commercial Finance Limited,10972.28, 11-Sep-2017
1824,Revenue,CAHD,18-25 Year Olds,Other Small Contracts,Lloyds TSB Commercial Finance Limited,232.96, 18-Sep-2017
1825,Revenue,CAHD,18-25 Year Olds,Supported Living,Lloyds TSB Commercial Finance Limited,2916.48, 18-Sep-2017
1826,Revenue,CAHD,Home Care - Elderly - South,Day Care / Social Activities,Lloyds TSB Commercial Finance Limited,5720.96, 18-Sep-2017
1827,Revenue,CAHD,Home Care - Elderly - South,Other Small Contracts,Lloyds TSB Commercial Finance Limited,7162.25, 18-Sep-2017
1828,Revenue,CAHD,Home Care - Elderly - South,Supported Living,Lloyds TSB Commercial Finance Limited,7087.81, 18-Sep-2017
1829,Revenue,CAHD,Home Care - Elderly - North,Day Care / Social Activities,Lloyds TSB Commercial Finance Limited,215.04, 18-Sep-2017
1830,Revenue,CAHD,Home Care - Elderly - North,Supported Living,Lloyds TSB Commercial Finance Limited,1774.08, 18-Sep-2017
1831,Revenue,CAHD,Younger MH non-res purchasing,Other Small Contracts,Lloyds TSB Commercial Finance Limited,10923.92, 18-Sep-2017
1832,Revenue,CAHD,18-25 Year Olds,Other Small Contracts,Lloyds TSB Commercial Finance Limited,116.48, 27-Sep-2017
1833,Revenue,CAHD,18-25 Year Olds,Supported Living,Lloyds TSB Commercial Finance Limited,2916.48, 27-Sep-2017
1834,Revenue,CAHD,Home Care - Elderly - South,Day Care / Social Activities,Lloyds TSB Commercial Finance Limited,5577.6, 27-Sep-2017
1835,Revenue,CAHD,Home Care - Elderly - South,Other Small Contracts,Lloyds TSB Commercial Finance Limited,7232.3, 27-Sep-2017
1836,Revenue,CAHD,Home Care - Elderly - South,Supported Living,Lloyds TSB Commercial Finance Limited,7509.18, 27-Sep-2017
1837,Revenue,CAHD,Home Care - Elderly - North,Day Care / Social Activities,Lloyds TSB Commercial Finance Limited,215.04, 27-Sep-2017
1838,Revenue,CAHD,Home Care - Elderly - North,Supported Living,Lloyds TSB Commercial Finance Limited,1599.36, 27-Sep-2017
1839,Revenue,CAHD,Younger MH non-res purchasing,Other Small Contracts,Lloyds TSB Commercial Finance Limited,10918.28, 27-Sep-2017
1840,Revenue,CAHD,18-25 Year Olds,Other Small Contracts,Lloyds TSB Commercial Finance Limited,116.48, 27-Sep-2017
